date,department/service,beneficiary,amount,summary of purpose,category,transaction number,SAP vendor number
01.07.2018,CHILDREN'S SERVICES,WRIXONCARE SEVICES,"2,117.85",CARE GRPS  4 TO 6,HIRED VEHICLES,5902309478,1000013166
01.07.2018,COMMISSIONING & CENTRAL,LOCAL GOVERNMENT ASSOCIATION,545,STRATEGIC DIRECTOR OF C&AS,SUBSCRIPTIONS,5902309510,1000017363
01.07.2018,COMMUNITIES,FALCON POINT MANAGEMENT GROUP LTD,892.6,FALCON POINT TMO,M&M ALLOWANCE CO-OPS,5902308890,11117573
01.07.2018,ENVIRONMENT DIRECTORATE,TENNANT UK CLEANING SOLUTIONS LTD,309.73,MANAGEMENT TEAM,EQUIPMENT PURCHASE & REPAIR,5902309037,1065589
01.07.2018,ENVIRONMENT DIRECTORATE,NPOWER,341.08,SANDGATE STREET,ELECTRICITY,5902309416,1000032342
01.07.2018,ENVIRONMENT DIRECTORATE,NPOWER,368.15,SANDGATE STREET,ELECTRICITY,5902309417,1000032342
01.07.2018,LEISURE DIRECTORATE,PECKHAM TOWN FOOTBALL CLUB,"4,343.08",FACILITIES MAINTENANCE,EQUIPMENT PURCHASE & REPAIR,5902308845,1000081129
01.07.2018,MODERNISATION HGF,BURLINGTON UNIFORMS,808.02,160 TOOLEY ST.,"CLOTHING, UNIFORMS & LAUNDRY",5902309225,1000062536
01.07.2018,MODERNISATION HGF,NPOWER LTD,854.86,CURLEW HOUSE,ELECTRICITY,5902309310,1000078994
02.07.2018,ADULT SOCIAL CARE,HM COURTS & TRIBUNALS SERVICE,400, LD MGMT & SUPPORT,LEGAL FEES & COURT COSTS,2102834970,1000075260
02.07.2018,ADULT SOCIAL CARE,HM COURTS & TRIBUNALS SERVICE,400,DIR OF ASC,LEGAL FEES & COURT COSTS,2102834988,1000075260
02.07.2018,ASSET MANAGEMENT,HM COURTS & TRIBUNALS SERVICE,255,DISREPAIR,LEGAL FEES & COURT COSTS,2102834994,1000075260
02.07.2018,ASSET MANAGEMENT,HM COURTS & TRIBUNALS SERVICE,545,DISREPAIR,LEGAL FEES & COURT COSTS,2102835016,1000075260
02.07.2018,ASSET MANAGEMENT,HM COURTS & TRIBUNALS SERVICE,563,DISREPAIR,LEGAL FEES & COURT COSTS,2102834962,1000075260
02.07.2018,ASSET MANAGEMENT,SLIEVERUE PROJECT MANAGEMENT LTD,"-2,460.00",R&M CONTRACTS (SOUTH),BUILDING R&M,5902309977,3000002030
02.07.2018,ASSET MANAGEMENT,SLIEVERUE PROJECT MANAGEMENT LTD,-450,R&M CONTRACTS (SOUTH),BUILDING R&M,5902309976,3000002030
02.07.2018,ASSET MANAGEMENT,SLIEVERUE PROJECT MANAGEMENT LTD,450,R&M CONTRACTS (SOUTH),BUILDING R&M,5902309924,3000002030
02.07.2018,ASSET MANAGEMENT,SLIEVERUE PROJECT MANAGEMENT LTD,"2,460.00",R&M CONTRACTS (SOUTH),BUILDING R&M,5902309926,3000002030
02.07.2018,BERMONDSEY AND ROTHERHITHE COMMUNITY COUNCIL,BIZZIE BODIES CIC,"7,600.00",DIGITAL HUB,GRANT,CHEQUE PAYMENT,CHEQUE PAYMENT
02.07.2018,"BOROUGH, BANKSIDE AND WALWORTH COMMUNITY COUNCIL",DISABILITY SPORTS COACH,457,COMMUNITY SPORTS CLUB FOR PEOPLE WITH DISABILITIES,GRANT,CHEQUE PAYMENT,CHEQUE PAYMENT
02.07.2018,CENTRAL FUNCTIONS,HM COURTS & TRIBUNALS SERVICE,308,COMMERCIAL PROPERTIES,LEGAL FEES & COURT COSTS,2102834976,1000075260
02.07.2018,CENTRAL FUNCTIONS,HM COURTS & TRIBUNALS SERVICE,308,COMMERCIAL PROPERTIES,LEGAL FEES & COURT COSTS,2102834977,1000075260
02.07.2018,CENTRAL FUNCTIONS,HM COURTS & TRIBUNALS SERVICE,308,COMMERCIAL PROPERTIES,LEGAL FEES & COURT COSTS,2102834980,1000075260
02.07.2018,CENTRAL FUNCTIONS,HM COURTS & TRIBUNALS SERVICE,308,COMMERCIAL PROPERTIES,LEGAL FEES & COURT COSTS,2102834995,1000075260
02.07.2018,CENTRAL FUNCTIONS,HM COURTS & TRIBUNALS SERVICE,308,COMMERCIAL PROPERTIES,LEGAL FEES & COURT COSTS,2102835001,1000075260
02.07.2018,CENTRAL FUNCTIONS,HM COURTS & TRIBUNALS SERVICE,355,COMMERCIAL PROPERTIES,LEGAL FEES & COURT COSTS,2102834975,1000075260
02.07.2018,CHIEF EXECUTIVE,ODGERS CONSERVATION CONSULTANTS LTD,"1,620.00",CAPITAL PS (REGEN),CONSTRUCTION FEES - ARCHITECT,5902308990,1000079939
02.07.2018,CHILDREN'S SERVICES,HM COURTS & TRIBUNALS SERVICE,255,LEGAL,LEGAL FEES & COURT COSTS,2102834996,1000075260
02.07.2018,CHILDREN'S SERVICES,HM COURTS & TRIBUNALS SERVICE,455,LEGAL,LEGAL FEES & COURT COSTS,2102835002,1000075260
02.07.2018,CHILDREN'S SERVICES,HM COURTS & TRIBUNALS SERVICE,528,LEGAL,LEGAL FEES & COURT COSTS,2102834990,1000075260
02.07.2018,CHILDREN'S SERVICES,HM COURTS & TRIBUNALS SERVICE,"2,055.00",LEGAL,LEGAL FEES & COURT COSTS,2102834963,1000075260
02.07.2018,CHILDREN'S SERVICES,HM COURTS & TRIBUNALS SERVICE,"2,055.00",LEGAL,LEGAL FEES & COURT COSTS,2102834964,1000075260
02.07.2018,CHILDREN'S SERVICES,HM COURTS & TRIBUNALS SERVICE,"2,055.00",LEGAL,LEGAL FEES & COURT COSTS,2102834966,1000075260
02.07.2018,CHILDREN'S SERVICES,HM COURTS & TRIBUNALS SERVICE,"2,055.00",LEGAL,LEGAL FEES & COURT COSTS,2102834968,1000075260
02.07.2018,CHILDREN'S SERVICES,HM COURTS & TRIBUNALS SERVICE,"2,055.00",LEGAL,LEGAL FEES & COURT COSTS,2102834972,1000075260
02.07.2018,CHILDREN'S SERVICES,HM COURTS & TRIBUNALS SERVICE,"2,055.00",LEGAL,LEGAL FEES & COURT COSTS,2102834982,1000075260
02.07.2018,CHILDREN'S SERVICES,HM COURTS & TRIBUNALS SERVICE,"2,055.00",LEGAL,LEGAL FEES & COURT COSTS,2102834987,1000075260
02.07.2018,CHILDREN'S SERVICES,HM COURTS & TRIBUNALS SERVICE,"2,055.00",LEGAL,LEGAL FEES & COURT COSTS,2102834991,1000075260
02.07.2018,CHILDREN'S SERVICES,HM COURTS & TRIBUNALS SERVICE,"2,055.00",LEGAL,LEGAL FEES & COURT COSTS,2102834999,1000075260
02.07.2018,CHILDREN'S SERVICES,HM COURTS & TRIBUNALS SERVICE,"2,055.00",LEGAL,LEGAL FEES & COURT COSTS,2102835000,1000075260
02.07.2018,CHILDREN'S SERVICES,HM COURTS & TRIBUNALS SERVICE,"2,055.00",LEGAL,LEGAL FEES & COURT COSTS,2102835005,1000075260
02.07.2018,DULWICH COMMUNITY COUNCIL,CRYSTAL PALACE COMMUNITY DEVELOPMENT TRUST,"5,000.00",,GRANT,CHEQUE PAYMENT,CHEQUE PAYMENT
02.07.2018,ENVIRONMENT DIRECTORATE,HM COURTS & TRIBUNALS SERVICE,308,ROUGH SLEEPERS,LEGAL FEES & COURT COSTS,2102834997,1000075260
02.07.2018,ENVIRONMENT DIRECTORATE,HM COURTS & TRIBUNALS SERVICE,308,ROUGH SLEEPERS,LEGAL FEES & COURT COSTS,2102834998,1000075260
02.07.2018,ENVIRONMENT DIRECTORATE,HM COURTS & TRIBUNALS SERVICE,308,ROUGH SLEEPERS,LEGAL FEES & COURT COSTS,2102835011,1000075260
02.07.2018,ENVIRONMENT DIRECTORATE,HM COURTS & TRIBUNALS SERVICE,355,ROUGH SLEEPERS,LEGAL FEES & COURT COSTS,2102835010,1000075260
02.07.2018,ENVIRONMENT DIRECTORATE,HM COURTS & TRIBUNALS SERVICE,355,SASBU,LEGAL FEES & COURT COSTS,2102834958,1000075260
02.07.2018,ENVIRONMENT DIRECTORATE,HM COURTS & TRIBUNALS SERVICE,355,SASBU,LEGAL FEES & COURT COSTS,2102834959,1000075260
02.07.2018,ENVIRONMENT DIRECTORATE,HM COURTS & TRIBUNALS SERVICE,355,SASBU,LEGAL FEES & COURT COSTS,2102835007,1000075260
02.07.2018,ENVIRONMENT DIRECTORATE,SOUTHWARK NEWSPAPER LTD,288,STREET WORKS OVERHEADS,MARKETING & PUBLICITY SERVICES,5902309314,1556957
02.07.2018,ENVIRONMENT DIRECTORATE,SOUTHWARK NEWSPAPER LTD,288,STREET WORKS OVERHEADS,MARKETING & PUBLICITY SERVICES,5902309328,1556957
02.07.2018,ENVIRONMENT DIRECTORATE,SOUTHWARK NEWSPAPER LTD,288,STREET WORKS OVERHEADS,MARKETING & PUBLICITY SERVICES,5902309339,1556957
02.07.2018,ENVIRONMENT DIRECTORATE,SOUTHWARK NEWSPAPER LTD,300,STREET WORKS OVERHEADS,MARKETING & PUBLICITY SERVICES,5902309309,1556957
02.07.2018,ENVIRONMENT DIRECTORATE,SOUTHWARK NEWSPAPER LTD,300,STREET WORKS OVERHEADS,MARKETING & PUBLICITY SERVICES,5902309330,1556957
02.07.2018,ENVIRONMENT DIRECTORATE,SOUTHWARK NEWSPAPER LTD,336,STREET WORKS OVERHEADS,MARKETING & PUBLICITY SERVICES,5902309322,1556957
02.07.2018,ENVIRONMENT DIRECTORATE,SOUTHWARK NEWSPAPER LTD,336,STREET WORKS OVERHEADS,MARKETING & PUBLICITY SERVICES,5902309336,1556957
02.07.2018,ENVIRONMENT DIRECTORATE,SOUTHWARK NEWSPAPER LTD,444,STREET WORKS OVERHEADS,MARKETING & PUBLICITY SERVICES,5902309318,1556957
02.07.2018,ENVIRONMENT DIRECTORATE,SOUTHWARK NEWSPAPER LTD,444,STREET WORKS OVERHEADS,MARKETING & PUBLICITY SERVICES,5902309325,1556957
02.07.2018,ENVIRONMENT DIRECTORATE,SOUTHWARK NEWSPAPER LTD,444,STREET WORKS OVERHEADS,MARKETING & PUBLICITY SERVICES,5902309332,1556957
02.07.2018,F & C S EXCLUDING CORPORATE BUDGETS,HM COURTS & TRIBUNALS SERVICE,"6,765.00",COUNCIL TAX,LEGAL FEES & COURT COSTS,2102835013,1000075260
02.07.2018,F & C S EXCLUDING CORPORATE BUDGETS,HM COURTS & TRIBUNALS SERVICE,441,NNDR,LEGAL FEES & COURT COSTS,2102835015,1000075260
02.07.2018,FINANCE & GOVERNANCE,STAFFINO,"1,500.00",ADMINISTRATION SUPPORT,SOFTWARE,6101838832,INTERNATIONAL PAYMENT
02.07.2018,FINANCE & GOVERNANCE,LAND REGISTRY,285,REGENERATION,LEGAL FEES & COURT FEES,6101838822,DIRECT DEBIT PAYMENT
02.07.2018,MODERNISATION HGF,ELIESHA TRAINING LTD,595,ORG TRANSFORMATION,TRAINING,5902309520,1000079900
02.07.2018,PECKHAM AND NUNHEAD COMMUNITY COUNCIL,BAGS OF TASTE,"2,200.00",,GRANT,CHEQUE PAYMENT,CHEQUE PAYMENT
02.07.2018,RESIDENT SERVICES,HM COURTS & TRIBUNALS SERVICE,355,AYLESBURY,LEGAL FEES & COURT COSTS,2102834956,1000075260
03.07.2018,ADULT SOCIAL CARE,BINDMANS LLP,"3,006.08", LD MGMT & SUPPORT,LEGAL FEES & COURT COSTS,2102834862,11285118
03.07.2018,ADULT SOCIAL CARE,BENJAMIN TANKEL,450, LD MGMT & SUPPORT,LEGAL FEES & COURT COSTS,2102834859,1000069057
03.07.2018,ADULT SOCIAL CARE,BENJAMIN TANKEL,525, LD MGMT & SUPPORT,LEGAL FEES & COURT COSTS,2102834854,1000069057
03.07.2018,ADULT SOCIAL CARE,BENJAMIN TANKEL,550, LD MGMT & SUPPORT,LEGAL FEES & COURT COSTS,2102834847,1000069057
03.07.2018,ADULT SOCIAL CARE,BENJAMIN TANKEL,625, LD MGMT & SUPPORT,LEGAL FEES & COURT COSTS,2102834848,1000069057
03.07.2018,ADULT SOCIAL CARE,BENJAMIN TANKEL,750, LD MGMT & SUPPORT,LEGAL FEES & COURT COSTS,2102834845,1000069057
03.07.2018,ADULT SOCIAL CARE,BENJAMIN TANKEL,850, LD MGMT & SUPPORT,LEGAL FEES & COURT COSTS,2102834839,1000069057
03.07.2018,ADULT SOCIAL CARE,BENJAMIN TANKEL,850, LD MGMT & SUPPORT,LEGAL FEES & COURT COSTS,2102834840,1000069057
03.07.2018,ADULT SOCIAL CARE,BENJAMIN TANKEL,850, LD MGMT & SUPPORT,LEGAL FEES & COURT COSTS,2102834842,1000069057
03.07.2018,ADULT SOCIAL CARE,BENJAMIN TANKEL,850, LD MGMT & SUPPORT,LEGAL FEES & COURT COSTS,2102834846,1000069057
03.07.2018,ADULT SOCIAL CARE,BENJAMIN TANKEL,850, LD MGMT & SUPPORT,LEGAL FEES & COURT COSTS,2102834861,1000069057
03.07.2018,ADULT SOCIAL CARE,BENJAMIN TANKEL,900, LD MGMT & SUPPORT,LEGAL FEES & COURT COSTS,2102834841,1000069057
03.07.2018,ADULT SOCIAL CARE,BENJAMIN TANKEL,900, LD MGMT & SUPPORT,LEGAL FEES & COURT COSTS,2102834849,1000069057
03.07.2018,ADULT SOCIAL CARE,BENJAMIN TANKEL,975, LD MGMT & SUPPORT,LEGAL FEES & COURT COSTS,2102834850,1000069057
03.07.2018,ADULT SOCIAL CARE,BENJAMIN TANKEL,"1,250.00", LD MGMT & SUPPORT,LEGAL FEES & COURT COSTS,2102834852,1000069057
03.07.2018,ADULT SOCIAL CARE,BENJAMIN TANKEL,"1,400.00", LD MGMT & SUPPORT,LEGAL FEES & COURT COSTS,2102834853,1000069057
03.07.2018,ADULT SOCIAL CARE,BENJAMIN TANKEL,"1,575.00", LD MGMT & SUPPORT,LEGAL FEES & COURT COSTS,2102834860,1000069057
03.07.2018,ADULT SOCIAL CARE,BENJAMIN TANKEL,"2,500.00", LD MGMT & SUPPORT,LEGAL FEES & COURT COSTS,2102834851,1000069057
03.07.2018,ADULT SOCIAL CARE,HEALTH PERSONNEL LTD,"3,676.00",LD LTS 18-64,RESIDENTIAL CARE,2102834598,1000076377
03.07.2018,ADULT SOCIAL CARE,CARE MANAGEMENT GROUP,424.29,LD LTS 18-64,SUPPORTED LIVING,2102834779,1000040475
03.07.2018,ADULT SOCIAL CARE,CARE MANAGEMENT GROUP,438.43,LD LTS 18-64,SUPPORTED LIVING,2102834782,1000040475
03.07.2018,ADULT SOCIAL CARE,BLACKFRIARS SETTLEMENT,"7,075.00",LOCAL COMMUNITY OFFER,EXTERNAL AGENCIES AND BODIES,5902309960,1000071456
03.07.2018,ADULT SOCIAL CARE,BLACKFRIARS SETTLEMENT,"7,562.50",LOCAL COMMUNITY OFFER,EXTERNAL AGENCIES AND BODIES,5902309961,1000071456
03.07.2018,ADULT SOCIAL CARE,LAMBETH & SOUTHWARK MENCAP,"10,250.00",LOCAL COMMUNITY OFFER,EXTERNAL AGENCIES AND BODIES,5902309942,1000005477
03.07.2018,ADULT SOCIAL CARE,LINK AGE SOUTHWARK,"30,812.50",LOCAL COMMUNITY OFFER,EXTERNAL AGENCIES AND BODIES,5902309947,1000034150
03.07.2018,ADULT SOCIAL CARE,SWK DISABLEMENT ASSN,"8,125.00",LOCAL COMMUNITY OFFER,EXTERNAL AGENCIES AND BODIES,5902309944,1000011698
03.07.2018,ADULT SOCIAL CARE,SWK DISABLEMENT ASSN,"11,875.00",LOCAL COMMUNITY OFFER,EXTERNAL AGENCIES AND BODIES,5902309943,1000011698
03.07.2018,ADULT SOCIAL CARE,TIME & TALENTS ASSOCIATION,"14,562.50",LOCAL COMMUNITY OFFER,EXTERNAL AGENCIES AND BODIES,5902309930,1757632
03.07.2018,ADULT SOCIAL CARE,CARE DIRECT UK LTD,289.59,MH LTS 18-64,HOMECARE - SPOT,2102834656,1000066322
03.07.2018,ADULT SOCIAL CARE,CARE MANAGEMENT GROUP,282.86,MH LTS 18-64,SUPPORTED LIVING,2102834780,1000040475
03.07.2018,ADULT SOCIAL CARE,OFFICE DEPOT UK LTD,561.42,MH PREMISES COSTS,STATIONERY,5902310004,1109426
03.07.2018,ADULT SOCIAL CARE,PHS GROUP PLC,388.59,MH PREMISES COSTS,WASTE DISPOSAL CONTRACT,5902310037,1851993
03.07.2018,ADULT SOCIAL CARE,YOUTH GRACES (UK) LTD,413.68,PHY LTS 18-64,HOMECARE - C&V,2102834719,1000072524
03.07.2018,ADULT SOCIAL CARE,CARE DIRECT UK LTD,268.91,PHY LTS 18-64,HOMECARE - SPOT,2102834611,1000066322
03.07.2018,ADULT SOCIAL CARE,CARE DIRECT UK LTD,272.35,PHY LTS 18-64,HOMECARE - SPOT,2102834648,1000066322
03.07.2018,ADULT SOCIAL CARE,CARE DIRECT UK LTD,310.28,PHY LTS 18-64,HOMECARE - SPOT,2102834647,1000066322
03.07.2018,ADULT SOCIAL CARE,CARE DIRECT UK LTD,727.42,PHY LTS 18-64,HOMECARE - SPOT,2102834667,1000066322
03.07.2018,ADULT SOCIAL CARE,METRO HOMECARE LTD,"1,116.99",PHY LTS 18-64,HOMECARE - SPOT,2102834768,1000070695
03.07.2018,ADULT SOCIAL CARE,METRO HOMECARE LTD,"1,116.99",PHY LTS 18-64,HOMECARE - SPOT,2102834773,1000070695
03.07.2018,ADULT SOCIAL CARE,CARE DIRECT UK LTD,251.67,PHY LTS 65+,HOMECARE - SPOT,2102834652,1000066322
03.07.2018,ADULT SOCIAL CARE,CARE DIRECT UK LTD,251.67,PHY LTS 65+,HOMECARE - SPOT,2102834677,1000066322
03.07.2018,ADULT SOCIAL CARE,CARE DIRECT UK LTD,265.46,PHY LTS 65+,HOMECARE - SPOT,2102834672,1000066322
03.07.2018,ADULT SOCIAL CARE,CARE DIRECT UK LTD,306.83,PHY LTS 65+,HOMECARE - SPOT,2102834623,1000066322
03.07.2018,ADULT SOCIAL CARE,CARE DIRECT UK LTD,358.54,PHY LTS 65+,HOMECARE - SPOT,2102834602,1000066322
03.07.2018,ADULT SOCIAL CARE,CARE DIRECT UK LTD,372.33,PHY LTS 65+,HOMECARE - SPOT,2102834657,1000066322
03.07.2018,ADULT SOCIAL CARE,CARE DIRECT UK LTD,386.12,PHY LTS 65+,HOMECARE - SPOT,2102834613,1000066322
03.07.2018,ADULT SOCIAL CARE,CARE DIRECT UK LTD,406.81,PHY LTS 65+,HOMECARE - SPOT,2102834604,1000066322
03.07.2018,ADULT SOCIAL CARE,CARE DIRECT UK LTD,406.81,PHY LTS 65+,HOMECARE - SPOT,2102834617,1000066322
03.07.2018,ADULT SOCIAL CARE,CARE DIRECT UK LTD,434.39,PHY LTS 65+,HOMECARE - SPOT,2102834630,1000066322
03.07.2018,ADULT SOCIAL CARE,CARE DIRECT UK LTD,434.39,PHY LTS 65+,HOMECARE - SPOT,2102834645,1000066322
03.07.2018,ADULT SOCIAL CARE,CARE DIRECT UK LTD,461.97,PHY LTS 65+,HOMECARE - SPOT,2102834666,1000066322
03.07.2018,ADULT SOCIAL CARE,CARE DIRECT UK LTD,472.31,PHY LTS 65+,HOMECARE - SPOT,2102834646,1000066322
03.07.2018,ADULT SOCIAL CARE,CARE DIRECT UK LTD,482.65,PHY LTS 65+,HOMECARE - SPOT,2102834644,1000066322
03.07.2018,ADULT SOCIAL CARE,CARE DIRECT UK LTD,496.44,PHY LTS 65+,HOMECARE - SPOT,2102834675,1000066322
03.07.2018,ADULT SOCIAL CARE,CARE DIRECT UK LTD,517.13,PHY LTS 65+,HOMECARE - SPOT,2102834634,1000066322
03.07.2018,ADULT SOCIAL CARE,CARE DIRECT UK LTD,530.92,PHY LTS 65+,HOMECARE - SPOT,2102834621,1000066322
03.07.2018,ADULT SOCIAL CARE,CARE DIRECT UK LTD,530.92,PHY LTS 65+,HOMECARE - SPOT,2102834651,1000066322
03.07.2018,ADULT SOCIAL CARE,METRO HOMECARE LTD,310.28,PHY LTS 65+,HOMECARE - SPOT,2102834767,1000070695
03.07.2018,ADULT SOCIAL CARE,YOUTH GRACES (UK) LTD,255.22,PHY LTS 65+,HOMECARE - SPOT,2102834711,1000072524
03.07.2018,ADULT SOCIAL CARE,YOUTH GRACES (UK) LTD,272.32,PHY LTS 65+,HOMECARE - SPOT,2102834728,1000072524
03.07.2018,ADULT SOCIAL CARE,YOUTH GRACES (UK) LTD,386.4,PHY LTS 65+,HOMECARE - SPOT,2102834694,1000072524
03.07.2018,ADULT SOCIAL CARE,YOUTH GRACES (UK) LTD,399.91,PHY LTS 65+,HOMECARE - SPOT,2102834721,1000072524
03.07.2018,ADULT SOCIAL CARE,YOUTH GRACES (UK) LTD,496.51,PHY LTS 65+,HOMECARE - SPOT,2102834729,1000072524
03.07.2018,ADULT SOCIAL CARE,YOUTH GRACES (UK) LTD,717.15,PHY LTS 65+,HOMECARE - SPOT,2102834725,1000072524
03.07.2018,ADULT SOCIAL CARE,YOUTH GRACES (UK) LTD,262.12,PHY STS 65+,HOMECARE - IC,2102834730,1000072524
03.07.2018,ADULT SOCIAL CARE,ROMEDICAL LTD,573.52,SAFEGUARDING TEAM,OTHER CONTRACTORS,5902310119,1000076318
03.07.2018,ADULT SOCIAL CARE,ROMEDICAL LTD,573.52,SAFEGUARDING TEAM,OTHER CONTRACTORS,5902310121,1000076318
03.07.2018,ADULT SOCIAL CARE,CARE DIRECT UK LTD,255.12,SEN LTS 65+,HOMECARE - SPOT,2102834664,1000066322
03.07.2018,ADULT SOCIAL CARE,KENT COUNTY COUNCIL - LASER,"1,271.34",SOUTHWARK RESOURCE CENTRE,ELECTRICITY,5902309847,1000012926
03.07.2018,ADULT SOCIAL CARE,PECULIAR CARE HOMES LTD,538.5,SPECIALIST CARE,SECTION 17 PAYMENTS TO AGENCIES/CARERS,2102834766,1000076991
03.07.2018,ADULT SOCIAL CARE,PECULIAR CARE HOMES LTD,"4,173.40",SPECIALIST CARE,SECTION 17 PAYMENTS TO AGENCIES/CARERS,2102834757,1000076991
03.07.2018,ADULT SOCIAL CARE,HEBRON TRUST,"3,321.43",SUB LTS 18-64,PLACEMENTS - REHAB,2102834770,1000056819
03.07.2018,ADULT SOCIAL CARE,STREETSCENE ADDICTION RECOVERY,"1,080.00",SUB LTS 18-64,PLACEMENTS - REHAB,2102834771,11221787
03.07.2018,ADULT SOCIAL CARE,THE PROVIDENCE PROJECTS REHAB GROUP,"2,607.14",SUB LTS 18-64,PLACEMENTS - REHAB,2102834772,1000032991
03.07.2018,ADULT SOCIAL CARE,PECULIAR CARE HOMES LTD,359,TRANSITIONS 14-18YRS,SECTION 17 PAYMENTS TO AGENCIES/CARERS,2102834762,1000076991
03.07.2018,ADULT SOCIAL CARE,PECULIAR CARE HOMES LTD,"1,345.50",TRANSITIONS 14-18YRS,SECTION 17 PAYMENTS TO AGENCIES/CARERS,2102834763,1000076991
03.07.2018,ASSET MANAGEMENT,KOHLER MIRA LTD,422.06,ADAPTATIONS,BUILDING R&M,5902310059,1132257
03.07.2018,ASSET MANAGEMENT,ANTHONY GOLD SOLICITORS,"33,000.00",DISREPAIR,LEGAL FEES & COURT COSTS,2102834837,1000050198
03.07.2018,ASSET MANAGEMENT,GAS ADVISORY SERVICES LIMITED,"1,557.50",ENG CONTRACTS (NORTH),HEATING -DISTRICT SERVICE (CONTRACT SUM),5902309987,1000064649
03.07.2018,ASSET MANAGEMENT,THAMES VALLEY CONTROLS LTD,"7,699.55",ENG CONTRACTS (NORTH),TELEPHONES (LAND LINES),5902310108,1295718
03.07.2018,ASSET MANAGEMENT,METRO DIGITAL TELEVISION LTD,300,ENG CONTRACTS (NORTH),TV AERIALS R&M,5902309972,1000070713
03.07.2018,ASSET MANAGEMENT,SCCI ALPHATRACK LTD,875.26,ENG CONTRACTS (NORTH),TV AERIALS R&M,5902309968,1000071955
03.07.2018,ASSET MANAGEMENT,SCCI ALPHATRACK LTD,"1,213.05",ENG CONTRACTS (NORTH),TV AERIALS R&M,5902309925,1000071955
03.07.2018,ASSET MANAGEMENT,FRANKHAM CONSULTANCY GROUP LTD,"1,675.00",MAJOR REPAIRS,BUILDING R&M,5902309861,1000043952
03.07.2018,ASSET MANAGEMENT,1st ACTIVE PROPERTY SERVICES LTD,252,R&M CONTRACTS (SOUTH),BUILDING R&M,2102834893,3000001655
03.07.2018,ASSET MANAGEMENT,UNIVERSITY COLLEGE OF ESTATE MANAGEMENT,"4,725.00",REPAIRS OPERATIONS,TRAINING,5902310069,1000080774
03.07.2018,BERMONDSEY AND ROTHERHITHE COMMUNITY COUNCIL,CITY HOPE CHURCH,"2,800.00",LIFESKILLS GROUP,GRANT,CHEQUE PAYMENT,CHEQUE PAYMENT
03.07.2018,BERMONDSEY AND ROTHERHITHE COMMUNITY COUNCIL,GLOBAL GENERATION,"4,100.00",WISDOM THROUGH THE AGES,GRANT,CHEQUE PAYMENT,CHEQUE PAYMENT
03.07.2018,CHIEF EXECUTIVE,ANDREA TYRIMOS,"2,200.00",CAPITAL PS (REGEN),CONST'N MAIN CONTRACT - NON CERTIFICATED,5902310033,1000069827
03.07.2018,CHIEF EXECUTIVE,LONDON FORGE ENGINEERING LTD,"5,620.00",CAPITAL PS (REGEN),CONSTRUCTION,2102834895,3000001755
03.07.2018,CHIEF EXECUTIVE,ADAMS AND SUTHERLAND,"1,400.00",CAPITAL PS (REGEN),CONSTRUCTION FEES,5902309879,1000066083
03.07.2018,CHIEF EXECUTIVE,NEILCOTT SPECIAL WORKS LTD,"343,594.82",CAPITAL PS (REGEN),CONSTRUCTION FEES,2102834897,3000000770
03.07.2018,CHIEF EXECUTIVE,ADVANCED TRANSPORT RESEARCH LTD,540,CAPITAL PS (REGEN),CONSTRUCTION FEES  - EXTERNAL,5902309875,1000070527
03.07.2018,CHIEF EXECUTIVE,FAITHFUL & GOULD,"2,772.17",CAPITAL PS (REGEN),CONSTRUCTION FEES  - EXTERNAL,5902309993,1000061390
03.07.2018,CHIEF EXECUTIVE,FAITHFUL & GOULD,"6,808.67",CAPITAL PS (REGEN),CONSTRUCTION FEES  - EXTERNAL,5902309993,1000061390
03.07.2018,CHILDREN AND ADULT,GLEEDS ADVISORY LTD,800,CAPITAL PS (EDUCATION),CONSTRUCTION FEES  - EXTERNAL,5902310053,1000076155
03.07.2018,CHILDREN AND ADULT,GLEEDS ADVISORY LTD,"1,580.00",CAPITAL PS (EDUCATION),CONSTRUCTION FEES  - EXTERNAL,5902310055,1000076155
03.07.2018,CHILDREN AND ADULT,BRESLIN CONSTRUCTION LTD,"3,450.00",CAPITAL PS (EDUCATION),CONSTRUCTION MAIN CONTRACT -CERTIFICATED,2102834887,3000001948
03.07.2018,CHILDREN'S SERVICES,SANKOFA CARE LTD,439.24,AGENCY FOSTERING,EXTERNAL AGENCIES AND BODIES,5902309908,1000030717
03.07.2018,CHILDREN'S SERVICES,WEB-LABS LTD,"2,000.00",AIS - MASH,COMMS & COMPUTING CONTRACT CHARGES,5902310085,1000039819
03.07.2018,CHILDREN'S SERVICES,THE COMPLETE WORKS INDEPENDENT SCHOOL,"-54,000.00",ALTERNATIVE PROVISION,EXTERNAL AGENCIES AND BODIES,5902309756,1000033256
03.07.2018,CHILDREN'S SERVICES,THE COMPLETE WORKS INDEPENDENT SCHOOL,"45,000.00",ALTERNATIVE PROVISION,EXTERNAL AGENCIES AND BODIES,5902309765,1000033256
03.07.2018,CHILDREN'S SERVICES,PRENDERGAST VALE COLLEGE,"4,194.64",CASEWORK OLA  0-8,CENTRAL GOVERNMENT,2102834828,1000073164
03.07.2018,CHILDREN'S SERVICES,PRENDERGAST VALE COLLEGE,"6,160.87",CASEWORK OLA  0-8,CENTRAL GOVERNMENT,2102834827,1000073164
03.07.2018,CHILDREN'S SERVICES,THE LONDON NAUTICAL SCHOOL,"26,533.61",CASEWORK OLA  0-8,CENTRAL GOVERNMENT,2102834820,1000053815
03.07.2018,CHILDREN'S SERVICES,CENMAC,"1,996.00",CASEWORK OLA  0-8,OP LEASE/HIRE CHARGES:PLANT/EQUIP/FURNIT,2102834815,1000042131
03.07.2018,CHILDREN'S SERVICES,THE WHITTINGTON HOSPITAL NHS TRUST,784.75,CASEWORK OLA  0-8,OTHER CONTRACTORS,2102834796,1000073133
03.07.2018,CHILDREN'S SERVICES,THE WHITTINGTON HOSPITAL NHS TRUST,"1,412.50",CASEWORK OLA  0-8,OTHER CONTRACTORS,2102834794,1000073133
03.07.2018,CHILDREN'S SERVICES,THE WHITTINGTON HOSPITAL NHS TRUST,"1,569.50",CASEWORK OLA  0-8,OTHER CONTRACTORS,2102834795,1000073133
03.07.2018,CHILDREN'S SERVICES,THE WHITTINGTON HOSPITAL NHS TRUST,"1,569.50",CASEWORK OLA  0-8,OTHER CONTRACTORS,2102834797,1000073133
03.07.2018,CHILDREN'S SERVICES,HILLCREST AUTISM SERVICES LTD,"14,844.00",CASEWORK OLA  0-8,RECOUPMENT,2102834805,1000073628
03.07.2018,CHILDREN'S SERVICES,QUEEN ELIZABETH II JUBILEE SCHOOL,400,CASEWORK OLA  0-8,RECOUPMENT,2102834824,1000072956
03.07.2018,CHILDREN'S SERVICES,QUEEN ELIZABETH II JUBILEE SCHOOL,"2,600.00",CASEWORK OLA  0-8,RECOUPMENT,2102834823,1000072956
03.07.2018,CHILDREN'S SERVICES,WYVIL PRIMARY SCHOOL,"3,331.33",CASEWORK OLA  0-8,RECOUPMENT,2102834831,1000038919
03.07.2018,CHILDREN'S SERVICES,FLEET TUTORS,765,CASEWORK OLA  0-8,"SCHOOLS CAPITATION, OTHER GRANTS",2102834807,1000044820
03.07.2018,CHILDREN'S SERVICES,THE COMPLETE WORKS INDEPENDENT SCHOOL,"7,000.00",CASEWORK OLA  0-8,"SCHOOLS CAPITATION, OTHER GRANTS",2102834785,1000033256
03.07.2018,CHILDREN'S SERVICES,THE COMPLETE WORKS INDEPENDENT SCHOOL,"7,000.00",CASEWORK OLA  0-8,"SCHOOLS CAPITATION, OTHER GRANTS",2102834787,1000033256
03.07.2018,CHILDREN'S SERVICES,THE COMPLETE WORKS INDEPENDENT SCHOOL,"7,000.00",CASEWORK OLA  0-8,"SCHOOLS CAPITATION, OTHER GRANTS",2102834791,1000033256
03.07.2018,CHILDREN'S SERVICES,THE COMPLETE WORKS INDEPENDENT SCHOOL,"15,448.28",CASEWORK OLA  0-8,"SCHOOLS CAPITATION, OTHER GRANTS",2102834792,1000033256
03.07.2018,CHILDREN'S SERVICES,BESSEMER GRANGE PRIMARY SCHOOL,"10,185.57",CASEWORK SOUTHWARK 0-8,CONTRIBUTION TO PROVISIONS (TP PAYMENTS),2102834798,5001000009
03.07.2018,CHILDREN'S SERVICES,CHERRY GARDEN SCHOOL,"2,760.00",CASEWORK SOUTHWARK 0-8,CONTRIBUTION TO PROVISIONS (TP PAYMENTS),2102834812,5001000020
03.07.2018,CHILDREN'S SERVICES,CHERRY GARDEN SCHOOL,"6,022.00",CASEWORK SOUTHWARK 0-8,CONTRIBUTION TO PROVISIONS (TP PAYMENTS),2102834813,5001000020
03.07.2018,CHILDREN'S SERVICES,CENMAC,"19,140.60",CASEWORK SOUTHWARK 0-8,OP LEASE/HIRE CHARGES:PLANT/EQUIP/FURNIT,2102834814,1000042131
03.07.2018,CHILDREN'S SERVICES,BEYONDAUTISM,"3,600.00",CASEWORK SOUTHWARK 0-8,OTHER CONTRACTORS,2102834802,1000080312
03.07.2018,CHILDREN'S SERVICES,BEYONDAUTISM,"4,200.00",CASEWORK SOUTHWARK 0-8,OTHER CONTRACTORS,2102834804,1000080312
03.07.2018,CHILDREN'S SERVICES,BEYONDAUTISM,"18,000.00",CASEWORK SOUTHWARK 0-8,OTHER CONTRACTORS,2102834803,1000080312
03.07.2018,CHILDREN'S SERVICES,CAVENDISH SCHOOL,"3,506.46",CASEWORK SOUTHWARK 0-8,RECOUPMENT,2102834818,1000024278
03.07.2018,CHILDREN'S SERVICES,HARRIS GIRLS ACADEMY EAST DULWICH,"18,368.66",CASEWORK SOUTHWARK 0-8,STATEMENTED FEES,2102834810,1000052853
03.07.2018,CHILDREN'S SERVICES,WALWORTH ACADEMY,"9,708.87",CASEWORK SOUTHWARK 0-8,STATEMENTED FEES,2102834800,1000062868
03.07.2018,CHILDREN'S SERVICES,TFL TELESALES / OYSTER FULFILMENT,555,CENTRAL COSTS - SEN,PUBLIC TRANSPORT,5902310073,1000059727
03.07.2018,CHILDREN'S SERVICES,REDACTED PERSONAL DATA,300,DISABILITY & HIV,ADDITIONAL PAYMENTS TO AGENCIES/CARERS,REDACTED,REDACTED
03.07.2018,CHILDREN'S SERVICES,HUMANWARE EUROPE LTD,"2,385.00",HEARING AND VISUAL IMPAIRMENT TEAM,EQUIPMENT PURCHASE & REPAIR,5902310031,1000068335
03.07.2018,CHILDREN'S SERVICES,HADDON HALL BAPTIST CHURCH,540,LEA MUSIC SERVICE(310) - 5018566,CONSULTANTS SERVICES,5902309897,1000000937
03.07.2018,CHILDREN'S SERVICES,PSYCHOLOGIE (UK) LTD,471.42,LEGAL,LEGAL FEES & COURT COSTS,2102834872,1000081321
03.07.2018,CHILDREN'S SERVICES,JULIAN DATE,475,LEGAL,LEGAL FEES & COURT COSTS,2102834866,1000068743
03.07.2018,CHILDREN'S SERVICES,OLIVER WOOLLEY,500,LEGAL,LEGAL FEES & COURT COSTS,2102834871,1000081234
03.07.2018,CHILDREN'S SERVICES,SERVELEC SYNERGY LTD,"10,290.00",LOCALITIES INCLUSION TEAM,COMMS & COMPUTING CONTRACT CHARGES,5902310114,1000077688
03.07.2018,CHILDREN'S SERVICES,ARC COMMUNITY TRUSTEES,"11,670.37",NURSERY ED GRANT 3 YEAR OLD,GRANTS,2102834567,1000046206
03.07.2018,CHILDREN'S SERVICES,BUDS DAY NURSERY LTD,"23,545.01",NURSERY ED GRANT 3 YEAR OLD,GRANTS,2102834563,1000032347
03.07.2018,CHILDREN'S SERVICES,DEBORAH SMITH,580.12,NURSERY ED GRANT 3 YEAR OLD,GRANTS,2102834570,1000027477
03.07.2018,CHILDREN'S SERVICES,JOY ALLI,"33,248.47",NURSERY ED GRANT 3 YEAR OLD,GRANTS,2102834573,1000074965
03.07.2018,CHILDREN'S SERVICES,LITTLE WINNERS DAY NURSERY 1,"30,878.25",NURSERY ED GRANT 3 YEAR OLD,GRANTS,2102834572,1000041814
03.07.2018,CHILDREN'S SERVICES,LITTLEPIPS PRESCHOOL,"6,269.02",NURSERY ED GRANT 3 YEAR OLD,GRANTS,2102834571,1000079580
03.07.2018,CHILDREN'S SERVICES,LOGICOUS LTD,"21,380.77",NURSERY ED GRANT 3 YEAR OLD,GRANTS,2102834569,1000073852
03.07.2018,CHILDREN'S SERVICES,MAGIC ROUNDABOUT NURSERIES LTD,"47,756.47",NURSERY ED GRANT 3 YEAR OLD,GRANTS,2102834568,1000045128
03.07.2018,CHILDREN'S SERVICES,NICKI DAY NURSERY LTD,"37,107.52",NURSERY ED GRANT 3 YEAR OLD,GRANTS,2102834575,1000045363
03.07.2018,CHILDREN'S SERVICES,ROCKINGHAM COMMUNITY NURSERY,"51,523.87",NURSERY ED GRANT 3 YEAR OLD,GRANTS,2102834566,1095826
03.07.2018,CHILDREN'S SERVICES,DYASON PRE-SCHOOL,"14,057.55",NURSERY ED GRANT 3 YEAR OLD,GRANTS,2102834564,11255736
03.07.2018,CHILDREN'S SERVICES,JOHN DONNE PRIMARY SCHOOL,"27,499.87",NURSERY ED GRANT 3 YEAR OLD,GRANTS,2102834565,1000073253
03.07.2018,CHILDREN'S SERVICES,ST MARY'S PRE-SCHOOL,"15,145.53",NURSERY ED GRANT 3 YEAR OLD,GRANTS,2102834574,11223522
03.07.2018,CHILDREN'S SERVICES,THE LONDON NAUTICAL SCHOOL,"19,511.75",PFA TEAM SOUTHWARK 9 PLUS,CENTRAL GOVERNMENT,2102834821,1000053815
03.07.2018,CHILDREN'S SERVICES,REDACTED PERSONAL DATA,540,PFA TEAM SOUTHWARK 9 PLUS,CONTRIBUTION TO PROVISIONS (TP PAYMENTS),REDACTED,REDACTED
03.07.2018,CHILDREN'S SERVICES,CENMAC,"7,360.50",PFA TEAM SOUTHWARK 9 PLUS,OP LEASE/HIRE CHARGES:PLANT/EQUIP/FURNIT,2102834816,1000042131
03.07.2018,CHILDREN'S SERVICES,CENMAC,"1,790.07",PFA TEAM SOUTHWARK 9 PLUS,OP LEASE/HIRE CHARGES:PLANT/EQUIP/FURNIT,2102834817,1000042131
03.07.2018,CHILDREN'S SERVICES,GRYPHON HOUSE LTD,"24,038.00",PFA TEAM SOUTHWARK 9 PLUS,RECOUPMENT,2102834830,1000078955
03.07.2018,CHILDREN'S SERVICES,HILLCREST AUTISM SERVICES LTD,"93,844.00",PFA TEAM SOUTHWARK 9 PLUS,RECOUPMENT,2102834806,1000073628
03.07.2018,CHILDREN'S SERVICES,SURREY COUNTY COUNCIL,"3,347.00",PFA TEAM SOUTHWARK 9 PLUS,RECOUPMENT,2102834825,11172591
03.07.2018,CHILDREN'S SERVICES,BEATRICE TATE SCHOOL,"8,558.30",PFA TEAM SOUTHWARK 9 PLUS,RECOUPMENT,2102834826,1000054132
03.07.2018,CHILDREN'S SERVICES,CAVENDISH SCHOOL,"3,506.46",PFA TEAM SOUTHWARK 9 PLUS,RECOUPMENT,2102834819,1000024278
03.07.2018,CHILDREN'S SERVICES,THE COMPLETE WORKS INDEPENDENT SCHOOL,"-7,000.00",PFA TEAM SOUTHWARK 9 PLUS,"SCHOOLS CAPITATION, OTHER GRANTS",2102834834,1000033256
03.07.2018,CHILDREN'S SERVICES,THE COMPLETE WORKS INDEPENDENT SCHOOL,760,PFA TEAM SOUTHWARK 9 PLUS,"SCHOOLS CAPITATION, OTHER GRANTS",2102834793,1000033256
03.07.2018,CHILDREN'S SERVICES,THE COMPLETE WORKS INDEPENDENT SCHOOL,"4,500.00",PFA TEAM SOUTHWARK 9 PLUS,"SCHOOLS CAPITATION, OTHER GRANTS",2102834789,1000033256
03.07.2018,CHILDREN'S SERVICES,THE COMPLETE WORKS INDEPENDENT SCHOOL,"7,000.00",PFA TEAM SOUTHWARK 9 PLUS,"SCHOOLS CAPITATION, OTHER GRANTS",2102834784,1000033256
03.07.2018,CHILDREN'S SERVICES,THE COMPLETE WORKS INDEPENDENT SCHOOL,"7,000.00",PFA TEAM SOUTHWARK 9 PLUS,"SCHOOLS CAPITATION, OTHER GRANTS",2102834790,1000033256
03.07.2018,CHILDREN'S SERVICES,THE COMPLETE WORKS INDEPENDENT SCHOOL,"116,413.80",PFA TEAM SOUTHWARK 9 PLUS,"SCHOOLS CAPITATION, OTHER GRANTS",2102834786,1000033256
03.07.2018,CHILDREN'S SERVICES,THE COMPLETE WORKS INDEPENDENT SCHOOL,"131,379.32",PFA TEAM SOUTHWARK 9 PLUS,"SCHOOLS CAPITATION, OTHER GRANTS",2102834788,1000033256
03.07.2018,CHILDREN'S SERVICES,CAPEL MANOR COLLEGE,"3,826.83",PFA TEAM SOUTHWARK 9 PLUS,"SCHOOLS CAPITATION, STANDARDS FUND",2102834829,1000044937
03.07.2018,CHILDREN'S SERVICES,ORCHARD HILL COLLEGE,"3,666.67",PFA TEAM SOUTHWARK 9 PLUS,"SCHOOLS CAPITATION, STANDARDS FUND",2102834809,1000070978
03.07.2018,CHILDREN'S SERVICES,GREENSHAW LEARNING TRUST,"4,194.54",PFA TEAM SOUTHWARK 9 PLUS,STATEMENTED FEES,2102834822,1000077707
03.07.2018,CHILDREN'S SERVICES,HARRIS GIRLS ACADEMY EAST DULWICH,"5,514.23",PFA TEAM SOUTHWARK 9 PLUS,STATEMENTED FEES,2102834811,1000052853
03.07.2018,CHILDREN'S SERVICES,WALWORTH ACADEMY,"32,542.68",PFA TEAM SOUTHWARK 9 PLUS,STATEMENTED FEES,2102834801,1000062868
03.07.2018,CHILDREN'S SERVICES,ACORN HOMES (UK) LTD,"10,500.00",RESIDENTIAL,RESIDENTIAL CARE,2102834744,1000080423
03.07.2018,CHILDREN'S SERVICES,ALLIANCE CARE & EDUCATION LTD,"2,550.00",RESIDENTIAL,RESIDENTIAL CARE,2102834753,1000079956
03.07.2018,CHILDREN'S SERVICES,ALLIANCE CARE & EDUCATION LTD,"17,657.10",RESIDENTIAL,RESIDENTIAL CARE,2102834755,1000079956
03.07.2018,CHILDREN'S SERVICES,CAMBIAN CHILDCARE LTD,"20,571.30",RESIDENTIAL,RESIDENTIAL CARE,2102834756,1000075351
03.07.2018,CHILDREN'S SERVICES,CASTLE HOMES LIMITED,"16,344.69",RESIDENTIAL,RESIDENTIAL CARE,2102834741,1000019388
03.07.2018,CHILDREN'S SERVICES,CHILDHOOD FIRST,"18,428.57",RESIDENTIAL,RESIDENTIAL CARE,2102834739,1000076330
03.07.2018,CHILDREN'S SERVICES,CHILDHOOD FIRST,"19,080.00",RESIDENTIAL,RESIDENTIAL CARE,2102834740,1000076330
03.07.2018,CHILDREN'S SERVICES,ESLAND SOUTH LTD,"28,928.57",RESIDENTIAL,RESIDENTIAL CARE,2102834745,1000074184
03.07.2018,CHILDREN'S SERVICES,FOOTSTEPS CARE LTD,"15,026.96",RESIDENTIAL,RESIDENTIAL CARE,2102834750,1000045464
03.07.2018,CHILDREN'S SERVICES,HILLCREST CHILDRENS SERVICES LTD,"15,900.00",RESIDENTIAL,RESIDENTIAL CARE,2102834747,1000077489
03.07.2018,CHILDREN'S SERVICES,INMIND CHILDRENS SERVICES LTD,"31,928.40",RESIDENTIAL,RESIDENTIAL CARE,2102834749,1000078280
03.07.2018,CHILDREN'S SERVICES,MEADOWS CARE LTD,"1,020.00",RESIDENTIAL,RESIDENTIAL CARE,5902309911,1000077238
03.07.2018,CHILDREN'S SERVICES,MEADOWS CARE LTD,"16,714.29",RESIDENTIAL,RESIDENTIAL CARE,2102834746,1000077238
03.07.2018,CHILDREN'S SERVICES,PLUS ONE LTD,"15,852.86",RESIDENTIAL,RESIDENTIAL CARE,2102834754,1000013874
03.07.2018,CHILDREN'S SERVICES,PRESTIGE ADOLESCENT CARE & EDUCATION LTD,"15,522.90",RESIDENTIAL,RESIDENTIAL CARE,2102834742,1000077596
03.07.2018,CHILDREN'S SERVICES,REAMCARE LTD,"17,571.42",RESIDENTIAL,RESIDENTIAL CARE,2102834751,1000078284
03.07.2018,CHILDREN'S SERVICES,SANKOFA CARE LTD,"18,000.00",RESIDENTIAL,RESIDENTIAL CARE,2102834748,1000030717
03.07.2018,CHILDREN'S SERVICES,THE AMICUS COMMUNITY (ARUNDEL) LTD,"18,214.20",RESIDENTIAL,RESIDENTIAL CARE,2102834752,1000079012
03.07.2018,CHILDREN'S SERVICES,THE AMICUS COMMUNITY (ARUNDEL) LTD,"19,907.10",RESIDENTIAL,RESIDENTIAL CARE,2102834743,1000079012
03.07.2018,CHILDREN'S SERVICES,ALFRED SALTER PRIMARY SCHOOL,"2,065.00",S & FAM SUPP - PRAC GRP F SET 29-31,OTHER PAYMENTS FOR CLIENTS,5902310082,5001000005
03.07.2018,CHILDREN'S SERVICES,SAFEHOUSES LTD,"3,858.00",S24 CLA,EXTERNAL AGENCIES AND BODIES,5902309915,1000053994
03.07.2018,CHILDREN'S SERVICES,HEALTHCARE & TRANSPORT SERVICES,"51,508.37",SCH TRANS - CONTRACT COST,CAB FARES,5902309950,1000042743
03.07.2018,CHILDREN'S SERVICES,CRUCKTON HALL SCHOOL,544.36,SCH TRANS - CONTRACT COST,OTHER PAYMENTS FOR CLIENTS,5902310009,1000060937
03.07.2018,CHILDREN'S SERVICES,TEAM STEPS,485,SEMI INDEPENDENT,EXTERNAL AGENCIES AND BODIES,5902309907,1000081037
03.07.2018,CHILDREN'S SERVICES,TEAM STEPS,"8,000.00",SEMI INDEPENDENT,EXTERNAL AGENCIES AND BODIES,5902309907,1000081037
03.07.2018,CHILDREN'S SERVICES,DIVERSE CARE (UK) LTD,"1,671.30",STAYING PUT,EXTERNAL AGENCIES AND BODIES,5902309910,1000055636
03.07.2018,CHILDREN'S SERVICES,INTEGRATED SERVICES PROGRAMME,"2,334.00",STAYING PUT,EXTERNAL AGENCIES AND BODIES,5902309914,1642068
03.07.2018,CHILDREN'S SERVICES,REVIVAL,330,YOS SUPPORT,MEDICAL / HEALTH & SAFETY SERVICES,5902310092,1000027424
03.07.2018,COLLECTION FUNDS,GREATER LONDON AUTHORITY,"3,130,664.63",GLA PRECEPT,LEVIES,5902309945,1000015827
03.07.2018,COMMISSIONING & CENTRAL,SIGNIS LTD,500,CSW - PROFESSIONAL DEVELOPMENT,TRAINING,5902309917,1000075765
03.07.2018,COMMUNITIES,SOUTHWARK GROUP OF TENANTS ORGANISATION,"58,187.00",TENANTS FUND,EXTERNAL AGENCIES AND BODIES,5902309928,1479419
03.07.2018,COMMUNITIES,ASTLEY COOPERS (ASCO) T&RA,"2,524.50",TENANTS FUND,GRANTS,5902310030,11059315
03.07.2018,COMMUNITIES,AAINA WOMEN GROUP,"8,018.25",VCS GRANTS,GRANTS,5902309941,1000002442
03.07.2018,COMMUNITIES,AYLESBURY EVERY WOMAN'S CENTRE,"3,600.00",VCS GRANTS,GRANTS,5902309949,1000042216
03.07.2018,COMMUNITIES,BEDE HSE,"3,475.50",VCS GRANTS,GRANTS,5902309936,11248731
03.07.2018,COMMUNITIES,BEORMUND COMMUNITY CENTRE,"17,437.25",VCS GRANTS,GRANTS,5902309935,11048982
03.07.2018,COMMUNITIES,BERMONDSEY COMMUNITY KITCHEN,"3,500.00",VCS GRANTS,GRANTS,5902309963,1000075477
03.07.2018,COMMUNITIES,BLACKFRIARS SETTLEMENT,"5,574.75",VCS GRANTS,GRANTS,5902309962,1000071456
03.07.2018,COMMUNITIES,CAMBRIDGE HOUSE & TALBOT,"3,475.50",VCS GRANTS,GRANTS,5902309937,11248874
03.07.2018,COMMUNITIES,CRYSTAL PALACE COMM DEV TRUST,"2,264.75",VCS GRANTS,GRANTS,5902309954,1000054200
03.07.2018,COMMUNITIES,EAST DULWICH COMMUNITY CENTRE,"1,740.00",VCS GRANTS,GRANTS,5902309933,1968633
03.07.2018,COMMUNITIES,LATIN AMERICAN DISABLED PEOPLE PROJECT,"4,000.00",VCS GRANTS,GRANTS,5902309955,1000058588
03.07.2018,COMMUNITIES,LATIN AMERICAN WOMEN'S RIGHTS SERVICES,"3,400.00",VCS GRANTS,GRANTS,5902309957,1000068356
03.07.2018,COMMUNITIES,LONDON WILDLIFE TRUST,"7,968.75",VCS GRANTS,GRANTS,5902309931,1832374
03.07.2018,COMMUNITIES,MENTAL FIGHT CLUB,"1,870.00",VCS GRANTS,GRANTS,5902309953,1000051170
03.07.2018,COMMUNITIES,ORGANISATION OF BLIND AFRICANS & CARIBBEANS,"4,084.25",VCS GRANTS,GRANTS,5902309940,1000002281
03.07.2018,COMMUNITIES,PAXTON GREEN TIME BANK,"3,600.00",VCS GRANTS,GRANTS,5902309959,1000070648
03.07.2018,COMMUNITIES,PECAN LTD,"13,292.00",VCS GRANTS,GRANTS,5902309938,11263114
03.07.2018,COMMUNITIES,SOMALI INTEGRATION & DEVELOPMENT ASSOCIATION,"13,222.50",VCS GRANTS,GRANTS,5902309934,11048946
03.07.2018,COMMUNITIES,SOUTHWARK CITIZENS ADVICE,"5,600.00",VCS GRANTS,GRANTS,5902309932,1874379
03.07.2018,COMMUNITIES,SOUTHWARK PENSIONERS CENTRE,"28,355.25",VCS GRANTS,GRANTS,5902309946,1000027831
03.07.2018,COMMUNITIES,SOUTHWARK TRAVELLERS' ACTION,"5,750.00",VCS GRANTS,GRANTS,5902309965,1000077795
03.07.2018,COMMUNITIES,ST FAITHS COMMUNITY CENTRE,"5,115.25",VCS GRANTS,GRANTS,5902309927,1039446
03.07.2018,COMMUNITIES,SURREY DOCKS FARM PROVIDENT SOCIETY,"10,678.25",VCS GRANTS,GRANTS,5902309939,1000000958
03.07.2018,COMMUNITIES,SWK DAY CTR FOR ASYLUM SEEKERS,"11,330.25",VCS GRANTS,GRANTS,5902309948,1000040491
03.07.2018,COMMUNITIES,THE BIKE PROJECT,"3,750.00",VCS GRANTS,GRANTS,5902309964,1000077217
03.07.2018,COMMUNITIES,THE MANNA CENTRE,"13,750.00",VCS GRANTS,GRANTS,5902309952,1000048508
03.07.2018,COMMUNITIES,TIME & TALENTS ASSOCIATION,"4,543.25",VCS GRANTS,GRANTS,5902309929,1757632
03.07.2018,COMMUNITIES,WORKING WITH MEN,"3,600.00",VCS GRANTS,GRANTS,5902309951,1000046010
03.07.2018,CUSTOMER EXPERIENCE HGF,GALAXY LETTINGS LTD,"77,153.10",NIGHTLY TA (NSC),EXTERNAL AGENCIES AND BODIES,5902309868,1000055897
03.07.2018,ENVIRONMENT AND LEISURE,JUDITH KERR PRIMARY SCHOOL,"6,390.20",CAPITAL PS (LEISURE),CAPITAL GRANTS,5902309966,1000073200
03.07.2018,ENVIRONMENT AND LEISURE,INTO SERVICES LONDON LTD,593,CAPITAL PS (LEISURE),CONST'N MAIN CONTRACT - NON CERTIFICATED,5902309768,1000059328
03.07.2018,ENVIRONMENT AND LEISURE,FENLAND LEISURE PRODUCTS LTD,"2,117.67",CAPITAL PS (LEISURE),CONSTRUCTION FEES,2102834891,3000001785
03.07.2018,ENVIRONMENT DIRECTORATE,COMPLETE TREE CARE LTD,"3,391.17",NON HOUSING GROUNDS,AGENCY STAFF,5902310066,1000041410
03.07.2018,ENVIRONMENT DIRECTORATE,REBECCA DAVIES,350,SASBU,LEGAL FEES & COURT COSTS,2102834878,1000081314
03.07.2018,ENVIRONMENT DIRECTORATE,STORM ENVIRONMENTAL LTD,"17,143.00",STREET CLEANSING,EQUIPMENT PURCHASE & REPAIR,5902310047,1000079954
03.07.2018,ENVIRONMENT DIRECTORATE,SOUTHWARK NEWSPAPER LTD,288,STREET WORKS OVERHEADS,MARKETING & PUBLICITY SERVICES,5902309871,1556957
03.07.2018,ENVIRONMENT DIRECTORATE,SOUTHWARK NEWSPAPER LTD,288,STREET WORKS OVERHEADS,MARKETING & PUBLICITY SERVICES,5902309881,1556957
03.07.2018,ENVIRONMENT DIRECTORATE,SOUTHWARK NEWSPAPER LTD,288,STREET WORKS OVERHEADS,MARKETING & PUBLICITY SERVICES,5902309885,1556957
03.07.2018,ENVIRONMENT DIRECTORATE,SOUTHWARK NEWSPAPER LTD,288,STREET WORKS OVERHEADS,MARKETING & PUBLICITY SERVICES,5902309895,1556957
03.07.2018,ENVIRONMENT DIRECTORATE,SOUTHWARK NEWSPAPER LTD,288,STREET WORKS OVERHEADS,MARKETING & PUBLICITY SERVICES,5902309903,1556957
03.07.2018,ENVIRONMENT DIRECTORATE,SOUTHWARK NEWSPAPER LTD,288,STREET WORKS OVERHEADS,MARKETING & PUBLICITY SERVICES,5902309904,1556957
03.07.2018,ENVIRONMENT DIRECTORATE,SOUTHWARK NEWSPAPER LTD,300,STREET WORKS OVERHEADS,MARKETING & PUBLICITY SERVICES,5902309869,1556957
03.07.2018,ENVIRONMENT DIRECTORATE,SOUTHWARK NEWSPAPER LTD,300,STREET WORKS OVERHEADS,MARKETING & PUBLICITY SERVICES,5902309889,1556957
03.07.2018,ENVIRONMENT DIRECTORATE,SOUTHWARK NEWSPAPER LTD,300,STREET WORKS OVERHEADS,MARKETING & PUBLICITY SERVICES,5902309902,1556957
03.07.2018,ENVIRONMENT DIRECTORATE,SOUTHWARK NEWSPAPER LTD,312,STREET WORKS OVERHEADS,MARKETING & PUBLICITY SERVICES,5902309899,1556957
03.07.2018,ENVIRONMENT DIRECTORATE,SOUTHWARK NEWSPAPER LTD,324,STREET WORKS OVERHEADS,MARKETING & PUBLICITY SERVICES,5902309863,1556957
03.07.2018,ENVIRONMENT DIRECTORATE,VEOLIA ES SOUTHWARK LTD,"4,626.00",WASTE PFI,PFI/PPP PAYMENTS,5902310099,1000056979
03.07.2018,ENVIRONMENT DIRECTORATE,VEOLIA ES SOUTHWARK LTD,"6,168.00",WASTE PFI,PFI/PPP PAYMENTS,5902310107,1000056979
03.07.2018,ENVIRONMENT DIRECTORATE,VEOLIA ES SOUTHWARK LTD,"6,380.45",WASTE PFI,PFI/PPP PAYMENTS,5902310095,1000056979
03.07.2018,ENVIRONMENT DIRECTORATE,VEOLIA ES SOUTHWARK LTD,"6,939.00",WASTE PFI,PFI/PPP PAYMENTS,5902310103,1000056979
03.07.2018,ENVIRONMENT DIRECTORATE,VEOLIA ES SOUTHWARK LTD,"6,939.00",WASTE PFI,PFI/PPP PAYMENTS,5902310107,1000056979
03.07.2018,F & C S EXCLUDING CORPORATE BUDGETS,DSI BILLING SERVICES LTD,"2,199.66",ADMINISTRATIVE SUPPORT,POSTAGES,5902310070,1000058640
03.07.2018,F & C S EXCLUDING CORPORATE BUDGETS,NORTHGATE PUBLIC SERVICES (UK) LTD,"9,166.67",ADMINISTRATIVE SUPPORT,PRINTING,5902310079,1000037405
03.07.2018,F & C S EXCLUDING CORPORATE BUDGETS,GANDLAKE LTD,"8,151.60",ADMINISTRATIVE SUPPORT,SOFTWARE,5902310060,1000064814
03.07.2018,F & C S EXCLUDING CORPORATE BUDGETS,NORTHGATE PUBLIC SERVICES (UK) LTD,900,ADMINISTRATIVE SUPPORT,SOFTWARE,5902310065,1000037405
03.07.2018,FINANCE & GOVERNANCE,LAND REGISTRY,806,REGENERATION,LEGAL FEES & COURT FEES,6101839270,DIRECT DEBIT PAYMENT
03.07.2018,HOUSING GENERAL FUND,FRANKHAM CONSULTANCY GROUP LTD,543.68,CAPITAL PS (HOUSING GF),CAPITAL GRANTS,5902310032,1000043952
03.07.2018,HOUSING GENERAL FUND,FRANKHAM CONSULTANCY GROUP LTD,566.16,CAPITAL PS (HOUSING GF),CAPITAL GRANTS,5902310117,1000043952
03.07.2018,HOUSING GENERAL FUND,FRANKHAM CONSULTANCY GROUP LTD,575.6,CAPITAL PS (HOUSING GF),CAPITAL GRANTS,5902310118,1000043952
03.07.2018,HOUSING GENERAL FUND,FRANKHAM CONSULTANCY GROUP LTD,580.28,CAPITAL PS (HOUSING GF),CAPITAL GRANTS,5902310027,1000043952
03.07.2018,HOUSING GENERAL FUND,FRANKHAM CONSULTANCY GROUP LTD,589.2,CAPITAL PS (HOUSING GF),CAPITAL GRANTS,5902310061,1000043952
03.07.2018,HOUSING GENERAL FUND,FRANKHAM CONSULTANCY GROUP LTD,619.6,CAPITAL PS (HOUSING GF),CAPITAL GRANTS,5902310064,1000043952
03.07.2018,HOUSING GENERAL FUND,FRANKHAM CONSULTANCY GROUP LTD,622,CAPITAL PS (HOUSING GF),CAPITAL GRANTS,5902310011,1000043952
03.07.2018,HOUSING GENERAL FUND,TRINITY CONSTRUCTION SERVICES LTD,"6,796.00",CAPITAL PS (HOUSING GF),CAPITAL GRANTS,5902310038,1000058327
03.07.2018,HOUSING GENERAL FUND,TRINITY CONSTRUCTION SERVICES LTD,"7,253.50",CAPITAL PS (HOUSING GF),CAPITAL GRANTS,5902310034,1000058327
03.07.2018,HOUSING GENERAL FUND,TRINITY CONSTRUCTION SERVICES LTD,"7,525.00",CAPITAL PS (HOUSING GF),CAPITAL GRANTS,5902310017,1000058327
03.07.2018,HOUSING GENERAL FUND,PORTAKABIN LIMITED,"1,035.66",CAPITAL PS (HOUSING GF),LAND & BUILDINGS ACQUISITION,5902310050,1000015195
03.07.2018,HOUSING GENERAL FUND,BRESLIN CONSTRUCTION LTD,"5,200.00",CAPITAL PS (REGEN),CONSTRUCTION MAIN CONTRACT -CERTIFICATED,2102834888,3000001948
03.07.2018,HOUSING GENERAL FUND,BRESLIN CONSTRUCTION LTD,"6,280.00",CAPITAL PS (REGEN),CONSTRUCTION MAIN CONTRACT -CERTIFICATED,2102834889,3000001948
03.07.2018,HOUSING HRA,AJMADAPTIONS LTD,"1,100.00",CAPITAL PS (HRA),CONST'N MAIN CONTRACT - NON CERTIFICATED,2102834900,3000002056
03.07.2018,HOUSING HRA,PRB ESTATES LTD,"26,185.00",CAPITAL PS (HRA),CONST'N MAIN CONTRACT - NON CERTIFICATED,2102834899,3000001691
03.07.2018,HOUSING HRA,LARK LANDSCAPE DESIGN LIMITED,"6,236.00",CAPITAL PS (HRA),CONSTRUCTION FEES,5902309918,1000035609
03.07.2018,HOUSING HRA,CALFORD SEADEN LLP,"-3,410.62",CAPITAL PS (HRA),CONSTRUCTION FEES  - EXTERNAL,5902310335,1061592
03.07.2018,HOUSING HRA,CALFORD SEADEN LLP,"3,410.62",CAPITAL PS (HRA),CONSTRUCTION FEES  - EXTERNAL,5902310333,1061592
03.07.2018,HOUSING HRA,ENDEAVOUR DRILLING LTD,950,CAPITAL PS (HRA),CONSTRUCTION FEES  - EXTERNAL,5902310040,1000079251
03.07.2018,HOUSING HRA,MLM CONSULTING ENGINEERS LTD,500,CAPITAL PS (HRA),CONSTRUCTION FEES  - EXTERNAL,5902309967,1000059806
03.07.2018,HOUSING HRA,MLM CONSULTING ENGINEERS LTD,807.5,CAPITAL PS (HRA),CONSTRUCTION FEES  - EXTERNAL,5902309975,1000059806
03.07.2018,HOUSING HRA,MLM CONSULTING ENGINEERS LTD,"2,071.88",CAPITAL PS (HRA),CONSTRUCTION FEES  - EXTERNAL,5902309970,1000059806
03.07.2018,HOUSING HRA,MOTT MACDONALD LTD,"1,000.00",CAPITAL PS (HRA),CONSTRUCTION FEES  - EXTERNAL,5902309850,1000067305
03.07.2018,HOUSING HRA,NIBLOCK (BUILDERS) LTD,"140,088.14",CAPITAL PS (HRA),CONSTRUCTION MAIN CONTRACT -CERTIFICATED,2102834898,3000000235
03.07.2018,LEISURE DIRECTORATE,COMPLETE ECOLOGY LTD,"1,595.00",BURGESS AREA TEAM,OTHER R&M,2102834890,3000001840
03.07.2018,LEISURE DIRECTORATE,LONDON FORGE ENGINEERING LTD,780,BURGESS AREA TEAM,OTHER R&M,2102834894,3000001755
03.07.2018,LEISURE DIRECTORATE,LONDON FORGE ENGINEERING LTD,820,BURGESS AREA TEAM,OTHER R&M,2102834894,3000001755
03.07.2018,LEISURE DIRECTORATE,CASTLE WATER LTD,453.53,CANADA WATER LIBRARY,WATER,5902309846,1000078867
03.07.2018,LEISURE DIRECTORATE,CAMBERWELL FAIR LTD,"8,000.00",CENTRAL FESTIVAL FUND,OP LEASE/HIRE CHARGES:PLANT/EQUIP/FURNIT,5902309586,1000075834
03.07.2018,LEISURE DIRECTORATE,FENLAND LEISURE PRODUCTS LTD,"18,899.85",PECKHAM RYE AREA TEAM,OTHER R&M,2102834892,3000001785
03.07.2018,MODERNISATION HGF,ROYAL MAIL GROUP LTD,"3,449.44",160 TOOLEY ST.,POSTAGES,5902310010,1000008168
03.07.2018,MODERNISATION HGF,ROYAL MAIL GROUP LTD,"3,813.00",160 TOOLEY ST.,POSTAGES,5902310005,1000008168
03.07.2018,MODERNISATION HGF,JOHN STATTERS ASSOCIATES,"1,425.00",HR PAYROLL COSTS,CONSULTANTS SERVICES,5902310043,1000065600
03.07.2018,MODERNISATION HGF,JOHN STATTERS ASSOCIATES,"1,900.00",HR PAYROLL COSTS,CONSULTANTS SERVICES,5902310042,1000065600
03.07.2018,MODERNISATION HGF,T2 SOLUTIONS 2000 LTD,475,HR PAYROLL COSTS,CONSULTANTS SERVICES,5902309866,1000080952
03.07.2018,MODERNISATION HGF,INSTITUTE OF LEADERSHIP,"2,599.00",ILM COSTS,TRAINING,5902310014,1000070935
03.07.2018,MODERNISATION HGF,SODEXO MOTIVATION SOLUTIONS UK LTD,"1,023.96",LONG SERVICE AWARDS,OTHER EMPLOYEE EXPENSES,5902309884,1000078322
03.07.2018,MODERNISATION HGF,SODEXO MOTIVATION SOLUTIONS UK LTD,"1,405.70",LONG SERVICE AWARDS,OTHER EMPLOYEE EXPENSES,5902309884,1000078322
03.07.2018,MODERNISATION HGF,ASSESSMENT & DEVELOPMENT,298.92,OCCUPATIONAL ASSESSMENT,EQUIPMENT PURCHASE & REPAIR,5902309877,1000008858
03.07.2018,MODERNISATION HGF,WORKING TRANSITIONS,-450,OUTPLACEMENTS,TRAINING,5902310018,1000063689
03.07.2018,MODERNISATION HGF,WORKING TRANSITIONS,450,OUTPLACEMENTS,TRAINING,5902310020,1000063689
03.07.2018,MODERNISATION HGF,WORKING TRANSITIONS,450,OUTPLACEMENTS,TRAINING,5902310028,1000063689
03.07.2018,MODERNISATION HGF,WORKING TRANSITIONS,600,OUTPLACEMENTS,TRAINING,5902310023,1000063689
03.07.2018,MODERNISATION HGF,WORKING TRANSITIONS,600,OUTPLACEMENTS,TRAINING,5902310035,1000063689
03.07.2018,MODERNISATION HGF,WORKING TRANSITIONS,"1,205.10",OUTPLACEMENTS,TRAINING,5902310039,1000063689
03.07.2018,MODERNISATION HGF,WORKING TRANSITIONS,"1,800.00",OUTPLACEMENTS,TRAINING,5902310036,1000063689
03.07.2018,MODERNISATION HGF,WORKING TRANSITIONS,"2,700.00",OUTPLACEMENTS,TRAINING,5902310016,1000063689
03.07.2018,PECKHAM AND NUNHEAD COMMUNITY COUNCIL,FRIENDS OF OURS MUSIC LTD,"1,800.00",,GRANT,CHEQUE PAYMENT,CHEQUE PAYMENT
03.07.2018,PLANNING AND TRANSPORT,SOUTHWARK NEWSPAPER LTD,336,DEVELOPMENT CONTROL ADMINSTRATION,MARKETING & PUBLICITY SERVICES,5902309905,1556957
03.07.2018,PLANNING AND TRANSPORT,SOUTHWARK NEWSPAPER LTD,336,DEVELOPMENT CONTROL ADMINSTRATION,MARKETING & PUBLICITY SERVICES,5902309912,1556957
03.07.2018,PLANNING AND TRANSPORT,SOUTHWARK NEWSPAPER LTD,504,DEVELOPMENT CONTROL ADMINSTRATION,MARKETING & PUBLICITY SERVICES,5902309906,1556957
03.07.2018,PLANNING AND TRANSPORT,STEPHANIE HALL,"2,513.00",S106 & CIL ADMINISTRATION,LEGAL FEES & COURT COSTS,2102834879,1000073202
03.07.2018,PLANNING AND TRANSPORT,THE WATERFRONT CONFERENCE COMPANY LTD,338.3,S106 & CIL ADMINISTRATION,TRAINING,5902309900,11103945
03.07.2018,PUBLIC HEALTH,CENTRAL LONDON COMMUNITY HEALTHCARE,"1,036.99",SEXUAL HEALTH - STI,EXTERNAL AGENCIES AND BODIES,5902309876,1000077767
03.07.2018,PUBLIC HEALTH,LONDON NORTH WEST UNIVERSITY HEALTHCARE NHS TRUST,552,SEXUAL HEALTH - STI,EXTERNAL AGENCIES AND BODIES,5902309844,1000075293
03.07.2018,PUBLIC HEALTH,LUTON AND DUNSTABLE HOSPITAL NHS FOUNDATION TRUST,457.08,SEXUAL HEALTH - STI,EXTERNAL AGENCIES AND BODIES,5902309880,1000073141
03.07.2018,REGENERATION,PINSENT MASONS LLP,"68,427.80",CANADA WATER,PAYMENTS FOR LEGAL SERVICES,5902310100,1000046862
03.07.2018,RESIDENT SERVICES,EDF ENERGY PLC,309.1,OPERATIONS/OFFICES ACCOMMODATION,ELECTRICITY,5902309845,1008746
03.07.2018,RESIDENT SERVICES,EDF ENERGY PLC,"1,472.75",OPERATIONS/OFFICES ACCOMMODATION,ELECTRICITY,5902310054,1008746
03.07.2018,RESIDENT SERVICES,ALEX BURRELL,275,SPECIAL INVESTIGATIONS,LEGAL FEES & COURT COSTS,2102834835,1000081268
03.07.2018,RESIDENT SERVICES,ALEX BURRELL,275,SPECIAL INVESTIGATIONS,LEGAL FEES & COURT COSTS,2102834880,1000081268
03.07.2018,RESIDENT SERVICES,MALCOLM G SANKEY,"2,160.00",SPECIAL INVESTIGATIONS,LEGAL FEES & COURT COSTS,2102834870,1000057822
03.07.2018,RESIDENT SERVICES,THAMES WATER UTILITIES LTD,"8,430.37",TA HOSTELS,WATER,5902310007,1630755
03.07.2018,RESIDENT SERVICES HGF,THAMES WATER UTILITIES LTD,"1,362.90",ILDERTON ROAD PERM,WATER,5902309990,11003005
03.07.2018,SOUTHWARK BUILDING SERVICES,MEARS LTD,"500,000.00",MEARS,MANUAL CREDITORS,2102834896,3000001096
03.07.2018,SOUTHWARK BUILDING SERVICES,LIFTEC LIFTS LTD,"85,448.52",PAYMENTS CONTROL ACCOUNT - LIFTEC,MANUAL CREDITORS,5902309872,1000057278
03.07.2018,SOUTHWARK BUILDING SERVICES,SPOKEMEAD MAINTENANCE LTD,"179,935.45",PAYMENTS CONTROL ACCOUNT - SPOKEMEAD,MANUAL CREDITORS,5902310112,1000059211
03.07.2018,SOUTHWARK BUILDING SERVICES,GAS ADVISORY SERVICES LIMITED,"14,069.21",PHOENIX,MANUAL CREDITORS,5902309979,1000064649
03.07.2018,SOUTHWARK BUILDING SERVICES,A T & T (GB LTD ),"1,692.00",STORES/LOGISTICS,CREDITORS -GR/IR CLEARING ACCOUNT,5902310025,1000078342
03.07.2018,STRATEGIC FINANCING BUDGETS,4 FUTURES PHASE 1 LIMITED,"-2,206.50",ONGOING SCHOOLS PFI COSTS,PFI/PPP PAYMENTS,5902309892,1000061400
03.07.2018,STRATEGIC FINANCING BUDGETS,4 FUTURES PHASE 1 LIMITED,"216,435.90",ONGOING SCHOOLS PFI COSTS,PFI/PPP PAYMENTS,5902309888,1000061400
03.07.2018,STRATEGIC FINANCING BUDGETS,4 FUTURES PHASE 2 LTD,"229,245.35",ONGOING SCHOOLS PFI COSTS,PFI/PPP PAYMENTS,5902309901,1000068567
03.07.2018,STRATEGIC FINANCING BUDGETS,4 FUTURES PHASE 2 LTD,"230,926.68",ONGOING SCHOOLS PFI COSTS,PFI/PPP PAYMENTS,5902309901,1000068567
04.07.2018,ADULT SOCIAL CARE,CARE ELITE LTD,"-1,200.00",APPOINTEESHIPS,OTHER PAYMENTS FOR CLIENTS,2102836352,1000079119
04.07.2018,ADULT SOCIAL CARE,CARE ELITE LTD,"1,200.00",APPOINTEESHIPS,OTHER PAYMENTS FOR CLIENTS,2102829437,1000079119
04.07.2018,ADULT SOCIAL CARE,SHUTTLEWORTH (UK) LTD,"1,271.00",ASC TEMPORARY ACCOMMODATION,EXTERNAL AGENCIES AND BODIES,5902310163,1000056468
04.07.2018,ADULT SOCIAL CARE,HM COURTS & TRIBUNALS SERVICE,400,DIR OF ASC,LEGAL FEES & COURT COSTS,2102836249,1000075260
04.07.2018,ADULT SOCIAL CARE,CAMBRIDGE HOUSE & TALBOT,"13,975.39",INDEPENDENT MC ADVOCACY,EXTERNAL AGENCIES AND BODIES,5902310332,1139414
04.07.2018,ADULT SOCIAL CARE,HM COURTS & TRIBUNALS SERVICE,255,OLDER PEOPLE MGMT,LEGAL FEES & COURT COSTS,2102836255,1000075260
04.07.2018,ADULT SOCIAL CARE,CARE DIRECT UK LTD,265.46,PHY LTS 65+,HOMECARE - C&V,2102835984,1000066322
04.07.2018,ADULT SOCIAL CARE,CARE DIRECT UK LTD,286.14,PHY LTS 65+,HOMECARE - C&V,2102836038,1000066322
04.07.2018,ADULT SOCIAL CARE,CARE DIRECT UK LTD,255.11,PHY LTS 65+,HOMECARE - SPOT,2102835977,1000066322
04.07.2018,ADULT SOCIAL CARE,CARE DIRECT UK LTD,265.46,PHY LTS 65+,HOMECARE - SPOT,2102835980,1000066322
04.07.2018,ADULT SOCIAL CARE,CARE DIRECT UK LTD,275.8,PHY LTS 65+,HOMECARE - SPOT,2102835983,1000066322
04.07.2018,ADULT SOCIAL CARE,CARE DIRECT UK LTD,334.41,PHY LTS 65+,HOMECARE - SPOT,2102835970,1000066322
04.07.2018,ADULT SOCIAL CARE,CARE DIRECT UK LTD,379.23,PHY LTS 65+,HOMECARE - SPOT,2102835998,1000066322
04.07.2018,ADULT SOCIAL CARE,CARE DIRECT UK LTD,379.23,PHY LTS 65+,HOMECARE - SPOT,2102836028,1000066322
04.07.2018,ADULT SOCIAL CARE,CARE DIRECT UK LTD,413.7,PHY LTS 65+,HOMECARE - SPOT,2102835971,1000066322
04.07.2018,ADULT SOCIAL CARE,CARE DIRECT UK LTD,427.49,PHY LTS 65+,HOMECARE - SPOT,2102836020,1000066322
04.07.2018,ADULT SOCIAL CARE,CARE DIRECT UK LTD,434.39,PHY LTS 65+,HOMECARE - SPOT,2102835990,1000066322
04.07.2018,ADULT SOCIAL CARE,CARE DIRECT UK LTD,482.65,PHY LTS 65+,HOMECARE - SPOT,2102835994,1000066322
04.07.2018,ADULT SOCIAL CARE,CARE DIRECT UK LTD,723.98,PHY LTS 65+,HOMECARE - SPOT,2102835995,1000066322
04.07.2018,ADULT SOCIAL CARE,CARE DIRECT UK LTD,372.33,PHY STS 65+,HOMECARE - IC,2102836030,1000066322
04.07.2018,ADULT SOCIAL CARE,LUCAS CONSULT LTD,614.4,SAFEGUARDING TEAM,EXTERNAL AGENCIES AND BODIES,5902310149,1000078082
04.07.2018,ADULT SOCIAL CARE,ROMEDICAL LTD,376.5,SAFEGUARDING TEAM,OTHER CONTRACTORS,5902310146,1000076318
04.07.2018,ADULT SOCIAL CARE,ROMEDICAL LTD,936.72,SAFEGUARDING TEAM,OTHER CONTRACTORS,5902310141,1000076318
04.07.2018,ADULT SOCIAL CARE,CARE DIRECT UK LTD,255.12,SOCIAL ISOLATION,HOMECARE - SPOT,2102836029,1000066322
04.07.2018,ASSET MANAGEMENT,HM COURTS & TRIBUNALS SERVICE,355,DISREPAIR,LEGAL FEES & COURT COSTS,2102836275,1000075260
04.07.2018,ASSET MANAGEMENT,MASHER BROTHERS LTD,"10,670.75",R&M CONTRACTS (SOUTH),BUILDING R&M,2102834949,3000001100
04.07.2018,ASSET MANAGEMENT,SLIEVERUE PROJECT MANAGEMENT LTD,450,R&M CONTRACTS (SOUTH),BUILDING R&M,2102834950,3000002030
04.07.2018,ASSET MANAGEMENT,SLIEVERUE PROJECT MANAGEMENT LTD,"2,460.00",R&M CONTRACTS (SOUTH),BUILDING R&M,2102834951,3000002030
04.07.2018,ASSET MANAGEMENT,BUILDTRUST LTD,"11,762.19",VOIDS (SOUTH),BUILDING R&M,2102834948,3000002010
04.07.2018,CENTRAL FUNCTIONS,STANDAGE & CO LTD,"25,055.00",AYLESBURY,SECURITY SERVICES,2102834947,4002817
04.07.2018,CENTRAL FUNCTIONS,STANDAGE & CO LTD,"32,275.00",AYLESBURY,SECURITY SERVICES,2102834946,4002817
04.07.2018,CENTRAL FUNCTIONS,HM COURTS & TRIBUNALS SERVICE,255,COMMERCIAL PROPERTIES,LEGAL FEES & COURT COSTS,2102836245,1000075260
04.07.2018,CENTRAL FUNCTIONS,HM COURTS & TRIBUNALS SERVICE,255,COMMERCIAL PROPERTIES,LEGAL FEES & COURT COSTS,2102836248,1000075260
04.07.2018,CENTRAL FUNCTIONS,HM COURTS & TRIBUNALS SERVICE,308,COMMERCIAL PROPERTIES,LEGAL FEES & COURT COSTS,2102836246,1000075260
04.07.2018,CHIEF EXECUTIVE'S OFFICE,COMMUNITY SOUTHWARK,"1,829.05",YOUTH FUND EMPLOYMENT,GRANTS,2102835128,1000018147
04.07.2018,CHIEF EXECUTIVE'S OFFICE,NAKED CREATIVITY,"1,914.08",YOUTH FUND EMPLOYMENT,GRANTS,2102835127,1000081071
04.07.2018,CHILDREN AND ADULT,PENNINGTON CHOICES LTD,"2,060.00",CAPITAL PS (EDUCATION),CONSTRUCTION FEES  - EXTERNAL,5902310162,1000001687
04.07.2018,CHILDREN AND ADULT,PENNINGTON CHOICES LTD,"2,060.00",CAPITAL PS (EDUCATION),CONSTRUCTION FEES  - EXTERNAL,5902310162,1000001687
04.07.2018,CHILDREN AND ADULT,PENNINGTON CHOICES LTD,"1,080.00",CAPITAL PS (EDUCATION),CONSTRUCTION FEES  - EXTERNAL,5902310162,1000001687
04.07.2018,CHILDREN'S SERVICES,REDACTED PERSONAL DATA,269.22,ADOPTION PLACEMENTS & INTER AGENCY,PAYMENTS TO CARERS,REDACTED,REDACTED
04.07.2018,CHILDREN'S SERVICES,REDACTED PERSONAL DATA,695.04,ADOPTION PLACEMENTS & INTER AGENCY,PAYMENTS TO CARERS,REDACTED,REDACTED
04.07.2018,CHILDREN'S SERVICES,REDACTED PERSONAL DATA,404.46,ADOPTION PLACEMENTS & INTER AGENCY,PAYMENTS TO CARERS,REDACTED,REDACTED
04.07.2018,CHILDREN'S SERVICES,REDACTED PERSONAL DATA,465.54,ADOPTION PLACEMENTS & INTER AGENCY,PAYMENTS TO CARERS,REDACTED,REDACTED
04.07.2018,CHILDREN'S SERVICES,REDACTED PERSONAL DATA,375.54,ADOPTION PLACEMENTS & INTER AGENCY,PAYMENTS TO CARERS,REDACTED,REDACTED
04.07.2018,CHILDREN'S SERVICES,REDACTED PERSONAL DATA,854.28,ADOPTION PLACEMENTS & INTER AGENCY,PAYMENTS TO CARERS,REDACTED,REDACTED
04.07.2018,CHILDREN'S SERVICES,REDACTED PERSONAL DATA,375.54,ADOPTION PLACEMENTS & INTER AGENCY,PAYMENTS TO CARERS,REDACTED,REDACTED
04.07.2018,CHILDREN'S SERVICES,REDACTED PERSONAL DATA,451.8,ADOPTION PLACEMENTS & INTER AGENCY,PAYMENTS TO CARERS,REDACTED,REDACTED
04.07.2018,CHILDREN'S SERVICES,REDACTED PERSONAL DATA,738.32,ADOPTION PLACEMENTS & INTER AGENCY,PAYMENTS TO CARERS,REDACTED,REDACTED
04.07.2018,CHILDREN'S SERVICES,REDACTED PERSONAL DATA,293.98,ADOPTION PLACEMENTS & INTER AGENCY,PAYMENTS TO CARERS,REDACTED,REDACTED
04.07.2018,CHILDREN'S SERVICES,REDACTED PERSONAL DATA,512.02,ADOPTION PLACEMENTS & INTER AGENCY,PAYMENTS TO CARERS,REDACTED,REDACTED
04.07.2018,CHILDREN'S SERVICES,REDACTED PERSONAL DATA,717.14,ADOPTION PLACEMENTS & INTER AGENCY,PAYMENTS TO CARERS,REDACTED,REDACTED
04.07.2018,CHILDREN'S SERVICES,REDACTED PERSONAL DATA,400.18,ADOPTION PLACEMENTS & INTER AGENCY,PAYMENTS TO CARERS,REDACTED,REDACTED
04.07.2018,CHILDREN'S SERVICES,REDACTED PERSONAL DATA,559.06,ADOPTION PLACEMENTS & INTER AGENCY,PAYMENTS TO CARERS,REDACTED,REDACTED
04.07.2018,CHILDREN'S SERVICES,REDACTED PERSONAL DATA,375.54,ADOPTION PLACEMENTS & INTER AGENCY,PAYMENTS TO CARERS,REDACTED,REDACTED
04.07.2018,CHILDREN'S SERVICES,REDACTED PERSONAL DATA,465.54,ADOPTION PLACEMENTS & INTER AGENCY,PAYMENTS TO CARERS,REDACTED,REDACTED
04.07.2018,CHILDREN'S SERVICES,REDACTED PERSONAL DATA,465.54,ADOPTION PLACEMENTS & INTER AGENCY,PAYMENTS TO CARERS,REDACTED,REDACTED
04.07.2018,CHILDREN'S SERVICES,REDACTED PERSONAL DATA,279.26,ADOPTION PLACEMENTS & INTER AGENCY,PAYMENTS TO CARERS,REDACTED,REDACTED
04.07.2018,CHILDREN'S SERVICES,REDACTED PERSONAL DATA,390.26,ADOPTION PLACEMENTS & INTER AGENCY,PAYMENTS TO CARERS,REDACTED,REDACTED
04.07.2018,CHILDREN'S SERVICES,REDACTED PERSONAL DATA,368.52,ADOPTION PLACEMENTS & INTER AGENCY,PAYMENTS TO CARERS,REDACTED,REDACTED
04.07.2018,CHILDREN'S SERVICES,REDACTED PERSONAL DATA,712.3,ADOPTION PLACEMENTS & INTER AGENCY,PAYMENTS TO CARERS,REDACTED,REDACTED
04.07.2018,CHILDREN'S SERVICES,REDACTED PERSONAL DATA,484.92,ADOPTION PLACEMENTS & INTER AGENCY,PAYMENTS TO CARERS,REDACTED,REDACTED
04.07.2018,CHILDREN'S SERVICES,REDACTED PERSONAL DATA,530,ADOPTION PLACEMENTS & INTER AGENCY,PAYMENTS TO CARERS,REDACTED,REDACTED
04.07.2018,CHILDREN'S SERVICES,REDACTED PERSONAL DATA,408.78,ADOPTION PLACEMENTS & INTER AGENCY,PAYMENTS TO CARERS,REDACTED,REDACTED
04.07.2018,CHILDREN'S SERVICES,REDACTED PERSONAL DATA,465.48,ADOPTION PLACEMENTS & INTER AGENCY,PAYMENTS TO CARERS,REDACTED,REDACTED
04.07.2018,CHILDREN'S SERVICES,REDACTED PERSONAL DATA,635.34,ADOPTION PLACEMENTS & INTER AGENCY,PAYMENTS TO CARERS,REDACTED,REDACTED
04.07.2018,CHILDREN'S SERVICES,REDACTED PERSONAL DATA,251.94,ADOPTION PLACEMENTS & INTER AGENCY,PAYMENTS TO CARERS,REDACTED,REDACTED
04.07.2018,CHILDREN'S SERVICES,REDACTED PERSONAL DATA,635.34,ADOPTION PLACEMENTS & INTER AGENCY,PAYMENTS TO CARERS,REDACTED,REDACTED
04.07.2018,CHILDREN'S SERVICES,REDACTED PERSONAL DATA,359.44,ADOPTION PLACEMENTS & INTER AGENCY,PAYMENTS TO CARERS,REDACTED,REDACTED
04.07.2018,CHILDREN'S SERVICES,REDACTED PERSONAL DATA,316.5,ADOPTION PLACEMENTS & INTER AGENCY,PAYMENTS TO CARERS,REDACTED,REDACTED
04.07.2018,CHILDREN'S SERVICES,REDACTED PERSONAL DATA,400.84,ADOPTION PLACEMENTS & INTER AGENCY,PAYMENTS TO CARERS,REDACTED,REDACTED
04.07.2018,CHILDREN'S SERVICES,REDACTED PERSONAL DATA,261,ADOPTION PLACEMENTS & INTER AGENCY,PAYMENTS TO CARERS,REDACTED,REDACTED
04.07.2018,CHILDREN'S SERVICES,REDACTED PERSONAL DATA,552.16,ADOPTION PLACEMENTS & INTER AGENCY,PAYMENTS TO CARERS,REDACTED,REDACTED
04.07.2018,CHILDREN'S SERVICES,REDACTED PERSONAL DATA,652.9,ADOPTION PLACEMENTS & INTER AGENCY,PAYMENTS TO CARERS,REDACTED,REDACTED
04.07.2018,CHILDREN'S SERVICES,REDACTED PERSONAL DATA,652.9,ADOPTION PLACEMENTS & INTER AGENCY,PAYMENTS TO CARERS,REDACTED,REDACTED
04.07.2018,CHILDREN'S SERVICES,REDACTED PERSONAL DATA,252.9,ADOPTION PLACEMENTS & INTER AGENCY,PAYMENTS TO CARERS,REDACTED,REDACTED
04.07.2018,CHILDREN'S SERVICES,REDACTED PERSONAL DATA,253.56,ADOPTION PLACEMENTS & INTER AGENCY,PAYMENTS TO CARERS,REDACTED,REDACTED
04.07.2018,CHILDREN'S SERVICES,REDACTED PERSONAL DATA,"1,011.20",ADOPTION PLACEMENTS & INTER AGENCY,PAYMENTS TO CARERS,REDACTED,REDACTED
04.07.2018,CHILDREN'S SERVICES,REDACTED PERSONAL DATA,375.54,ADOPTION PLACEMENTS & INTER AGENCY,PAYMENTS TO CARERS,REDACTED,REDACTED
04.07.2018,CHILDREN'S SERVICES,REDACTED PERSONAL DATA,382.3,ADOPTION PLACEMENTS & INTER AGENCY,PAYMENTS TO CARERS,REDACTED,REDACTED
04.07.2018,CHILDREN'S SERVICES,REDACTED PERSONAL DATA,275.1,ADOPTION PLACEMENTS & INTER AGENCY,PAYMENTS TO CARERS,REDACTED,REDACTED
04.07.2018,CHILDREN'S SERVICES,REDACTED PERSONAL DATA,282.76,ADOPTION PLACEMENTS & INTER AGENCY,PAYMENTS TO CARERS,REDACTED,REDACTED
04.07.2018,CHILDREN'S SERVICES,REDACTED PERSONAL DATA,400.84,ADOPTION PLACEMENTS & INTER AGENCY,PAYMENTS TO CARERS,REDACTED,REDACTED
04.07.2018,CHILDREN'S SERVICES,REDACTED PERSONAL DATA,465.52,ADOPTION PLACEMENTS & INTER AGENCY,PAYMENTS TO CARERS,REDACTED,REDACTED
04.07.2018,CHILDREN'S SERVICES,REDACTED PERSONAL DATA,640.9,ADOPTION PLACEMENTS & INTER AGENCY,PAYMENTS TO CARERS,REDACTED,REDACTED
04.07.2018,CHILDREN'S SERVICES,REDACTED PERSONAL DATA,588.42,ADOPTION PLACEMENTS & INTER AGENCY,PAYMENTS TO CARERS,REDACTED,REDACTED
04.07.2018,CHILDREN'S SERVICES,REDACTED PERSONAL DATA,304.64,ADOPTION PLACEMENTS & INTER AGENCY,PAYMENTS TO CARERS,REDACTED,REDACTED
04.07.2018,CHILDREN'S SERVICES,REDACTED PERSONAL DATA,295.3,ADOPTION PLACEMENTS & INTER AGENCY,PAYMENTS TO CARERS,REDACTED,REDACTED
04.07.2018,CHILDREN'S SERVICES,REDACTED PERSONAL DATA,382.3,ADOPTION PLACEMENTS & INTER AGENCY,PAYMENTS TO CARERS,REDACTED,REDACTED
04.07.2018,CHILDREN'S SERVICES,REDACTED PERSONAL DATA,255.22,ADOPTION PLACEMENTS & INTER AGENCY,PAYMENTS TO CARERS,REDACTED,REDACTED
04.07.2018,CHILDREN'S SERVICES,REDACTED PERSONAL DATA,375.54,ADOPTION PLACEMENTS & INTER AGENCY,PAYMENTS TO CARERS,REDACTED,REDACTED
04.07.2018,CHILDREN'S SERVICES,REDACTED PERSONAL DATA,453.24,ADOPTION PLACEMENTS & INTER AGENCY,PAYMENTS TO CARERS,REDACTED,REDACTED
04.07.2018,CHILDREN'S SERVICES,REDACTED PERSONAL DATA,465.52,ADOPTION PLACEMENTS & INTER AGENCY,PAYMENTS TO CARERS,REDACTED,REDACTED
04.07.2018,CHILDREN'S SERVICES,REDACTED PERSONAL DATA,375.54,ADOPTION PLACEMENTS & INTER AGENCY,PAYMENTS TO CARERS,REDACTED,REDACTED
04.07.2018,CHILDREN'S SERVICES,REDACTED PERSONAL DATA,653.06,ADOPTION PLACEMENTS & INTER AGENCY,PAYMENTS TO CARERS,REDACTED,REDACTED
04.07.2018,CHILDREN'S SERVICES,REDACTED PERSONAL DATA,767.68,ADOPTION PLACEMENTS & INTER AGENCY,PAYMENTS TO CARERS,REDACTED,REDACTED
04.07.2018,CHILDREN'S SERVICES,REDACTED PERSONAL DATA,682.3,ADOPTION PLACEMENTS & INTER AGENCY,PAYMENTS TO CARERS,REDACTED,REDACTED
04.07.2018,CHILDREN'S SERVICES,REDACTED PERSONAL DATA,682.3,ADOPTION PLACEMENTS & INTER AGENCY,PAYMENTS TO CARERS,REDACTED,REDACTED
04.07.2018,CHILDREN'S SERVICES,REDACTED PERSONAL DATA,635.34,ADOPTION PLACEMENTS & INTER AGENCY,PAYMENTS TO CARERS,REDACTED,REDACTED
04.07.2018,CHILDREN'S SERVICES,REDACTED PERSONAL DATA,705.24,ADOPTION PLACEMENTS & INTER AGENCY,PAYMENTS TO CARERS,REDACTED,REDACTED
04.07.2018,CHILDREN'S SERVICES,REDACTED PERSONAL DATA,777.36,ADOPTION PLACEMENTS & INTER AGENCY,PAYMENTS TO CARERS,REDACTED,REDACTED
04.07.2018,CHILDREN'S SERVICES,REDACTED PERSONAL DATA,375.54,ADOPTION PLACEMENTS & INTER AGENCY,PAYMENTS TO CARERS,REDACTED,REDACTED
04.07.2018,CHILDREN'S SERVICES,REDACTED PERSONAL DATA,"1,053.20",ADOPTION PLACEMENTS & INTER AGENCY,PAYMENTS TO CARERS,REDACTED,REDACTED
04.07.2018,CHILDREN'S SERVICES,REDACTED PERSONAL DATA,382.3,ADOPTION PLACEMENTS & INTER AGENCY,PAYMENTS TO CARERS,REDACTED,REDACTED
04.07.2018,CHILDREN'S SERVICES,REDACTED PERSONAL DATA,382.3,ADOPTION PLACEMENTS & INTER AGENCY,PAYMENTS TO CARERS,REDACTED,REDACTED
04.07.2018,CHILDREN'S SERVICES,REDACTED PERSONAL DATA,485.22,ADOPTION PLACEMENTS & INTER AGENCY,PAYMENTS TO CARERS,REDACTED,REDACTED
04.07.2018,CHILDREN'S SERVICES,REDACTED PERSONAL DATA,908,ADOPTION PLACEMENTS & INTER AGENCY,PAYMENTS TO CARERS,REDACTED,REDACTED
04.07.2018,CHILDREN'S SERVICES,REDACTED PERSONAL DATA,465.54,ADOPTION PLACEMENTS & INTER AGENCY,PAYMENTS TO CARERS,REDACTED,REDACTED
04.07.2018,CHILDREN'S SERVICES,REDACTED PERSONAL DATA,465.54,ADOPTION PLACEMENTS & INTER AGENCY,PAYMENTS TO CARERS,REDACTED,REDACTED
04.07.2018,CHILDREN'S SERVICES,REDACTED PERSONAL DATA,375.54,ADOPTION PLACEMENTS & INTER AGENCY,PAYMENTS TO CARERS,REDACTED,REDACTED
04.07.2018,CHILDREN'S SERVICES,REDACTED PERSONAL DATA,695.12,ADOPTION PLACEMENTS & INTER AGENCY,PAYMENTS TO CARERS,REDACTED,REDACTED
04.07.2018,CHILDREN'S SERVICES,REDACTED PERSONAL DATA,375.54,ADOPTION PLACEMENTS & INTER AGENCY,PAYMENTS TO CARERS,REDACTED,REDACTED
04.07.2018,CHILDREN'S SERVICES,REDACTED PERSONAL DATA,457.14,ADOPTION PLACEMENTS & INTER AGENCY,PAYMENTS TO CARERS,REDACTED,REDACTED
04.07.2018,CHILDREN'S SERVICES,REDACTED PERSONAL DATA,502,ADOPTION PLACEMENTS & INTER AGENCY,PAYMENTS TO CARERS,REDACTED,REDACTED
04.07.2018,CHILDREN'S SERVICES,ACTION FOR CHILDREN,"3,767.10",AGENCY FOSTERING,EXTERNAL AGENCIES AND BODIES,2102835646,1000049964
04.07.2018,CHILDREN'S SERVICES,BARNARDOS SERVICES LTD,"3,444.30",AGENCY FOSTERING,EXTERNAL AGENCIES AND BODIES,2102835595,1000063730
04.07.2018,CHILDREN'S SERVICES,CAPSTONE FOSTER CARE,"3,398.40",AGENCY FOSTERING,EXTERNAL AGENCIES AND BODIES,2102835629,1000050353
04.07.2018,CHILDREN'S SERVICES,CHILDREN OF ALL NATIONS LTD,"3,578.31",AGENCY FOSTERING,EXTERNAL AGENCIES AND BODIES,2102835624,1000060151
04.07.2018,CHILDREN'S SERVICES,CHILDREN OF ALL NATIONS LTD,"3,578.31",AGENCY FOSTERING,EXTERNAL AGENCIES AND BODIES,2102835626,1000060151
04.07.2018,CHILDREN'S SERVICES,CHILDREN OF ALL NATIONS LTD,"4,417.93",AGENCY FOSTERING,EXTERNAL AGENCIES AND BODIES,2102835639,1000060151
04.07.2018,CHILDREN'S SERVICES,COMPASS FOSTERING LONDON LTD,"2,978.70",AGENCY FOSTERING,EXTERNAL AGENCIES AND BODIES,2102835614,1000057908
04.07.2018,CHILDREN'S SERVICES,COMPASS FOSTERING LONDON LTD,"3,557.10",AGENCY FOSTERING,EXTERNAL AGENCIES AND BODIES,2102835633,1000057908
04.07.2018,CHILDREN'S SERVICES,COMPASS FOSTERING LONDON LTD,"3,557.10",AGENCY FOSTERING,EXTERNAL AGENCIES AND BODIES,2102835634,1000057908
04.07.2018,CHILDREN'S SERVICES,COMPASS FOSTERING SOUTH LTD,"2,796.39",AGENCY FOSTERING,EXTERNAL AGENCIES AND BODIES,2102835601,1000073772
04.07.2018,CHILDREN'S SERVICES,COMPASS FOSTERING SOUTH LTD,"3,201.39",AGENCY FOSTERING,EXTERNAL AGENCIES AND BODIES,2102835627,1000073772
04.07.2018,CHILDREN'S SERVICES,CONNECT FOSTERING SERVICES LTD,"3,235.71",AGENCY FOSTERING,EXTERNAL AGENCIES AND BODIES,2102835625,1000079969
04.07.2018,CHILDREN'S SERVICES,CONNECT FOSTERING SERVICES LTD,"3,407.14",AGENCY FOSTERING,EXTERNAL AGENCIES AND BODIES,2102835615,1000079969
04.07.2018,CHILDREN'S SERVICES,DIAGRAMA FOUNDATION CHILDREN SERVICES,"3,711.43",AGENCY FOSTERING,EXTERNAL AGENCIES AND BODIES,2102835618,1000078697
04.07.2018,CHILDREN'S SERVICES,DIVERSE CARE (UK) LTD,"1,428.00",AGENCY FOSTERING,EXTERNAL AGENCIES AND BODIES,2102835621,1000055636
04.07.2018,CHILDREN'S SERVICES,FAMILY FIRST FOSTERING LTD,"5,665.41",AGENCY FOSTERING,EXTERNAL AGENCIES AND BODIES,2102835635,1000080631
04.07.2018,CHILDREN'S SERVICES,FAMILY FIRST FOSTERING LTD,"5,854.26",AGENCY FOSTERING,EXTERNAL AGENCIES AND BODIES,2102835610,1000080631
04.07.2018,CHILDREN'S SERVICES,FAMILY FIRST FOSTERING LTD,"5,854.26",AGENCY FOSTERING,EXTERNAL AGENCIES AND BODIES,2102835643,1000080631
04.07.2018,CHILDREN'S SERVICES,FAMILY FIRST FOSTERING LTD,"6,642.85",AGENCY FOSTERING,EXTERNAL AGENCIES AND BODIES,2102835642,1000080631
04.07.2018,CHILDREN'S SERVICES,FIVE RIVERS CHILD CARE LTD,"3,257.14",AGENCY FOSTERING,EXTERNAL AGENCIES AND BODIES,2102835640,1000018792
04.07.2018,CHILDREN'S SERVICES,FIVE RIVERS CHILD CARE LTD,"6,317.14",AGENCY FOSTERING,EXTERNAL AGENCIES AND BODIES,2102835604,1000018792
04.07.2018,CHILDREN'S SERVICES,FOLLOWING WHISPERS FAMILY SERVICE LTD,"6,315.00",AGENCY FOSTERING,EXTERNAL AGENCIES AND BODIES,2102835593,1000065611
04.07.2018,CHILDREN'S SERVICES,FOLLOWING WHISPERS FAMILY SERVICE LTD,"6,642.90",AGENCY FOSTERING,EXTERNAL AGENCIES AND BODIES,2102835612,1000065611
04.07.2018,CHILDREN'S SERVICES,FOSTERCARE UK LTD,"3,094.20",AGENCY FOSTERING,EXTERNAL AGENCIES AND BODIES,2102835619,1000073002
04.07.2018,CHILDREN'S SERVICES,FOSTERING INNOVATIONS LTD,"4,422.86",AGENCY FOSTERING,EXTERNAL AGENCIES AND BODIES,2102835631,1000081286
04.07.2018,CHILDREN'S SERVICES,FUTURES FOR CHILDREN LIMITED,"3,532.20",AGENCY FOSTERING,EXTERNAL AGENCIES AND BODIES,2102835622,1000041984
04.07.2018,CHILDREN'S SERVICES,FUTURES FOR CHILDREN LIMITED,"3,532.20",AGENCY FOSTERING,EXTERNAL AGENCIES AND BODIES,2102835641,1000041984
04.07.2018,CHILDREN'S SERVICES,FUTURES FOR CHILDREN LIMITED,"3,649.94",AGENCY FOSTERING,EXTERNAL AGENCIES AND BODIES,2102835600,1000041984
04.07.2018,CHILDREN'S SERVICES,FUTURES FOR CHILDREN LIMITED,"3,649.94",AGENCY FOSTERING,EXTERNAL AGENCIES AND BODIES,2102835630,1000041984
04.07.2018,CHILDREN'S SERVICES,HELP ME GROW FOSTERING SERVICES LTD,"2,777.10",AGENCY FOSTERING,EXTERNAL AGENCIES AND BODIES,2102835597,1000079302
04.07.2018,CHILDREN'S SERVICES,HELP ME GROW FOSTERING SERVICES LTD,"2,777.10",AGENCY FOSTERING,EXTERNAL AGENCIES AND BODIES,2102835632,1000079302
04.07.2018,CHILDREN'S SERVICES,HELP ME GROW FOSTERING SERVICES LTD,"2,777.10",AGENCY FOSTERING,EXTERNAL AGENCIES AND BODIES,2102835649,1000079302
04.07.2018,CHILDREN'S SERVICES,HELP ME GROW FOSTERING SERVICES LTD,"2,869.67",AGENCY FOSTERING,EXTERNAL AGENCIES AND BODIES,2102835599,1000079302
04.07.2018,CHILDREN'S SERVICES,HELP ME GROW FOSTERING SERVICES LTD,"3,085.50",AGENCY FOSTERING,EXTERNAL AGENCIES AND BODIES,2102835602,1000079302
04.07.2018,CHILDREN'S SERVICES,HELP ME GROW FOSTERING SERVICES LTD,"3,085.50",AGENCY FOSTERING,EXTERNAL AGENCIES AND BODIES,2102835603,1000079302
04.07.2018,CHILDREN'S SERVICES,HELP ME GROW FOSTERING SERVICES LTD,"4,500.00",AGENCY FOSTERING,EXTERNAL AGENCIES AND BODIES,2102835647,1000079302
04.07.2018,CHILDREN'S SERVICES,HELP ME GROW FOSTERING SERVICES LTD,"5,571.30",AGENCY FOSTERING,EXTERNAL AGENCIES AND BODIES,2102835617,1000079302
04.07.2018,CHILDREN'S SERVICES,HELP ME GROW FOSTERING SERVICES LTD,"5,571.30",AGENCY FOSTERING,EXTERNAL AGENCIES AND BODIES,2102835644,1000079302
04.07.2018,CHILDREN'S SERVICES,LIGHTHOUSE FOSTERING LTD,"5,785.71",AGENCY FOSTERING,EXTERNAL AGENCIES AND BODIES,2102835638,1000080372
04.07.2018,CHILDREN'S SERVICES,LIKA FAMILY FOSTERING,"3,400.04",AGENCY FOSTERING,EXTERNAL AGENCIES AND BODIES,2102835608,1000080099
04.07.2018,CHILDREN'S SERVICES,NEXT STEP FOSTERING SERVICES LTD,"4,209.00",AGENCY FOSTERING,EXTERNAL AGENCIES AND BODIES,2102835648,1000044973
04.07.2018,CHILDREN'S SERVICES,ORANGE GROVE FOSTERCARE LTD,"3,480.00",AGENCY FOSTERING,EXTERNAL AGENCIES AND BODIES,2102835598,1000078716
04.07.2018,CHILDREN'S SERVICES,ORANGE GROVE FOSTERCARE LTD,"3,480.00",AGENCY FOSTERING,EXTERNAL AGENCIES AND BODIES,2102835636,1000078716
04.07.2018,CHILDREN'S SERVICES,RYANCARE FOSTERING,"3,427.50",AGENCY FOSTERING,EXTERNAL AGENCIES AND BODIES,2102835611,1000062376
04.07.2018,CHILDREN'S SERVICES,SELECT FOSTERCARE SERVICES LTD,"3,180.00",AGENCY FOSTERING,EXTERNAL AGENCIES AND BODIES,2102835628,1000079277
04.07.2018,CHILDREN'S SERVICES,SELECT FOSTERCARE SERVICES LTD,"3,535.50",AGENCY FOSTERING,EXTERNAL AGENCIES AND BODIES,2102835607,1000079277
04.07.2018,CHILDREN'S SERVICES,SELECT FOSTERCARE SERVICES LTD,"3,535.80",AGENCY FOSTERING,EXTERNAL AGENCIES AND BODIES,2102835594,1000079277
04.07.2018,CHILDREN'S SERVICES,ST CHRISTOPHER FELLOWSHIP,"3,407.10",AGENCY FOSTERING,EXTERNAL AGENCIES AND BODIES,2102835637,1000045269
04.07.2018,CHILDREN'S SERVICES,ST CHRISTOPHER FELLOWSHIP,"4,500.00",AGENCY FOSTERING,EXTERNAL AGENCIES AND BODIES,2102835609,1000045269
04.07.2018,CHILDREN'S SERVICES,ST CHRISTOPHER FELLOWSHIP,"4,500.00",AGENCY FOSTERING,EXTERNAL AGENCIES AND BODIES,2102835620,1000045269
04.07.2018,CHILDREN'S SERVICES,SUPPORTED FOSTERING SERVICES,"2,995.80",AGENCY FOSTERING,EXTERNAL AGENCIES AND BODIES,2102835605,1927554
04.07.2018,CHILDREN'S SERVICES,SUPPORTED FOSTERING SERVICES,"3,413.40",AGENCY FOSTERING,EXTERNAL AGENCIES AND BODIES,2102835623,1927554
04.07.2018,CHILDREN'S SERVICES,SWIIS FOSTER CARE LTD,697.97,AGENCY FOSTERING,EXTERNAL AGENCIES AND BODIES,2102835613,1000069633
04.07.2018,CHILDREN'S SERVICES,SWIIS FOSTER CARE LTD,697.97,AGENCY FOSTERING,EXTERNAL AGENCIES AND BODIES,2102835616,1000069633
04.07.2018,CHILDREN'S SERVICES,SWIIS FOSTER CARE LTD,697.97,AGENCY FOSTERING,EXTERNAL AGENCIES AND BODIES,2102835645,1000069633
04.07.2018,CHILDREN'S SERVICES,THE XCEL 2000 PARTNERSHIP LTD,"3,248.57",AGENCY FOSTERING,EXTERNAL AGENCIES AND BODIES,2102835596,1000024427
04.07.2018,CHILDREN'S SERVICES,TIME FOR CHILDREN LTD,"3,000.00",AGENCY FOSTERING,EXTERNAL AGENCIES AND BODIES,2102835650,1000024439
04.07.2018,CHILDREN'S SERVICES,WELCOME FOSTER CARE LTD,"3,642.90",AGENCY FOSTERING,EXTERNAL AGENCIES AND BODIES,2102835606,1000074586
04.07.2018,CHILDREN'S SERVICES,REDACTED PERSONAL DATA,300,DISABILITY & HIV,ADDITIONAL PAYMENTS TO AGENCIES/CARERS,REDACTED,REDACTED
04.07.2018,CHILDREN'S SERVICES,REDACTED PERSONAL DATA,996.43,DISABILITY & HIV,OTHER PAYMENTS FOR CLIENTS,REDACTED,REDACTED
04.07.2018,CHILDREN'S SERVICES,REDACTED PERSONAL DATA,991.42,DISABILITY & HIV,PAYMENTS TO CARERS,REDACTED,REDACTED
04.07.2018,CHILDREN'S SERVICES,REDACTED PERSONAL DATA,"1,094.60",DISABILITY & HIV,PAYMENTS TO CARERS,REDACTED,REDACTED
04.07.2018,CHILDREN'S SERVICES,REDACTED PERSONAL DATA,806.08,DISABILITY & HIV,PAYMENTS TO CARERS,REDACTED,REDACTED
04.07.2018,CHILDREN'S SERVICES,REDACTED PERSONAL DATA,806.08,DISABILITY & HIV,PAYMENTS TO CARERS,REDACTED,REDACTED
04.07.2018,CHILDREN'S SERVICES,REDACTED PERSONAL DATA,806.08,DISABILITY & HIV,PAYMENTS TO CARERS,REDACTED,REDACTED
04.07.2018,CHILDREN'S SERVICES,REDACTED PERSONAL DATA,806.08,DISABILITY & HIV,PAYMENTS TO CARERS,REDACTED,REDACTED
04.07.2018,CHILDREN'S SERVICES,REDACTED PERSONAL DATA,500,DISABILITY & HIV,PAYMENTS TO CARERS,REDACTED,REDACTED
04.07.2018,CHILDREN'S SERVICES,REDACTED PERSONAL DATA,806.08,DISABILITY & HIV,PAYMENTS TO CARERS,REDACTED,REDACTED
04.07.2018,CHILDREN'S SERVICES,REDACTED PERSONAL DATA,806.08,DISABILITY & HIV,PAYMENTS TO CARERS,REDACTED,REDACTED
04.07.2018,CHILDREN'S SERVICES,REDACTED PERSONAL DATA,798.12,DISABILITY & HIV,PAYMENTS TO CARERS,REDACTED,REDACTED
04.07.2018,CHILDREN'S SERVICES,REDACTED PERSONAL DATA,806.08,DISABILITY & HIV,PAYMENTS TO CARERS,REDACTED,REDACTED
04.07.2018,CHILDREN'S SERVICES,REDACTED PERSONAL DATA,806.08,DISABILITY & HIV,PAYMENTS TO CARERS,REDACTED,REDACTED
04.07.2018,CHILDREN'S SERVICES,REDACTED PERSONAL DATA,745.8,DISABILITY & HIV,PAYMENTS TO CARERS,REDACTED,REDACTED
04.07.2018,CHILDREN'S SERVICES,REDACTED PERSONAL DATA,806.08,DISABILITY & HIV,PAYMENTS TO CARERS,REDACTED,REDACTED
04.07.2018,CHILDREN'S SERVICES,REDACTED PERSONAL DATA,768.12,DISABILITY & HIV,PAYMENTS TO CARERS,REDACTED,REDACTED
04.07.2018,CHILDREN'S SERVICES,REDACTED PERSONAL DATA,768.12,DISABILITY & HIV,PAYMENTS TO CARERS,REDACTED,REDACTED
04.07.2018,CHILDREN'S SERVICES,REDACTED PERSONAL DATA,682.3,DISABILITY & HIV,PAYMENTS TO CARERS,REDACTED,REDACTED
04.07.2018,CHILDREN'S SERVICES,REDACTED PERSONAL DATA,776.08,DISABILITY & HIV,PAYMENTS TO CARERS,REDACTED,REDACTED
04.07.2018,CHILDREN'S SERVICES,REDACTED PERSONAL DATA,-399.06,DISABILITY & HIV,PAYMENTS TO CARERS,REDACTED,REDACTED
04.07.2018,CHILDREN'S SERVICES,REDACTED PERSONAL DATA,888.12,DISABILITY & HIV,PAYMENTS TO CARERS,REDACTED,REDACTED
04.07.2018,CHILDREN'S SERVICES,REDACTED PERSONAL DATA,776.08,DISABILITY & HIV,PAYMENTS TO CARERS,REDACTED,REDACTED
04.07.2018,CHILDREN'S SERVICES,REDACTED PERSONAL DATA,806.08,DISABILITY & HIV,PAYMENTS TO CARERS,REDACTED,REDACTED
04.07.2018,CHILDREN'S SERVICES,REDACTED PERSONAL DATA,806.08,DISABILITY & HIV,PAYMENTS TO CARERS,REDACTED,REDACTED
04.07.2018,CHILDREN'S SERVICES,REDACTED PERSONAL DATA,806.08,DISABILITY & HIV,PAYMENTS TO CARERS,REDACTED,REDACTED
04.07.2018,CHILDREN'S SERVICES,REDACTED PERSONAL DATA,798.12,DISABILITY & HIV,PAYMENTS TO CARERS,REDACTED,REDACTED
04.07.2018,CHILDREN'S SERVICES,REDACTED PERSONAL DATA,888.12,DISABILITY & HIV,PAYMENTS TO CARERS,REDACTED,REDACTED
04.07.2018,CHILDREN'S SERVICES,REDACTED PERSONAL DATA,712.3,DISABILITY & HIV,PAYMENTS TO CARERS,REDACTED,REDACTED
04.07.2018,CHILDREN'S SERVICES,REDACTED PERSONAL DATA,882.26,DISABILITY & HIV,PAYMENTS TO CARERS,REDACTED,REDACTED
04.07.2018,CHILDREN'S SERVICES,REDACTED PERSONAL DATA,712.3,DISABILITY & HIV,PAYMENTS TO CARERS,REDACTED,REDACTED
04.07.2018,CHILDREN'S SERVICES,REDACTED PERSONAL DATA,798.12,DISABILITY & HIV,PAYMENTS TO CARERS,REDACTED,REDACTED
04.07.2018,CHILDREN'S SERVICES,REDACTED PERSONAL DATA,682.3,DISABILITY & HIV,PAYMENTS TO CARERS,REDACTED,REDACTED
04.07.2018,CHILDREN'S SERVICES,REDACTED PERSONAL DATA,776.08,DISABILITY & HIV,PAYMENTS TO CARERS,REDACTED,REDACTED
04.07.2018,CHILDREN'S SERVICES,REDACTED PERSONAL DATA,712.3,DISABILITY & HIV,PAYMENTS TO CARERS,REDACTED,REDACTED
04.07.2018,CHILDREN'S SERVICES,REDACTED PERSONAL DATA,712.3,DISABILITY & HIV,PAYMENTS TO CARERS,REDACTED,REDACTED
04.07.2018,CHILDREN'S SERVICES,REDACTED PERSONAL DATA,806.08,DISABILITY & HIV,PAYMENTS TO CARERS,REDACTED,REDACTED
04.07.2018,CHILDREN'S SERVICES,REDACTED PERSONAL DATA,806.08,DISABILITY & HIV,PAYMENTS TO CARERS,REDACTED,REDACTED
04.07.2018,CHILDREN'S SERVICES,REDACTED PERSONAL DATA,712.3,DISABILITY & HIV,PAYMENTS TO CARERS,REDACTED,REDACTED
04.07.2018,CHILDREN'S SERVICES,REDACTED PERSONAL DATA,806.08,DISABILITY & HIV,PAYMENTS TO CARERS,REDACTED,REDACTED
04.07.2018,CHILDREN'S SERVICES,REDACTED PERSONAL DATA,712.3,DISABILITY & HIV,PAYMENTS TO CARERS,REDACTED,REDACTED
04.07.2018,CHILDREN'S SERVICES,REDACTED PERSONAL DATA,712.3,DISABILITY & HIV,PAYMENTS TO CARERS,REDACTED,REDACTED
04.07.2018,CHILDREN'S SERVICES,REDACTED PERSONAL DATA,635.34,DISABILITY & HIV,PAYMENTS TO CARERS,REDACTED,REDACTED
04.07.2018,CHILDREN'S SERVICES,REDACTED PERSONAL DATA,768.12,DISABILITY & HIV,PAYMENTS TO CARERS,REDACTED,REDACTED
04.07.2018,CHILDREN'S SERVICES,REDACTED PERSONAL DATA,806.08,DISABILITY & HIV,PAYMENTS TO CARERS,REDACTED,REDACTED
04.07.2018,CHILDREN'S SERVICES,REDACTED PERSONAL DATA,798.12,DISABILITY & HIV,PAYMENTS TO CARERS,REDACTED,REDACTED
04.07.2018,CHILDREN'S SERVICES,REDACTED PERSONAL DATA,888.12,DISABILITY & HIV,PAYMENTS TO CARERS,REDACTED,REDACTED
04.07.2018,CHILDREN'S SERVICES,REDACTED PERSONAL DATA,712.3,DISABILITY & HIV,PAYMENTS TO CARERS,REDACTED,REDACTED
04.07.2018,CHILDREN'S SERVICES,REDACTED PERSONAL DATA,712.3,DISABILITY & HIV,PAYMENTS TO CARERS,REDACTED,REDACTED
04.07.2018,CHILDREN'S SERVICES,REDACTED PERSONAL DATA,682.3,DISABILITY & HIV,PAYMENTS TO CARERS,REDACTED,REDACTED
04.07.2018,CHILDREN'S SERVICES,REDACTED PERSONAL DATA,776.08,DISABILITY & HIV,PAYMENTS TO CARERS,REDACTED,REDACTED
04.07.2018,CHILDREN'S SERVICES,REDACTED PERSONAL DATA,806.08,DISABILITY & HIV,PAYMENTS TO CARERS,REDACTED,REDACTED
04.07.2018,CHILDREN'S SERVICES,REDACTED PERSONAL DATA,682.3,DISABILITY & HIV,PAYMENTS TO CARERS,REDACTED,REDACTED
04.07.2018,CHILDREN'S SERVICES,REDACTED PERSONAL DATA,806.08,DISABILITY & HIV,PAYMENTS TO CARERS,REDACTED,REDACTED
04.07.2018,CHILDREN'S SERVICES,REDACTED PERSONAL DATA,806.08,DISABILITY & HIV,PAYMENTS TO CARERS,REDACTED,REDACTED
04.07.2018,CHILDREN'S SERVICES,REDACTED PERSONAL DATA,806.08,DISABILITY & HIV,PAYMENTS TO CARERS,REDACTED,REDACTED
04.07.2018,CHILDREN'S SERVICES,REDACTED PERSONAL DATA,798.12,DISABILITY & HIV,PAYMENTS TO CARERS,REDACTED,REDACTED
04.07.2018,CHILDREN'S SERVICES,REDACTED PERSONAL DATA,712.3,DISABILITY & HIV,PAYMENTS TO CARERS,REDACTED,REDACTED
04.07.2018,CHILDREN'S SERVICES,REDACTED PERSONAL DATA,"1,094.60",DISABILITY & HIV,PAYMENTS TO CARERS,REDACTED,REDACTED
04.07.2018,CHILDREN'S SERVICES,REDACTED PERSONAL DATA,798.12,DISABILITY & HIV,PAYMENTS TO CARERS,REDACTED,REDACTED
04.07.2018,CHILDREN'S SERVICES,REDACTED PERSONAL DATA,798.12,DISABILITY & HIV,PAYMENTS TO CARERS,REDACTED,REDACTED
04.07.2018,CHILDREN'S SERVICES,REDACTED PERSONAL DATA,806.08,DISABILITY & HIV,PAYMENTS TO CARERS,REDACTED,REDACTED
04.07.2018,CHILDREN'S SERVICES,REDACTED PERSONAL DATA,768.12,DISABILITY & HIV,PAYMENTS TO CARERS,REDACTED,REDACTED
04.07.2018,CHILDREN'S SERVICES,REDACTED PERSONAL DATA,888.12,DISABILITY & HIV,PAYMENTS TO CARERS,REDACTED,REDACTED
04.07.2018,CHILDREN'S SERVICES,REDACTED PERSONAL DATA,806.08,DISABILITY & HIV,PAYMENTS TO CARERS,REDACTED,REDACTED
04.07.2018,CHILDREN'S SERVICES,REDACTED PERSONAL DATA,806.08,DISABILITY & HIV,PAYMENTS TO CARERS,REDACTED,REDACTED
04.07.2018,CHILDREN'S SERVICES,REDACTED PERSONAL DATA,-424.89,DISABILITY & HIV,PAYMENTS TO CARERS,REDACTED,REDACTED
04.07.2018,CHILDREN'S SERVICES,REDACTED PERSONAL DATA,991.42,DISABILITY & HIV,PAYMENTS TO CARERS,REDACTED,REDACTED
04.07.2018,CHILDREN'S SERVICES,REDACTED PERSONAL DATA,682.3,DISABILITY & HIV,PAYMENTS TO CARERS,REDACTED,REDACTED
04.07.2018,CHILDREN'S SERVICES,REDACTED PERSONAL DATA,798.12,DISABILITY & HIV,PAYMENTS TO CARERS,REDACTED,REDACTED
04.07.2018,CHILDREN'S SERVICES,REDACTED PERSONAL DATA,768.12,DISABILITY & HIV,PAYMENTS TO CARERS,REDACTED,REDACTED
04.07.2018,CHILDREN'S SERVICES,REDACTED PERSONAL DATA,776.08,DISABILITY & HIV,PAYMENTS TO CARERS,REDACTED,REDACTED
04.07.2018,CHILDREN'S SERVICES,REDACTED PERSONAL DATA,798.12,DISABILITY & HIV,PAYMENTS TO CARERS,REDACTED,REDACTED
04.07.2018,CHILDREN'S SERVICES,REDACTED PERSONAL DATA,798.12,DISABILITY & HIV,PAYMENTS TO CARERS,REDACTED,REDACTED
04.07.2018,CHILDREN'S SERVICES,REDACTED PERSONAL DATA,665.34,DISABILITY & HIV,PAYMENTS TO CARERS,REDACTED,REDACTED
04.07.2018,CHILDREN'S SERVICES,REDACTED PERSONAL DATA,-356.15,DISABILITY & HIV,PAYMENTS TO CARERS,REDACTED,REDACTED
04.07.2018,CHILDREN'S SERVICES,REDACTED PERSONAL DATA,712.3,DISABILITY & HIV,PAYMENTS TO CARERS,REDACTED,REDACTED
04.07.2018,CHILDREN'S SERVICES,REDACTED PERSONAL DATA,806.08,DISABILITY & HIV,PAYMENTS TO CARERS,REDACTED,REDACTED
04.07.2018,CHILDREN'S SERVICES,REDACTED PERSONAL DATA,712.3,DISABILITY & HIV,PAYMENTS TO CARERS,REDACTED,REDACTED
04.07.2018,CHILDREN'S SERVICES,REDACTED PERSONAL DATA,712.3,DISABILITY & HIV,PAYMENTS TO CARERS,REDACTED,REDACTED
04.07.2018,CHILDREN'S SERVICES,REDACTED PERSONAL DATA,712.3,DISABILITY & HIV,PAYMENTS TO CARERS,REDACTED,REDACTED
04.07.2018,CHILDREN'S SERVICES,REDACTED PERSONAL DATA,806.08,DISABILITY & HIV,PAYMENTS TO CARERS,REDACTED,REDACTED
04.07.2018,CHILDREN'S SERVICES,REDACTED PERSONAL DATA,776.08,DISABILITY & HIV,PAYMENTS TO CARERS,REDACTED,REDACTED
04.07.2018,CHILDREN'S SERVICES,REDACTED PERSONAL DATA,665.34,DISABILITY & HIV,PAYMENTS TO CARERS,REDACTED,REDACTED
04.07.2018,CHILDREN'S SERVICES,REDACTED PERSONAL DATA,712.3,DISABILITY & HIV,PAYMENTS TO CARERS,REDACTED,REDACTED
04.07.2018,CHILDREN'S SERVICES,REDACTED PERSONAL DATA,888.12,DISABILITY & HIV,PAYMENTS TO CARERS,REDACTED,REDACTED
04.07.2018,CHILDREN'S SERVICES,REDACTED PERSONAL DATA,742.3,DISABILITY & HIV,PAYMENTS TO CARERS,REDACTED,REDACTED
04.07.2018,CHILDREN'S SERVICES,REDACTED PERSONAL DATA,712.3,DISABILITY & HIV,PAYMENTS TO CARERS,REDACTED,REDACTED
04.07.2018,CHILDREN'S SERVICES,REDACTED PERSONAL DATA,806.08,DISABILITY & HIV,PAYMENTS TO CARERS,REDACTED,REDACTED
04.07.2018,CHILDREN'S SERVICES,REDACTED PERSONAL DATA,682.3,DISABILITY & HIV,PAYMENTS TO CARERS,REDACTED,REDACTED
04.07.2018,CHILDREN'S SERVICES,REDACTED PERSONAL DATA,682.3,DISABILITY & HIV,PAYMENTS TO CARERS,REDACTED,REDACTED
04.07.2018,CHILDREN'S SERVICES,REDACTED PERSONAL DATA,806.08,DISABILITY & HIV,PAYMENTS TO CARERS,REDACTED,REDACTED
04.07.2018,CHILDREN'S SERVICES,REDACTED PERSONAL DATA,-389.89,DISABILITY & HIV,PAYMENTS TO CARERS,REDACTED,REDACTED
04.07.2018,CHILDREN'S SERVICES,REDACTED PERSONAL DATA,682.3,DISABILITY & HIV,PAYMENTS TO CARERS,REDACTED,REDACTED
04.07.2018,CHILDREN'S SERVICES,REDACTED PERSONAL DATA,682.3,DISABILITY & HIV,PAYMENTS TO CARERS,REDACTED,REDACTED
04.07.2018,CHILDREN'S SERVICES,REDACTED PERSONAL DATA,806.08,DISABILITY & HIV,PAYMENTS TO CARERS,REDACTED,REDACTED
04.07.2018,CHILDREN'S SERVICES,REDACTED PERSONAL DATA,798.12,DISABILITY & HIV,PAYMENTS TO CARERS,REDACTED,REDACTED
04.07.2018,CHILDREN'S SERVICES,REDACTED PERSONAL DATA,798.12,DISABILITY & HIV,PAYMENTS TO CARERS,REDACTED,REDACTED
04.07.2018,CHILDREN'S SERVICES,REDACTED PERSONAL DATA,"1,400.00",DISABILITY & HIV,PAYMENTS TO CARERS,REDACTED,REDACTED
04.07.2018,CHILDREN'S SERVICES,REDACTED PERSONAL DATA,-332.67,DISABILITY & HIV,PAYMENTS TO CARERS,REDACTED,REDACTED
04.07.2018,CHILDREN'S SERVICES,REDACTED PERSONAL DATA,798.12,DISABILITY & HIV,PAYMENTS TO CARERS,REDACTED,REDACTED
04.07.2018,CHILDREN'S SERVICES,REDACTED PERSONAL DATA,300,DISABILITY & HIV,PAYMENTS TO CARERS,REDACTED,REDACTED
04.07.2018,CHILDREN'S SERVICES,REDACTED PERSONAL DATA,682.3,DISABILITY & HIV,PAYMENTS TO CARERS,REDACTED,REDACTED
04.07.2018,CHILDREN'S SERVICES,REDACTED PERSONAL DATA,888.12,DISABILITY & HIV,PAYMENTS TO CARERS,REDACTED,REDACTED
04.07.2018,CHILDREN'S SERVICES,REDACTED PERSONAL DATA,798.12,DISABILITY & HIV,PAYMENTS TO CARERS,REDACTED,REDACTED
04.07.2018,CHILDREN'S SERVICES,REDACTED PERSONAL DATA,798.12,DISABILITY & HIV,PAYMENTS TO CARERS,REDACTED,REDACTED
04.07.2018,CHILDREN'S SERVICES,REDACTED PERSONAL DATA,776.08,DISABILITY & HIV,PAYMENTS TO CARERS,REDACTED,REDACTED
04.07.2018,CHILDREN'S SERVICES,REDACTED PERSONAL DATA,635.34,DISABILITY & HIV,PAYMENTS TO CARERS,REDACTED,REDACTED
04.07.2018,CHILDREN'S SERVICES,REDACTED PERSONAL DATA,476.08,DISABILITY & HIV,PAYMENTS TO CARERS,REDACTED,REDACTED
04.07.2018,CHILDREN'S SERVICES,REDACTED PERSONAL DATA,924.2,DISABILITY & HIV,PAYMENTS TO CARERS,REDACTED,REDACTED
04.07.2018,CHILDREN'S SERVICES,REDACTED PERSONAL DATA,806.08,DISABILITY & HIV,PAYMENTS TO CARERS,REDACTED,REDACTED
04.07.2018,CHILDREN'S SERVICES,REDACTED PERSONAL DATA,798.12,DISABILITY & HIV,PAYMENTS TO CARERS,REDACTED,REDACTED
04.07.2018,CHILDREN'S SERVICES,REDACTED PERSONAL DATA,665.34,DISABILITY & HIV,PAYMENTS TO CARERS,REDACTED,REDACTED
04.07.2018,CHILDREN'S SERVICES,REDACTED PERSONAL DATA,665.34,DISABILITY & HIV,PAYMENTS TO CARERS,REDACTED,REDACTED
04.07.2018,CHILDREN'S SERVICES,REDACTED PERSONAL DATA,665.34,DISABILITY & HIV,PAYMENTS TO CARERS,REDACTED,REDACTED
04.07.2018,CHILDREN'S SERVICES,REDACTED PERSONAL DATA,712.3,DISABILITY & HIV,PAYMENTS TO CARERS,REDACTED,REDACTED
04.07.2018,CHILDREN'S SERVICES,REDACTED PERSONAL DATA,798.12,DISABILITY & HIV,PAYMENTS TO CARERS,REDACTED,REDACTED
04.07.2018,CHILDREN'S SERVICES,REDACTED PERSONAL DATA,682.3,DISABILITY & HIV,PAYMENTS TO CARERS,REDACTED,REDACTED
04.07.2018,CHILDREN'S SERVICES,REDACTED PERSONAL DATA,682.3,DISABILITY & HIV,PAYMENTS TO CARERS,REDACTED,REDACTED
04.07.2018,CHILDREN'S SERVICES,REDACTED PERSONAL DATA,806.08,DISABILITY & HIV,PAYMENTS TO CARERS,REDACTED,REDACTED
04.07.2018,CHILDREN'S SERVICES,REDACTED PERSONAL DATA,806.08,DISABILITY & HIV,PAYMENTS TO CARERS,REDACTED,REDACTED
04.07.2018,CHILDREN'S SERVICES,REDACTED PERSONAL DATA,888.12,DISABILITY & HIV,PAYMENTS TO CARERS,REDACTED,REDACTED
04.07.2018,CHILDREN'S SERVICES,REDACTED PERSONAL DATA,888.12,DISABILITY & HIV,PAYMENTS TO CARERS,REDACTED,REDACTED
04.07.2018,CHILDREN'S SERVICES,REDACTED PERSONAL DATA,798.12,DISABILITY & HIV,PAYMENTS TO CARERS,REDACTED,REDACTED
04.07.2018,CHILDREN'S SERVICES,REDACTED PERSONAL DATA,888.12,DISABILITY & HIV,PAYMENTS TO CARERS,REDACTED,REDACTED
04.07.2018,CHILDREN'S SERVICES,REDACTED PERSONAL DATA,-332.67,DISABILITY & HIV,PAYMENTS TO CARERS,REDACTED,REDACTED
04.07.2018,CHILDREN'S SERVICES,REDACTED PERSONAL DATA,665.34,DISABILITY & HIV,PAYMENTS TO CARERS,REDACTED,REDACTED
04.07.2018,CHILDREN'S SERVICES,REDACTED PERSONAL DATA,798.12,DISABILITY & HIV,PAYMENTS TO CARERS,REDACTED,REDACTED
04.07.2018,CHILDREN'S SERVICES,REDACTED PERSONAL DATA,888.12,DISABILITY & HIV,PAYMENTS TO CARERS,REDACTED,REDACTED
04.07.2018,CHILDREN'S SERVICES,REDACTED PERSONAL DATA,806.08,DISABILITY & HIV,PAYMENTS TO CARERS,REDACTED,REDACTED
04.07.2018,CHILDREN'S SERVICES,REDACTED PERSONAL DATA,806.08,DISABILITY & HIV,PAYMENTS TO CARERS,REDACTED,REDACTED
04.07.2018,CHILDREN'S SERVICES,REDACTED PERSONAL DATA,806.08,DISABILITY & HIV,PAYMENTS TO CARERS,REDACTED,REDACTED
04.07.2018,CHILDREN'S SERVICES,REDACTED PERSONAL DATA,806.08,DISABILITY & HIV,PAYMENTS TO CARERS,REDACTED,REDACTED
04.07.2018,CHILDREN'S SERVICES,REDACTED PERSONAL DATA,806.08,DISABILITY & HIV,PAYMENTS TO CARERS,REDACTED,REDACTED
04.07.2018,CHILDREN'S SERVICES,REDACTED PERSONAL DATA,-380.19,DISABILITY & HIV,PAYMENTS TO CARERS,REDACTED,REDACTED
04.07.2018,CHILDREN'S SERVICES,REDACTED PERSONAL DATA,712.3,DISABILITY & HIV,PAYMENTS TO CARERS,REDACTED,REDACTED
04.07.2018,CHILDREN'S SERVICES,REDACTED PERSONAL DATA,806.08,DISABILITY & HIV,PAYMENTS TO CARERS,REDACTED,REDACTED
04.07.2018,CHILDREN'S SERVICES,REDACTED PERSONAL DATA,798.12,DISABILITY & HIV,PAYMENTS TO CARERS,REDACTED,REDACTED
04.07.2018,CHILDREN'S SERVICES,REDACTED PERSONAL DATA,888.12,DISABILITY & HIV,PAYMENTS TO CARERS,REDACTED,REDACTED
04.07.2018,CHILDREN'S SERVICES,REDACTED PERSONAL DATA,888.12,DISABILITY & HIV,PAYMENTS TO CARERS,REDACTED,REDACTED
04.07.2018,CHILDREN'S SERVICES,REDACTED PERSONAL DATA,806.08,DISABILITY & HIV,PAYMENTS TO CARERS,REDACTED,REDACTED
04.07.2018,CHILDREN'S SERVICES,REDACTED PERSONAL DATA,806.08,DISABILITY & HIV,PAYMENTS TO CARERS,REDACTED,REDACTED
04.07.2018,CHILDREN'S SERVICES,REDACTED PERSONAL DATA,712.3,DISABILITY & HIV,PAYMENTS TO CARERS,REDACTED,REDACTED
04.07.2018,CHILDREN'S SERVICES,REDACTED PERSONAL DATA,806.08,DISABILITY & HIV,PAYMENTS TO CARERS,REDACTED,REDACTED
04.07.2018,CHILDREN'S SERVICES,REDACTED PERSONAL DATA,888.12,DISABILITY & HIV,PAYMENTS TO CARERS,REDACTED,REDACTED
04.07.2018,CHILDREN'S SERVICES,REDACTED PERSONAL DATA,712.3,DISABILITY & HIV,PAYMENTS TO CARERS,REDACTED,REDACTED
04.07.2018,CHILDREN'S SERVICES,REDACTED PERSONAL DATA,806.08,DISABILITY & HIV,PAYMENTS TO CARERS,REDACTED,REDACTED
04.07.2018,CHILDREN'S SERVICES,REDACTED PERSONAL DATA,"1,633.46",DISABILITY & HIV,PAYMENTS TO CARERS,REDACTED,REDACTED
04.07.2018,CHILDREN'S SERVICES,REDACTED PERSONAL DATA,888.12,DISABILITY & HIV,PAYMENTS TO CARERS,REDACTED,REDACTED
04.07.2018,CHILDREN'S SERVICES,REDACTED PERSONAL DATA,682.3,DISABILITY & HIV,PAYMENTS TO CARERS,REDACTED,REDACTED
04.07.2018,CHILDREN'S SERVICES,REDACTED PERSONAL DATA,712.3,DISABILITY & HIV,PAYMENTS TO CARERS,REDACTED,REDACTED
04.07.2018,CHILDREN'S SERVICES,REDACTED PERSONAL DATA,806.08,DISABILITY & HIV,PAYMENTS TO CARERS,REDACTED,REDACTED
04.07.2018,CHILDREN'S SERVICES,REDACTED PERSONAL DATA,806.08,DISABILITY & HIV,PAYMENTS TO CARERS,REDACTED,REDACTED
04.07.2018,CHILDREN'S SERVICES,REDACTED PERSONAL DATA,768.12,DISABILITY & HIV,PAYMENTS TO CARERS,REDACTED,REDACTED
04.07.2018,CHILDREN'S SERVICES,REDACTED PERSONAL DATA,768.12,DISABILITY & HIV,PAYMENTS TO CARERS,REDACTED,REDACTED
04.07.2018,CHILDREN'S SERVICES,REDACTED PERSONAL DATA,-457.91,DISABILITY & HIV,PAYMENTS TO CARERS,REDACTED,REDACTED
04.07.2018,CHILDREN'S SERVICES,REDACTED PERSONAL DATA,806.08,DISABILITY & HIV,PAYMENTS TO CARERS,REDACTED,REDACTED
04.07.2018,CHILDREN'S SERVICES,REDACTED PERSONAL DATA,798.12,DISABILITY & HIV,PAYMENTS TO CARERS,REDACTED,REDACTED
04.07.2018,CHILDREN'S SERVICES,REDACTED PERSONAL DATA,798.12,DISABILITY & HIV,PAYMENTS TO CARERS,REDACTED,REDACTED
04.07.2018,CHILDREN'S SERVICES,REDACTED PERSONAL DATA,806.08,DISABILITY & HIV,PAYMENTS TO CARERS,REDACTED,REDACTED
04.07.2018,CHILDREN'S SERVICES,REDACTED PERSONAL DATA,776.08,DISABILITY & HIV,PAYMENTS TO CARERS,REDACTED,REDACTED
04.07.2018,CHILDREN'S SERVICES,REDACTED PERSONAL DATA,776.08,DISABILITY & HIV,PAYMENTS TO CARERS,REDACTED,REDACTED
04.07.2018,CHILDREN'S SERVICES,REDACTED PERSONAL DATA,776.08,DISABILITY & HIV,PAYMENTS TO CARERS,REDACTED,REDACTED
04.07.2018,CHILDREN'S SERVICES,REDACTED PERSONAL DATA,798.12,DISABILITY & HIV,PAYMENTS TO CARERS,REDACTED,REDACTED
04.07.2018,CHILDREN'S SERVICES,REDACTED PERSONAL DATA,682.3,DISABILITY & HIV,PAYMENTS TO CARERS,REDACTED,REDACTED
04.07.2018,CHILDREN'S SERVICES,REDACTED PERSONAL DATA,776.08,DISABILITY & HIV,PAYMENTS TO CARERS,REDACTED,REDACTED
04.07.2018,CHILDREN'S SERVICES,REDACTED PERSONAL DATA,806.08,DISABILITY & HIV,PAYMENTS TO CARERS,REDACTED,REDACTED
04.07.2018,CHILDREN'S SERVICES,REDACTED PERSONAL DATA,"1,776.24",DISABILITY & HIV,PAYMENTS TO CARERS,REDACTED,REDACTED
04.07.2018,CHILDREN'S SERVICES,REDACTED PERSONAL DATA,712.3,DISABILITY & HIV,PAYMENTS TO CARERS,REDACTED,REDACTED
04.07.2018,CHILDREN'S SERVICES,REDACTED PERSONAL DATA,712.3,DISABILITY & HIV,PAYMENTS TO CARERS,REDACTED,REDACTED
04.07.2018,CHILDREN'S SERVICES,REDACTED PERSONAL DATA,380.2,DISABILITY & HIV,PAYMENTS TO CARERS,REDACTED,REDACTED
04.07.2018,CHILDREN'S SERVICES,REDACTED PERSONAL DATA,407.02,DISABILITY & HIV,PAYMENTS TO CARERS,REDACTED,REDACTED
04.07.2018,CHILDREN'S SERVICES,REDACTED PERSONAL DATA,407.02,DISABILITY & HIV,PAYMENTS TO CARERS,REDACTED,REDACTED
04.07.2018,CHILDREN'S SERVICES,REDACTED PERSONAL DATA,712.3,DISABILITY & HIV,PAYMENTS TO CARERS,REDACTED,REDACTED
04.07.2018,CHILDREN'S SERVICES,REDACTED PERSONAL DATA,665.34,DISABILITY & HIV,PAYMENTS TO CARERS,REDACTED,REDACTED
04.07.2018,CHILDREN'S SERVICES,REDACTED PERSONAL DATA,806.08,DISABILITY & HIV,PAYMENTS TO CARERS,REDACTED,REDACTED
04.07.2018,CHILDREN'S SERVICES,REDACTED PERSONAL DATA,854.28,DISABILITY & HIV,PAYMENTS TO CARERS,REDACTED,REDACTED
04.07.2018,CHILDREN'S SERVICES,THE FOSTERING NETWORK,832,DISABILITY & HIV,SUBSCRIPTIONS,5902310183,1000030450
04.07.2018,CHILDREN'S SERVICES,THE FOSTERING NETWORK,"1,749.78",DISABILITY & HIV,SUBSCRIPTIONS,5902310183,1000030450
04.07.2018,CHILDREN'S SERVICES,REDACTED PERSONAL DATA,400,FRIENDS & FAMILY FOSTERING,ADDITIONAL PAYMENTS TO AGENCIES/CARERS,REDACTED,REDACTED
04.07.2018,CHILDREN'S SERVICES,REDACTED PERSONAL DATA,700,FRIENDS & FAMILY FOSTERING,ADDITIONAL PAYMENTS TO AGENCIES/CARERS,REDACTED,REDACTED
04.07.2018,CHILDREN'S SERVICES,REDACTED PERSONAL DATA,382.3,FRIENDS & FAMILY FOSTERING,PAYMENTS TO CARERS,REDACTED,REDACTED
04.07.2018,CHILDREN'S SERVICES,REDACTED PERSONAL DATA,635.34,FRIENDS & FAMILY FOSTERING,PAYMENTS TO CARERS,REDACTED,REDACTED
04.07.2018,CHILDREN'S SERVICES,REDACTED PERSONAL DATA,-476.08,FRIENDS & FAMILY FOSTERING,PAYMENTS TO CARERS,REDACTED,REDACTED
04.07.2018,CHILDREN'S SERVICES,REDACTED PERSONAL DATA,-408.06,FRIENDS & FAMILY FOSTERING,PAYMENTS TO CARERS,REDACTED,REDACTED
04.07.2018,CHILDREN'S SERVICES,REDACTED PERSONAL DATA,"1,552.16",FRIENDS & FAMILY FOSTERING,PAYMENTS TO CARERS,REDACTED,REDACTED
04.07.2018,CHILDREN'S SERVICES,REDACTED PERSONAL DATA,335.34,FRIENDS & FAMILY FOSTERING,PAYMENTS TO CARERS,REDACTED,REDACTED
04.07.2018,CHILDREN'S SERVICES,REDACTED PERSONAL DATA,335.34,FRIENDS & FAMILY FOSTERING,PAYMENTS TO CARERS,REDACTED,REDACTED
04.07.2018,CHILDREN'S SERVICES,REDACTED PERSONAL DATA,335.34,FRIENDS & FAMILY FOSTERING,PAYMENTS TO CARERS,REDACTED,REDACTED
04.07.2018,CHILDREN'S SERVICES,REDACTED PERSONAL DATA,682.3,FRIENDS & FAMILY FOSTERING,PAYMENTS TO CARERS,REDACTED,REDACTED
04.07.2018,CHILDREN'S SERVICES,REDACTED PERSONAL DATA,682.3,FRIENDS & FAMILY FOSTERING,PAYMENTS TO CARERS,REDACTED,REDACTED
04.07.2018,CHILDREN'S SERVICES,REDACTED PERSONAL DATA,776.08,FRIENDS & FAMILY FOSTERING,PAYMENTS TO CARERS,REDACTED,REDACTED
04.07.2018,CHILDREN'S SERVICES,REDACTED PERSONAL DATA,682.3,FRIENDS & FAMILY FOSTERING,PAYMENTS TO CARERS,REDACTED,REDACTED
04.07.2018,CHILDREN'S SERVICES,REDACTED PERSONAL DATA,682.3,FRIENDS & FAMILY FOSTERING,PAYMENTS TO CARERS,REDACTED,REDACTED
04.07.2018,CHILDREN'S SERVICES,REDACTED PERSONAL DATA,776.08,FRIENDS & FAMILY FOSTERING,PAYMENTS TO CARERS,REDACTED,REDACTED
04.07.2018,CHILDREN'S SERVICES,REDACTED PERSONAL DATA,776.08,FRIENDS & FAMILY FOSTERING,PAYMENTS TO CARERS,REDACTED,REDACTED
04.07.2018,CHILDREN'S SERVICES,REDACTED PERSONAL DATA,682.3,FRIENDS & FAMILY FOSTERING,PAYMENTS TO CARERS,REDACTED,REDACTED
04.07.2018,CHILDREN'S SERVICES,REDACTED PERSONAL DATA,682.3,FRIENDS & FAMILY FOSTERING,PAYMENTS TO CARERS,REDACTED,REDACTED
04.07.2018,CHILDREN'S SERVICES,REDACTED PERSONAL DATA,776.08,FRIENDS & FAMILY FOSTERING,PAYMENTS TO CARERS,REDACTED,REDACTED
04.07.2018,CHILDREN'S SERVICES,REDACTED PERSONAL DATA,682.3,FRIENDS & FAMILY FOSTERING,PAYMENTS TO CARERS,REDACTED,REDACTED
04.07.2018,CHILDREN'S SERVICES,REDACTED PERSONAL DATA,476.08,FRIENDS & FAMILY FOSTERING,PAYMENTS TO CARERS,REDACTED,REDACTED
04.07.2018,CHILDREN'S SERVICES,REDACTED PERSONAL DATA,776.08,FRIENDS & FAMILY FOSTERING,PAYMENTS TO CARERS,REDACTED,REDACTED
04.07.2018,CHILDREN'S SERVICES,REDACTED PERSONAL DATA,335.34,FRIENDS & FAMILY FOSTERING,PAYMENTS TO CARERS,REDACTED,REDACTED
04.07.2018,CHILDREN'S SERVICES,REDACTED PERSONAL DATA,382.3,FRIENDS & FAMILY FOSTERING,PAYMENTS TO CARERS,REDACTED,REDACTED
04.07.2018,CHILDREN'S SERVICES,REDACTED PERSONAL DATA,476.08,FRIENDS & FAMILY FOSTERING,PAYMENTS TO CARERS,REDACTED,REDACTED
04.07.2018,CHILDREN'S SERVICES,REDACTED PERSONAL DATA,682.3,FRIENDS & FAMILY FOSTERING,PAYMENTS TO CARERS,REDACTED,REDACTED
04.07.2018,CHILDREN'S SERVICES,REDACTED PERSONAL DATA,776.08,FRIENDS & FAMILY FOSTERING,PAYMENTS TO CARERS,REDACTED,REDACTED
04.07.2018,CHILDREN'S SERVICES,REDACTED PERSONAL DATA,"1,993.42",FRIENDS & FAMILY FOSTERING,PAYMENTS TO CARERS,REDACTED,REDACTED
04.07.2018,CHILDREN'S SERVICES,REDACTED PERSONAL DATA,"1,993.42",FRIENDS & FAMILY FOSTERING,PAYMENTS TO CARERS,REDACTED,REDACTED
04.07.2018,CHILDREN'S SERVICES,REDACTED PERSONAL DATA,682.3,FRIENDS & FAMILY FOSTERING,PAYMENTS TO CARERS,REDACTED,REDACTED
04.07.2018,CHILDREN'S SERVICES,REDACTED PERSONAL DATA,682.3,FRIENDS & FAMILY FOSTERING,PAYMENTS TO CARERS,REDACTED,REDACTED
04.07.2018,CHILDREN'S SERVICES,REDACTED PERSONAL DATA,682.3,FRIENDS & FAMILY FOSTERING,PAYMENTS TO CARERS,REDACTED,REDACTED
04.07.2018,CHILDREN'S SERVICES,REDACTED PERSONAL DATA,682.3,FRIENDS & FAMILY FOSTERING,PAYMENTS TO CARERS,REDACTED,REDACTED
04.07.2018,CHILDREN'S SERVICES,REDACTED PERSONAL DATA,682.3,FRIENDS & FAMILY FOSTERING,PAYMENTS TO CARERS,REDACTED,REDACTED
04.07.2018,CHILDREN'S SERVICES,REDACTED PERSONAL DATA,776.08,FRIENDS & FAMILY FOSTERING,PAYMENTS TO CARERS,REDACTED,REDACTED
04.07.2018,CHILDREN'S SERVICES,REDACTED PERSONAL DATA,767.66,FRIENDS & FAMILY FOSTERING,PAYMENTS TO CARERS,REDACTED,REDACTED
04.07.2018,CHILDREN'S SERVICES,REDACTED PERSONAL DATA,476.08,FRIENDS & FAMILY FOSTERING,PAYMENTS TO CARERS,REDACTED,REDACTED
04.07.2018,CHILDREN'S SERVICES,HM COURTS & TRIBUNALS SERVICE,"2,055.00",LEGAL,LEGAL FEES & COURT COSTS,2102836254,1000075260
04.07.2018,CHILDREN'S SERVICES,HM COURTS & TRIBUNALS SERVICE,"2,055.00",LEGAL,LEGAL FEES & COURT COSTS,2102836258,1000075260
04.07.2018,CHILDREN'S SERVICES,HM COURTS & TRIBUNALS SERVICE,"2,055.00",LEGAL,LEGAL FEES & COURT COSTS,2102836259,1000075260
04.07.2018,CHILDREN'S SERVICES,HM COURTS & TRIBUNALS SERVICE,"2,055.00",LEGAL,LEGAL FEES & COURT COSTS,2102836281,1000075260
04.07.2018,CHILDREN'S SERVICES,SOUTHWARK INCLUSIVE LEARNING SERVICE,"15,194.00",PUPIL PREMIUM,"SCHOOLS CAPITATION, STANDARDS FUND",5902310267,5001000105
04.07.2018,CHILDREN'S SERVICES,ALBION PRIMARY SCHOOL,"46,775.00",PUPIL PREMIUM,"SCHOOLS CAPITATION, STANDARDS FUND",5902310198,5001000000
04.07.2018,CHILDREN'S SERVICES,ALFRED SALTER PRIMARY SCHOOL,"50,970.00",PUPIL PREMIUM,"SCHOOLS CAPITATION, STANDARDS FUND",5902310199,5001000005
04.07.2018,CHILDREN'S SERVICES,BELLENDEN PRIMARY SCHOOL,"21,940.00",PUPIL PREMIUM,"SCHOOLS CAPITATION, STANDARDS FUND",5902310200,5001000007
04.07.2018,CHILDREN'S SERVICES,BEORMUND PRIMARY SCHOOL,"9,240.00",PUPIL PREMIUM,"SCHOOLS CAPITATION, STANDARDS FUND",5902310201,5001000008
04.07.2018,CHILDREN'S SERVICES,BESSEMER GRANGE PRIMARY SCHOOL,"37,950.00",PUPIL PREMIUM,"SCHOOLS CAPITATION, STANDARDS FUND",5902310202,5001000009
04.07.2018,CHILDREN'S SERVICES,BETHLEM & MAUDSLEY HOSPITAL SCHOOL,"2,338.00",PUPIL PREMIUM,"SCHOOLS CAPITATION, STANDARDS FUND",5902310203,5001000010
04.07.2018,CHILDREN'S SERVICES,BOUCHER C OF E PRIMARY SCHOOL,"19,800.00",PUPIL PREMIUM,"SCHOOLS CAPITATION, STANDARDS FUND",5902310204,5001000011
04.07.2018,CHILDREN'S SERVICES,BRUNSWICK PARK PRIMARY SCHOOL,"71,770.00",PUPIL PREMIUM,"SCHOOLS CAPITATION, STANDARDS FUND",5902310205,5001000013
04.07.2018,CHILDREN'S SERVICES,CAMELOT PRIMARY SCHOOL,"53,790.00",PUPIL PREMIUM,"SCHOOLS CAPITATION, STANDARDS FUND",5902310206,5001000014
04.07.2018,CHILDREN'S SERVICES,CATHEDRAL SCHOOL OF ST SAVIOUR & MARY,"10,230.00",PUPIL PREMIUM,"SCHOOLS CAPITATION, STANDARDS FUND",5902310264,5001000088
04.07.2018,CHILDREN'S SERVICES,CHARLES DICKENS PRIMARY SCHOOL,"53,525.00",PUPIL PREMIUM,"SCHOOLS CAPITATION, STANDARDS FUND",5902310207,5001000015
04.07.2018,CHILDREN'S SERVICES,CHARLOTTE  SHARMAN PRIMARY SCHOOL,"46,605.00",PUPIL PREMIUM,"SCHOOLS CAPITATION, STANDARDS FUND",5902310208,5001000016
04.07.2018,CHILDREN'S SERVICES,CHERRY GARDEN SCHOOL,"9,240.00",PUPIL PREMIUM,"SCHOOLS CAPITATION, STANDARDS FUND",5902310212,5001000020
04.07.2018,CHILDREN'S SERVICES,COBOURG PRIMARY SCHOOL,"48,510.00",PUPIL PREMIUM,"SCHOOLS CAPITATION, STANDARDS FUND",5902310213,5001000021
04.07.2018,CHILDREN'S SERVICES,COMBER GROVE PRIMARY SCHOOL,"27,060.00",PUPIL PREMIUM,"SCHOOLS CAPITATION, STANDARDS FUND",5902310214,5001000022
04.07.2018,CHILDREN'S SERVICES,CRAMPTON PRIMARY SCHOOL,"19,140.00",PUPIL PREMIUM,"SCHOOLS CAPITATION, STANDARDS FUND",5902310215,5001000023
04.07.2018,CHILDREN'S SERVICES,CRAWFORD PRIMARY SCHOOL,"65,320.00",PUPIL PREMIUM,"SCHOOLS CAPITATION, STANDARDS FUND",5902310216,5001000024
04.07.2018,CHILDREN'S SERVICES,DOG KENNEL HILL PRIMARY SCHOOL,"35,640.00",PUPIL PREMIUM,"SCHOOLS CAPITATION, STANDARDS FUND",5902310217,5001000025
04.07.2018,CHILDREN'S SERVICES,DULWICH VILLAGE CE INFANTS SCHOOL,"10,125.00",PUPIL PREMIUM,"SCHOOLS CAPITATION, STANDARDS FUND",5902310218,5001000027
04.07.2018,CHILDREN'S SERVICES,DULWICH WOOD PRIMARY SCHOOL,"34,320.00",PUPIL PREMIUM,"SCHOOLS CAPITATION, STANDARDS FUND",5902310231,5001000042
04.07.2018,CHILDREN'S SERVICES,ENGLISH MARTYRS RC PRIMARY SCHOOL,"37,365.00",PUPIL PREMIUM,"SCHOOLS CAPITATION, STANDARDS FUND",5902310221,5001000030
04.07.2018,CHILDREN'S SERVICES,EVELINA HOSPITAL SCHOOL,"2,104.00",PUPIL PREMIUM,"SCHOOLS CAPITATION, STANDARDS FUND",5902310222,5001000031
04.07.2018,CHILDREN'S SERVICES,FRIARS PRIMARY SCHOOL,"25,740.00",PUPIL PREMIUM,"SCHOOLS CAPITATION, STANDARDS FUND",5902310224,5001000033
04.07.2018,CHILDREN'S SERVICES,GOODRICH PRIMARY SCHOOL,"49,630.00",PUPIL PREMIUM,"SCHOOLS CAPITATION, STANDARDS FUND",5902310219,5001000028
04.07.2018,CHILDREN'S SERVICES,GRANGE PRIMARY SCHOOL,"57,090.00",PUPIL PREMIUM,"SCHOOLS CAPITATION, STANDARDS FUND",5902310220,5001000029
04.07.2018,CHILDREN'S SERVICES,HAYMERLE SCHOOL,"20,460.00",PUPIL PREMIUM,"SCHOOLS CAPITATION, STANDARDS FUND",5902310233,5001000045
04.07.2018,CHILDREN'S SERVICES,HEBER PRIMARY SCHOOL,"21,450.00",PUPIL PREMIUM,"SCHOOLS CAPITATION, STANDARDS FUND",5902310225,5001000035
04.07.2018,CHILDREN'S SERVICES,HIGHSHORE SCHOOL,"14,726.00",PUPIL PREMIUM,"SCHOOLS CAPITATION, STANDARDS FUND",5902310234,5001000046
04.07.2018,CHILDREN'S SERVICES,HOLLYDALE PRIMARY SCHOOL,"34,065.00",PUPIL PREMIUM,"SCHOOLS CAPITATION, STANDARDS FUND",5902310226,5001000036
04.07.2018,CHILDREN'S SERVICES,ILDERTON PRIMARY SCHOOL,"55,270.00",PUPIL PREMIUM,"SCHOOLS CAPITATION, STANDARDS FUND",5902310227,5001000037
04.07.2018,CHILDREN'S SERVICES,IVYDALE PRIMARY SCHOOL,"40,985.00",PUPIL PREMIUM,"SCHOOLS CAPITATION, STANDARDS FUND",5902310228,5001000038
04.07.2018,CHILDREN'S SERVICES,JOHN RUSKIN PRIMARY SCHOOL,"64,914.00",PUPIL PREMIUM,"SCHOOLS CAPITATION, STANDARDS FUND",5902310229,5001000040
04.07.2018,CHILDREN'S SERVICES,KEYWORTH PRIMARY SCHOOL,"52,800.00",PUPIL PREMIUM,"SCHOOLS CAPITATION, STANDARDS FUND",5902310230,5001000041
04.07.2018,CHILDREN'S SERVICES,LYNDHURST PRIMARY SCHOOL,"35,970.00",PUPIL PREMIUM,"SCHOOLS CAPITATION, STANDARDS FUND",5902310232,5001000043
04.07.2018,CHILDREN'S SERVICES,MICHAEL FARADAY PRIMARY SCHOOL,"60,465.00",PUPIL PREMIUM,"SCHOOLS CAPITATION, STANDARDS FUND",5902310235,5001000048
04.07.2018,CHILDREN'S SERVICES,NOTRE DAME RC GIRLS SCHOOL,"75,216.00",PUPIL PREMIUM,"SCHOOLS CAPITATION, STANDARDS FUND",5902310236,5001000050
04.07.2018,CHILDREN'S SERVICES,OLIVER GOLDSMITH PRIMARY SCHOOL,"64,680.00",PUPIL PREMIUM,"SCHOOLS CAPITATION, STANDARDS FUND",5902310237,5001000051
04.07.2018,CHILDREN'S SERVICES,PETER HILLS CE SCHOOL,"21,120.00",PUPIL PREMIUM,"SCHOOLS CAPITATION, STANDARDS FUND",5902310238,5001000053
04.07.2018,CHILDREN'S SERVICES,PHOENIX PRIMARY SCHOOL,"61,125.00",PUPIL PREMIUM,"SCHOOLS CAPITATION, STANDARDS FUND",5902310223,5001000032
04.07.2018,CHILDREN'S SERVICES,PILGRIM'S WAY PRIMARY SCHOOL,"35,310.00",PUPIL PREMIUM,"SCHOOLS CAPITATION, STANDARDS FUND",5902310239,5001000054
04.07.2018,CHILDREN'S SERVICES,RIVERSIDE PRIMARY SCHOOL,"52,800.00",PUPIL PREMIUM,"SCHOOLS CAPITATION, STANDARDS FUND",5902310240,5001000056
04.07.2018,CHILDREN'S SERVICES,ROBERT BROWNING PRIMARY SCHOOL,"49,170.00",PUPIL PREMIUM,"SCHOOLS CAPITATION, STANDARDS FUND",5902310241,5001000057
04.07.2018,CHILDREN'S SERVICES,ROTHERHITHE PRIMARY SCHOOL,"298,320.00",PUPIL PREMIUM,"SCHOOLS CAPITATION, STANDARDS FUND",5902310242,5001000058
04.07.2018,CHILDREN'S SERVICES,RYE OAK PRIMARY SCHOOL,"53,375.00",PUPIL PREMIUM,"SCHOOLS CAPITATION, STANDARDS FUND",5902310243,5001000059
04.07.2018,CHILDREN'S SERVICES,SNOWSFIELDS PRIMARY SCHOOL,"25,080.00",PUPIL PREMIUM,"SCHOOLS CAPITATION, STANDARDS FUND",5902310244,5001000061
04.07.2018,CHILDREN'S SERVICES,SOUTHWARK PARK PRIMARY SCHOOL,"39,100.00",PUPIL PREMIUM,"SCHOOLS CAPITATION, STANDARDS FUND",5902310245,5001000062
04.07.2018,CHILDREN'S SERVICES,SPA SCHOOL,"9,584.00",PUPIL PREMIUM,"SCHOOLS CAPITATION, STANDARDS FUND",5902310246,5001000063
04.07.2018,CHILDREN'S SERVICES,ST ANTHONYS RC SCHOOL,"18,310.00",PUPIL PREMIUM,"SCHOOLS CAPITATION, STANDARDS FUND",5902310247,5001000064
04.07.2018,CHILDREN'S SERVICES,ST FRANCESCA CABRINI PRIMARY SCHOOL,"42,485.00",PUPIL PREMIUM,"SCHOOLS CAPITATION, STANDARDS FUND",5902310248,5001000065
04.07.2018,CHILDREN'S SERVICES,ST FRANCIS'S RC PRIMARY SCHOOL,"32,670.00",PUPIL PREMIUM,"SCHOOLS CAPITATION, STANDARDS FUND",5902310249,5001000067
04.07.2018,CHILDREN'S SERVICES,ST GEORGES CE SCHOOL,"18,725.00",PUPIL PREMIUM,"SCHOOLS CAPITATION, STANDARDS FUND",5902310251,5001000069
04.07.2018,CHILDREN'S SERVICES,ST GEORGES RC SCHOOL,"18,065.00",PUPIL PREMIUM,"SCHOOLS CAPITATION, STANDARDS FUND",5902310250,5001000068
04.07.2018,CHILDREN'S SERVICES,ST JAMES CE SCHOOL,"85,960.00",PUPIL PREMIUM,"SCHOOLS CAPITATION, STANDARDS FUND",5902310252,5001000070
04.07.2018,CHILDREN'S SERVICES,ST JAMES THE GREAT RC SCHOOL,"23,760.00",PUPIL PREMIUM,"SCHOOLS CAPITATION, STANDARDS FUND",5902310253,5001000071
04.07.2018,CHILDREN'S SERVICES,ST JOHNS & ST CLEMENTS CE SCHOOL,"26,455.00",PUPIL PREMIUM,"SCHOOLS CAPITATION, STANDARDS FUND",5902310254,5001000073
04.07.2018,CHILDREN'S SERVICES,ST JOHNS RC PRIMARY SCHOOL,"28,050.00",PUPIL PREMIUM,"SCHOOLS CAPITATION, STANDARDS FUND",5902310256,5001000075
04.07.2018,CHILDREN'S SERVICES,ST JOSEPHS CATHOLIC INFANTS SCHOOL,"11,465.00",PUPIL PREMIUM,"SCHOOLS CAPITATION, STANDARDS FUND",5902310210,5001000018
04.07.2018,CHILDREN'S SERVICES,ST JOSEPHS CATHOLIC PRIMARY SCHOOL,"18,640.00",PUPIL PREMIUM,"SCHOOLS CAPITATION, STANDARDS FUND",5902310259,5001000078
04.07.2018,CHILDREN'S SERVICES,ST JOSEPHS CATHOLIC SCHOOL,"23,100.00",PUPIL PREMIUM,"SCHOOLS CAPITATION, STANDARDS FUND",5902310257,5001000076
04.07.2018,CHILDREN'S SERVICES,ST JOSEPHS RC JUNIOR  SCHOOL,"27,635.00",PUPIL PREMIUM,"SCHOOLS CAPITATION, STANDARDS FUND",5902310209,5001000017
04.07.2018,CHILDREN'S SERVICES,ST JOSEPHS RC PRIMARY SCHOOL,"25,740.00",PUPIL PREMIUM,"SCHOOLS CAPITATION, STANDARDS FUND",5902310258,5001000077
04.07.2018,CHILDREN'S SERVICES,ST JUDES CHURCH OF ENGLAND PRIMARY,"16,830.00",PUPIL PREMIUM,"SCHOOLS CAPITATION, STANDARDS FUND",5902310211,5001000019
04.07.2018,CHILDREN'S SERVICES,ST PAULS CE SCHOOL,"44,880.00",PUPIL PREMIUM,"SCHOOLS CAPITATION, STANDARDS FUND",5902310260,5001000082
04.07.2018,CHILDREN'S SERVICES,ST PETERS CE SCHOOL,"23,345.00",PUPIL PREMIUM,"SCHOOLS CAPITATION, STANDARDS FUND",5902310261,5001000083
04.07.2018,CHILDREN'S SERVICES,ST SAVIOURS & ST OLAVES SCHOOL,"67,788.00",PUPIL PREMIUM,"SCHOOLS CAPITATION, STANDARDS FUND",5902310262,5001000084
04.07.2018,CHILDREN'S SERVICES,SURREY SQUARE JUNIOR SCHOOL,"52,140.00",PUPIL PREMIUM,"SCHOOLS CAPITATION, STANDARDS FUND",5902310263,5001000087
04.07.2018,CHILDREN'S SERVICES,THE ST THOMAS THE APOSTLE COLLEGE,"70,826.00",PUPIL PREMIUM,"SCHOOLS CAPITATION, STANDARDS FUND",5902310255,5001000074
04.07.2018,CHILDREN'S SERVICES,TOWER BRIDGE PRIMARY SCHOOL,"32,010.00",PUPIL PREMIUM,"SCHOOLS CAPITATION, STANDARDS FUND",5902310265,5001000095
04.07.2018,CHILDREN'S SERVICES,VICTORY SCHOOL,"22,110.00",PUPIL PREMIUM,"SCHOOLS CAPITATION, STANDARDS FUND",5902310266,5001000098
04.07.2018,CHILDREN'S SERVICES,REDACTED PERSONAL DATA,269.08,RESIDENCE ORDERS,PAYMENTS TO CARERS,REDACTED,REDACTED
04.07.2018,CHILDREN'S SERVICES,REDACTED PERSONAL DATA,269.08,RESIDENCE ORDERS,PAYMENTS TO CARERS,REDACTED,REDACTED
04.07.2018,CHILDREN'S SERVICES,REDACTED PERSONAL DATA,264.16,RESIDENCE ORDERS,PAYMENTS TO CARERS,REDACTED,REDACTED
04.07.2018,CHILDREN'S SERVICES,REDACTED PERSONAL DATA,269.08,RESIDENCE ORDERS,PAYMENTS TO CARERS,REDACTED,REDACTED
04.07.2018,CHILDREN'S SERVICES,FUTURE FOUNDATIONS LTD,"1,667.14",S24 CLA,EXTERNAL AGENCIES AND BODIES,2102835687,1000063272
04.07.2018,CHILDREN'S SERVICES,FUTURE FOUNDATIONS LTD,"4,277.14",S24 CLA,EXTERNAL AGENCIES AND BODIES,2102835669,1000063272
04.07.2018,CHILDREN'S SERVICES,HOLMDENE HOUSING LTD,720,S24 CLA,EXTERNAL AGENCIES AND BODIES,2102835666,1000032598
04.07.2018,CHILDREN'S SERVICES,HOLMDENE HOUSING LTD,720,S24 CLA,EXTERNAL AGENCIES AND BODIES,2102835672,1000032598
04.07.2018,CHILDREN'S SERVICES,HOLMDENE HOUSING LTD,900,S24 CLA,EXTERNAL AGENCIES AND BODIES,2102835685,1000032598
04.07.2018,CHILDREN'S SERVICES,HOLMDENE HOUSING LTD,"1,480.00",S24 CLA,EXTERNAL AGENCIES AND BODIES,2102835682,1000032598
04.07.2018,CHILDREN'S SERVICES,HOLMDENE HOUSING LTD,"1,600.00",S24 CLA,EXTERNAL AGENCIES AND BODIES,2102835683,1000032598
04.07.2018,CHILDREN'S SERVICES,HOLMDENE HOUSING LTD,"1,880.00",S24 CLA,EXTERNAL AGENCIES AND BODIES,2102835676,1000032598
04.07.2018,CHILDREN'S SERVICES,PURPLE PEBBLES(CHILD CARE) SERVICES,325,S24 CLA,EXTERNAL AGENCIES AND BODIES,2102835675,1000070705
04.07.2018,CHILDREN'S SERVICES,PURPLE PEBBLES(CHILD CARE) SERVICES,325,S24 CLA,EXTERNAL AGENCIES AND BODIES,2102835684,1000070705
04.07.2018,CHILDREN'S SERVICES,PURPLE PEBBLES(CHILD CARE) SERVICES,421.43,S24 CLA,EXTERNAL AGENCIES AND BODIES,2102835665,1000070705
04.07.2018,CHILDREN'S SERVICES,PURPLE PEBBLES(CHILD CARE) SERVICES,"1,264.29",S24 CLA,EXTERNAL AGENCIES AND BODIES,2102835680,1000070705
04.07.2018,CHILDREN'S SERVICES,PURPLE PEBBLES(CHILD CARE) SERVICES,"1,306.43",S24 CLA,EXTERNAL AGENCIES AND BODIES,2102835674,1000070705
04.07.2018,CHILDREN'S SERVICES,COMMUNITY BUILDING MANAGEMENT,"6,415.55",SEMI INDEPENDENT,EXTERNAL AGENCIES AND BODIES,2102835653,1000078932
04.07.2018,CHILDREN'S SERVICES,COMMUNITY BUILDING MANAGEMENT,"25,198.57",SEMI INDEPENDENT,EXTERNAL AGENCIES AND BODIES,2102835663,1000078932
04.07.2018,CHILDREN'S SERVICES,FRESH START CARE SOLUTIONS LTD,"13,714.29",SEMI INDEPENDENT,EXTERNAL AGENCIES AND BODIES,2102835662,1000070537
04.07.2018,CHILDREN'S SERVICES,FUTURE FOUNDATIONS LTD,"4,277.14",SEMI INDEPENDENT,EXTERNAL AGENCIES AND BODIES,2102835659,1000063272
04.07.2018,CHILDREN'S SERVICES,HEARTWOOD OUTREACH SERVICES LTD,"12,423.30",SEMI INDEPENDENT,EXTERNAL AGENCIES AND BODIES,2102835660,1000075021
04.07.2018,CHILDREN'S SERVICES,HOLMDENE HOUSING LTD,"4,280.00",SEMI INDEPENDENT,EXTERNAL AGENCIES AND BODIES,2102835664,1000032598
04.07.2018,CHILDREN'S SERVICES,FUTURE FOUNDATIONS LTD,257.14,SEMI INDEPENDENT,OTHER PAYMENTS FOR CLIENTS,2102835652,1000063272
04.07.2018,CHILDREN'S SERVICES,REDACTED PERSONAL DATA,"1,042.86",SEMI INDEPENDENT,OTHER PAYMENTS FOR CLIENTS,REDACTED,REDACTED
04.07.2018,CHILDREN'S SERVICES,REDACTED PERSONAL DATA,269.08,SPECIAL GUARDIANSHIP,PAYMENTS TO CARERS,REDACTED,REDACTED
04.07.2018,CHILDREN'S SERVICES,REDACTED PERSONAL DATA,525,SPECIAL GUARDIANSHIP,PAYMENTS TO CARERS,REDACTED,REDACTED
04.07.2018,CHILDREN'S SERVICES,REDACTED PERSONAL DATA,525,SPECIAL GUARDIANSHIP,PAYMENTS TO CARERS,REDACTED,REDACTED
04.07.2018,CHILDREN'S SERVICES,REDACTED PERSONAL DATA,525,SPECIAL GUARDIANSHIP,PAYMENTS TO CARERS,REDACTED,REDACTED
04.07.2018,CHILDREN'S SERVICES,REDACTED PERSONAL DATA,276.1,SPECIAL GUARDIANSHIP,PAYMENTS TO CARERS,REDACTED,REDACTED
04.07.2018,CHILDREN'S SERVICES,REDACTED PERSONAL DATA,433.36,SPECIAL GUARDIANSHIP,PAYMENTS TO CARERS,REDACTED,REDACTED
04.07.2018,CHILDREN'S SERVICES,REDACTED PERSONAL DATA,354.59,SPECIAL GUARDIANSHIP,PAYMENTS TO CARERS,REDACTED,REDACTED
04.07.2018,CHILDREN'S SERVICES,REDACTED PERSONAL DATA,269.08,SPECIAL GUARDIANSHIP,PAYMENTS TO CARERS,REDACTED,REDACTED
04.07.2018,CHILDREN'S SERVICES,REDACTED PERSONAL DATA,268.36,SPECIAL GUARDIANSHIP,PAYMENTS TO CARERS,REDACTED,REDACTED
04.07.2018,CHILDREN'S SERVICES,REDACTED PERSONAL DATA,303.97,SPECIAL GUARDIANSHIP,PAYMENTS TO CARERS,REDACTED,REDACTED
04.07.2018,CHILDREN'S SERVICES,REDACTED PERSONAL DATA,269.08,SPECIAL GUARDIANSHIP,PAYMENTS TO CARERS,REDACTED,REDACTED
04.07.2018,CHILDREN'S SERVICES,REDACTED PERSONAL DATA,269.08,SPECIAL GUARDIANSHIP,PAYMENTS TO CARERS,REDACTED,REDACTED
04.07.2018,CHILDREN'S SERVICES,AFFINITY FOSTERING SERVICES LTD,"1,692.90",STAYING PUT,EXTERNAL AGENCIES AND BODIES,2102835677,1000073184
04.07.2018,CHILDREN'S SERVICES,AFFINITY FOSTERING SERVICES LTD,"1,692.90",STAYING PUT,EXTERNAL AGENCIES AND BODIES,2102835678,1000073184
04.07.2018,CHILDREN'S SERVICES,REDACTED PERSONAL DATA,430,STAYING PUT,PAYMENTS TO CARERS,REDACTED,REDACTED
04.07.2018,CHILDREN'S SERVICES,REDACTED PERSONAL DATA,500,STAYING PUT,PAYMENTS TO CARERS,REDACTED,REDACTED
04.07.2018,CHILDREN'S SERVICES,REDACTED PERSONAL DATA,500,STAYING PUT,PAYMENTS TO CARERS,REDACTED,REDACTED
04.07.2018,CHILDREN'S SERVICES,REDACTED PERSONAL DATA,500,STAYING PUT,PAYMENTS TO CARERS,REDACTED,REDACTED
04.07.2018,CHILDREN'S SERVICES,REDACTED PERSONAL DATA,500,STAYING PUT,PAYMENTS TO CARERS,REDACTED,REDACTED
04.07.2018,CHILDREN'S SERVICES,REDACTED PERSONAL DATA,500,STAYING PUT,PAYMENTS TO CARERS,REDACTED,REDACTED
04.07.2018,CHILDREN'S SERVICES,REDACTED PERSONAL DATA,500,STAYING PUT,PAYMENTS TO CARERS,REDACTED,REDACTED
04.07.2018,CHILDREN'S SERVICES,REDACTED PERSONAL DATA,500,STAYING PUT,PAYMENTS TO CARERS,REDACTED,REDACTED
04.07.2018,CHILDREN'S SERVICES,REDACTED PERSONAL DATA,500,STAYING PUT,PAYMENTS TO CARERS,REDACTED,REDACTED
04.07.2018,CHILDREN'S SERVICES,REDACTED PERSONAL DATA,500,STAYING PUT,PAYMENTS TO CARERS,REDACTED,REDACTED
04.07.2018,CHILDREN'S SERVICES,REDACTED PERSONAL DATA,500,STAYING PUT,PAYMENTS TO CARERS,REDACTED,REDACTED
04.07.2018,CHILDREN'S SERVICES,REDACTED PERSONAL DATA,500,STAYING PUT,PAYMENTS TO CARERS,REDACTED,REDACTED
04.07.2018,CHILDREN'S SERVICES,REDACTED PERSONAL DATA,500,STAYING PUT,PAYMENTS TO CARERS,REDACTED,REDACTED
04.07.2018,CHILDREN'S SERVICES,REDACTED PERSONAL DATA,500,STAYING PUT,PAYMENTS TO CARERS,REDACTED,REDACTED
04.07.2018,CHILDREN'S SERVICES,REDACTED PERSONAL DATA,500,STAYING PUT,PAYMENTS TO CARERS,REDACTED,REDACTED
04.07.2018,CHILDREN'S SERVICES,REDACTED PERSONAL DATA,500,STAYING PUT,PAYMENTS TO CARERS,REDACTED,REDACTED
04.07.2018,CHILDREN'S SERVICES,REDACTED PERSONAL DATA,373.46,STAYING PUT,PAYMENTS TO CARERS,REDACTED,REDACTED
04.07.2018,CHILDREN'S SERVICES,REDACTED PERSONAL DATA,500,STAYING PUT,PAYMENTS TO CARERS,REDACTED,REDACTED
04.07.2018,CHILDREN'S SERVICES,REDACTED PERSONAL DATA,500,STAYING PUT,PAYMENTS TO CARERS,REDACTED,REDACTED
04.07.2018,CHILDREN'S SERVICES,REDACTED PERSONAL DATA,500,STAYING PUT,PAYMENTS TO CARERS,REDACTED,REDACTED
04.07.2018,CHILDREN'S SERVICES,REDACTED PERSONAL DATA,428.57,STAYING PUT,PAYMENTS TO CARERS,REDACTED,REDACTED
04.07.2018,CHILDREN'S SERVICES,REDACTED PERSONAL DATA,500,STAYING PUT,PAYMENTS TO CARERS,REDACTED,REDACTED
04.07.2018,CHILDREN'S SERVICES,REDACTED PERSONAL DATA,500,STAYING PUT,PAYMENTS TO CARERS,REDACTED,REDACTED
04.07.2018,CHILDREN'S SERVICES,REDACTED PERSONAL DATA,500,STAYING PUT,PAYMENTS TO CARERS,REDACTED,REDACTED
04.07.2018,CHILDREN'S SERVICES,REDACTED PERSONAL DATA,500,STAYING PUT,PAYMENTS TO CARERS,REDACTED,REDACTED
04.07.2018,CHILDREN'S SERVICES,REDACTED PERSONAL DATA,500,STAYING PUT,PAYMENTS TO CARERS,REDACTED,REDACTED
04.07.2018,CHILDREN'S SERVICES,REDACTED PERSONAL DATA,500,STAYING PUT,PAYMENTS TO CARERS,REDACTED,REDACTED
04.07.2018,CHILDREN'S SERVICES,REDACTED PERSONAL DATA,500,STAYING PUT,PAYMENTS TO CARERS,REDACTED,REDACTED
04.07.2018,CHILDREN'S SERVICES,REDACTED PERSONAL DATA,500,STAYING PUT,PAYMENTS TO CARERS,REDACTED,REDACTED
04.07.2018,CHILDREN'S SERVICES,REDACTED PERSONAL DATA,"1,633.46",STAYING PUT,PAYMENTS TO CARERS,REDACTED,REDACTED
04.07.2018,CHILDREN'S SERVICES,REDACTED PERSONAL DATA,500,STAYING PUT,PAYMENTS TO CARERS,REDACTED,REDACTED
04.07.2018,CHILDREN'S SERVICES,REDACTED PERSONAL DATA,500,STAYING PUT,PAYMENTS TO CARERS,REDACTED,REDACTED
04.07.2018,CHILDREN'S SERVICES,HOLMDENE HOUSING LTD,780,UASC SECTION 24,EXTERNAL AGENCIES AND BODIES,2102835681,1000032598
04.07.2018,CHILDREN'S SERVICES,HOLMDENE HOUSING LTD,"1,480.00",UASC SECTION 24,EXTERNAL AGENCIES AND BODIES,2102835667,1000032598
04.07.2018,CHILDREN'S SERVICES,HOLMDENE HOUSING LTD,"1,480.00",UASC SECTION 24,EXTERNAL AGENCIES AND BODIES,2102835668,1000032598
04.07.2018,CHILDREN'S SERVICES,HOLMDENE HOUSING LTD,"1,480.00",UASC SECTION 24,EXTERNAL AGENCIES AND BODIES,2102835670,1000032598
04.07.2018,CHILDREN'S SERVICES,HOLMDENE HOUSING LTD,"1,480.00",UASC SECTION 24,EXTERNAL AGENCIES AND BODIES,2102835686,1000032598
04.07.2018,CHILDREN'S SERVICES,HOLMDENE HOUSING LTD,"1,480.00",UASC SECTION 24,EXTERNAL AGENCIES AND BODIES,2102835689,1000032598
04.07.2018,CHILDREN'S SERVICES,HOLMDENE HOUSING LTD,"2,240.00",UASC SECTION 24,EXTERNAL AGENCIES AND BODIES,2102835673,1000032598
04.07.2018,CHILDREN'S SERVICES,BEORMUND PRIMARY SCHOOL,-383,UIFSM,SCHOOLS CAPITATION,2102834562,5001000008
04.07.2018,CHILDREN'S SERVICES,FUTURE FOUNDATIONS LTD,"1,667.14",UNACCOMPANIED ASYLUM CHILDREN 16-17,EXTERNAL AGENCIES AND BODIES,2102835658,1000063272
04.07.2018,CHILDREN'S SERVICES,FUTURE FOUNDATIONS LTD,"4,277.14",UNACCOMPANIED ASYLUM CHILDREN 16-17,EXTERNAL AGENCIES AND BODIES,2102835651,1000063272
04.07.2018,CHILDREN'S SERVICES,FUTURE FOUNDATIONS LTD,"4,277.14",UNACCOMPANIED ASYLUM CHILDREN 16-17,EXTERNAL AGENCIES AND BODIES,2102835661,1000063272
04.07.2018,CHILDREN'S SERVICES,FUTURE FOUNDATIONS LTD,257.14,UNACCOMPANIED ASYLUM CHILDREN 16-17,OTHER PAYMENTS FOR CLIENTS,2102835655,1000063272
04.07.2018,CHILDREN'S SERVICES,FUTURE FOUNDATIONS LTD,257.14,UNACCOMPANIED ASYLUM CHILDREN 16-17,OTHER PAYMENTS FOR CLIENTS,2102835656,1000063272
04.07.2018,CHILDREN'S SERVICES,FUTURE FOUNDATIONS LTD,257.14,UNACCOMPANIED ASYLUM CHILDREN 16-17,OTHER PAYMENTS FOR CLIENTS,2102835657,1000063272
04.07.2018,COMMISSIONING & CENTRAL,SYED & QUINN LTD,300,ASW - PROFESSIONAL DEVELOPMENT,TRAINING,5902310153,1000029554
04.07.2018,COMMISSIONING & CENTRAL,SYED & QUINN LTD,500,ASW - PROFESSIONAL DEVELOPMENT,TRAINING,5902309281,1000029554
04.07.2018,COMMUNITIES,DELAWYK RESIDENTS MGT ORG LTD,"28,743.00",DELAWYK RMO RENT INCOME,M&M ALLOWANCE CO-OPS,5902310129,1000052920
04.07.2018,COMMUNITIES,KENNINGTON PARK HSE MGMT CO-OP,"16,335.50",KENNINGTON PK CO-OP,M&M ALLOWANCE CO-OPS,5902310123,1000056189
04.07.2018,COMMUNITIES,EURO HOTELS (LEYTON) LTD,400,NO RECOURSE TO PUBLIC FUNDS,ACCOMMODATION CHARGES,5902310126,1000078911
04.07.2018,COMMUNITIES,FINEFAIR LTD,"3,064.20",NO RECOURSE TO PUBLIC FUNDS,ACCOMMODATION CHARGES,5902310190,1000075570
04.07.2018,COMMUNITIES,HOMELY HOUSING LETS LTD,"46,829.70",NO RECOURSE TO PUBLIC FUNDS,ACCOMMODATION CHARGES,5902310176,1000050013
04.07.2018,COMMUNITIES,NATIONWIDE ACCOMMODATION,"11,790.00",NO RECOURSE TO PUBLIC FUNDS,ACCOMMODATION CHARGES,5902310192,1000076112
04.07.2018,COMMUNITIES,NORBURY PROPERTY SERVICES,"3,030.00",NO RECOURSE TO PUBLIC FUNDS,ACCOMMODATION CHARGES,5902310194,1000075566
04.07.2018,COMMUNITIES,PPROPERTYPLACEBOOK LTD,"40,760.00",NO RECOURSE TO PUBLIC FUNDS,ACCOMMODATION CHARGES,5902310326,1000077817
04.07.2018,COMMUNITIES,RS REAL ESTATE LTD,"7,680.00",NO RECOURSE TO PUBLIC FUNDS,ACCOMMODATION CHARGES,5902310348,1000072485
04.07.2018,COMMUNITIES,SOUTH OF THE RIVER INVESTMENTS LTD,"4,425.00",NO RECOURSE TO PUBLIC FUNDS,ACCOMMODATION CHARGES,5902310182,1000073638
04.07.2018,COMMUNITIES,STENFORD PROPERTY LTD,"1,080.00",NO RECOURSE TO PUBLIC FUNDS,ACCOMMODATION CHARGES,5902310184,1000074759
04.07.2018,COMMUNITIES,TAAKSVALE HOUSING LTD,"25,492.00",NO RECOURSE TO PUBLIC FUNDS,ACCOMMODATION CHARGES,5902310296,1000073665
04.07.2018,COMMUNITIES,HOMELY HOUSING LETS LTD,532.3,NO RECOURSE TO PUBLIC FUNDS,OTHER PAYMENTS FOR CLIENTS,5902310180,1000050013
04.07.2018,COMMUNITIES,HOMELY HOUSING LETS LTD,"3,227.18",NO RECOURSE TO PUBLIC FUNDS,OTHER PAYMENTS FOR CLIENTS,5902310181,1000050013
04.07.2018,COMMUNITIES,WEBBER AND QUENTIN LTD,"37,508.50",WEBBER & QUENTIN TMO,M&M ALLOWANCE CO-OPS,5902310132,1000077088
04.07.2018,CUSTOMER EXPERIENCE HGF,EDEN ESTATES LONDON LTD,"36,693.50",NIGHTLY TA (NSC),EXTERNAL AGENCIES AND BODIES,5902310306,1000061217
04.07.2018,CUSTOMER EXPERIENCE HGF,CAOS CONFLICT MANAGEMENT,"1,275.00",NIGHTLY TA (NSC),TRAINING,5902310314,1000080649
04.07.2018,ELECTORAL SVCES,ABOUT THIS VAN,503,BOROUGH COUNCIL ELECTIONS,TRANSLATION SERVICES,5902310344,1000039842
04.07.2018,ELECTORAL SVCES,ABOUT THIS VAN,"4,036.66",BOROUGH COUNCIL ELECTIONS,TRANSLATION SERVICES,5902310343,1000039842
04.07.2018,ENVIRONMENT AND LEISURE,BLAKEDOWN LANDSCAPES,"153,051.74",CAPITAL PS (LEISURE),CONSTRUCTION FEES  - EXTERNAL,2102834952,4005399
04.07.2018,ENVIRONMENT DIRECTORATE,AUTO SISTANCE LTD,"1,100.00",BUSINESS PERMITS,OP LEASE/HIRE CHARGES:PLANT/EQUIP/FURNIT,5902310145,1000070536
04.07.2018,ENVIRONMENT DIRECTORATE,AUTO SISTANCE LTD,"1,150.00",BUSINESS PERMITS,OP LEASE/HIRE CHARGES:PLANT/EQUIP/FURNIT,5902310142,1000070536
04.07.2018,ENVIRONMENT DIRECTORATE,AUTO SISTANCE LTD,"1,550.00",BUSINESS PERMITS,OP LEASE/HIRE CHARGES:PLANT/EQUIP/FURNIT,5902310140,1000070536
04.07.2018,ENVIRONMENT DIRECTORATE,LEX AUTOLEASE,305.15,CAR LEASING CTRL A/C,VEHICLE LEASING CHARGES,5902310338,1000069462
04.07.2018,ENVIRONMENT DIRECTORATE,VOLKSWAGEN FINANCIAL SERVICES (UK),287.73,CAR LEASING CTRL A/C,VEHICLE LEASING CHARGES,5902310358,1000079245
04.07.2018,ENVIRONMENT DIRECTORATE,VOLKSWAGEN FINANCIAL SERVICES (UK),302.05,CAR LEASING CTRL A/C,VEHICLE LEASING CHARGES,5902310339,1000079245
04.07.2018,ENVIRONMENT DIRECTORATE,VOLKSWAGEN FINANCIAL SERVICES (UK),345.57,CAR LEASING CTRL A/C,VEHICLE LEASING CHARGES,5902310356,1000079245
04.07.2018,ENVIRONMENT DIRECTORATE,FIVEWAYS MUNICIPAL VEHICLE HIRE LTD,725,COMMERCIAL VEH CTRL A/C,HIRED VEHICLES,5902310324,1000023985
04.07.2018,ENVIRONMENT DIRECTORATE,FIVEWAYS MUNICIPAL VEHICLE HIRE LTD,725,COMMERCIAL VEH CTRL A/C,HIRED VEHICLES,5902310325,1000023985
04.07.2018,ENVIRONMENT DIRECTORATE,FIVEWAYS MUNICIPAL VEHICLE HIRE LTD,725,COMMERCIAL VEH CTRL A/C,HIRED VEHICLES,5902310328,1000023985
04.07.2018,ENVIRONMENT DIRECTORATE,SCOT GROUP LIMITED,350.56,COMMERCIAL VEH CTRL A/C,HIRED VEHICLES,5902310316,1709512
04.07.2018,ENVIRONMENT DIRECTORATE,PERFORMANCE CHEMICALS LTD,"1,027.50",ESTATE CLEANING-GENERAL,MATERIALS,5902310286,1000037129
04.07.2018,ENVIRONMENT DIRECTORATE,CONTEGO SAFETY SOLUTIONS LTD,437.8,MANAGEMENT TEAM,MATERIALS,5902263762,1000077673
04.07.2018,ENVIRONMENT DIRECTORATE,ELLIOT ENVIRONMENTAL LTD,400,STREET CLEANING-GENERAL,OTHER CONTRACTORS,5902310165,1000047392
04.07.2018,ENVIRONMENT DIRECTORATE,NATIONAL CRIME AGENCY,387,TRADING STANDARDS CONFISCATION FUND,TRAINING,5902310134,1000057139
04.07.2018,ENVIRONMENT DIRECTORATE,WSP UK LTD,"6,804.42",TRANSPORT PROJECTS,CONSULTANTS SERVICES,5902310353,1000054214
04.07.2018,ENVIRONMENT DIRECTORATE,DAVID IDOWU FOUNDATION,"1,100.00",YOUNG ADVISORS,PUBLIC TRANSPORT,5902310138,1000063460
04.07.2018,F & C S EXCLUDING CORPORATE BUDGETS,HM COURTS & TRIBUNALS SERVICE,"2,145.00",COUNCIL TAX,LEGAL FEES & COURT COSTS,2102836282,1000075260
04.07.2018,F & C S EXCLUDING CORPORATE BUDGETS,CONTEGO SAFETY SOLUTIONS LTD,-437.8,FC&P PROCESSING,OFFICE EXPENSES,2102832004,1000077673
04.07.2018,F & C S EXCLUDING CORPORATE BUDGETS,HM COURTS & TRIBUNALS SERVICE,492,NNDR,LEGAL FEES & COURT COSTS,2102836280,1000075260
04.07.2018,F & C S EXCLUDING CORPORATE BUDGETS,BUDGET CARPETS,288.33,SESS,OTHER PAYMENTS FOR CLIENTS,5902310327,11319076
04.07.2018,HOUSING HRA,3MS GOLD SERVICES LTD,"5,665.00",CAPITAL PS (HRA),CONST'N MAIN CONTRACT - NON CERTIFICATED,2102834944,3000001256
04.07.2018,HOUSING HRA,WRAYBURN COMMUNITIES ORGANISATION LTD,"1,560.00",CAPITAL PS (HRA),CONST'N MAIN CONTRACT - NON CERTIFICATED,5902310351,1000078477
04.07.2018,HOUSING HRA,CALFORD SEADEN LLP,"4,741.00",CAPITAL PS (HRA),CONSTRUCTION FEES  - EXTERNAL,5902310350,1061592
04.07.2018,HOUSING HRA,CALFORD SEADEN LLP,715.49,CAPITAL PS (HRA),CONSTRUCTION FEES  - EXTERNAL,5902310354,1061592
04.07.2018,HOUSING HRA,CALFORD SEADEN LLP,"3,552.00",CAPITAL PS (HRA),CONSTRUCTION FEES  - EXTERNAL,5902310299,1061592
04.07.2018,HOUSING HRA,POTTER RAPER AND PARTNERS,"3,580.65",CAPITAL PS (HRA),CONSTRUCTION FEES  - EXTERNAL,5902310305,1009369
04.07.2018,HOUSING HRA,POTTER RAPER AND PARTNERS,"5,449.92",CAPITAL PS (HRA),CONSTRUCTION FEES  - EXTERNAL,5902310093,1009369
04.07.2018,HOUSING HRA,A & E ELKINS LTD,"80,782.91",CAPITAL PS (HRA),CONSTRUCTION MAIN CONTRACT -CERTIFICATED,2102834942,4012501
04.07.2018,HOUSING HRA,DOWNTOWN LEISURE LIMITED,"263,799.16",CAPITAL PS (HRA),CONSTRUCTION MAIN CONTRACT -CERTIFICATED,2102834945,3000002059
04.07.2018,HOUSING STRATEGY AND OPTIONS,HM COURTS & TRIBUNALS SERVICE,255,HOMELESS & HOUSING OPTIONS MGT,LEGAL FEES & COURT COSTS,2102836270,1000075260
04.07.2018,HOUSING STRATEGY AND OPTIONS,HM COURTS & TRIBUNALS SERVICE,255,HOMELESS & HOUSING OPTIONS MGT,LEGAL FEES & COURT COSTS,2102836284,1000075260
04.07.2018,LEISURE DIRECTORATE,SPORTS AND LEISURE MANAGEMENT LTD,"20,616.00",FACILITIES MAINTENANCE,BUILDING R&M,5902310293,1000077862
04.07.2018,LEISURE DIRECTORATE,SPORTS AND LEISURE MANAGEMENT LTD,"24,990.00",FACILITIES MAINTENANCE,BUILDING R&M,5902310297,1000077862
04.07.2018,LEISURE DIRECTORATE,KENT COUNTY COUNCIL - LASER,"1,429.25",JOHN HARVARD LIBRARY,ELECTRICITY,5902310156,1000012926
04.07.2018,MODERNISATION HGF,RCA BUSINESS PSYCHOLOGISTS LTD,"1,750.00",HR PAYROLL COSTS,CONSULTANTS SERVICES,5902310268,1000080957
04.07.2018,MODERNISATION HGF,ROSEMARY POTTS,"1,840.00",OCCUPATIONAL ASSESSMENT,CONSULTANTS SERVICES,5902310303,1738708
04.07.2018,MODERNISATION HGF,ROSEMARY POTTS,"1,918.00",OCCUPATIONAL ASSESSMENT,CONSULTANTS SERVICES,5902310303,1738708
04.07.2018,MODERNISATION HGF,SHERRIDAN HUGHES,"5,225.00",OCCUPATIONAL ASSESSMENT,CONSULTANTS SERVICES,5902310317,1000074250
04.07.2018,MODERNISATION HGF,APTIVA ENVIRONMENTAL LTD,"8,400.00",REPAIR AND MAINTENANCE SERVICES,BUILDING R&M,5902310347,1000070886
04.07.2018,PROPERTY SERVICES,GLA LAND AND PROPERTY LTD,"44,450.00",CPHA SURPLUS,LEGAL FEES & COURT COSTS,5902308556,1000081271
04.07.2018,PUBLIC HEALTH,QUALITY MEDICAL SOLUTIONS LTD (QMS),"16,515.50",HEALTH CHECKS CONTRACTS,EXTERNAL AGENCIES AND BODIES,5902310345,1000072192
04.07.2018,PUBLIC HEALTH,SPORTS AND LEISURE MANAGEMENT LTD,"27,817.00",HEALTHY WEIGHT,EXTERNAL AGENCIES AND BODIES,5902310302,1000077862
04.07.2018,PUBLIC HEALTH,GL HOUSING SOLUTIONS LTD,911.2,PLACE & HEALTH IMPROVEMENT,EXTERNAL AGENCIES AND BODIES,5902309700,1000081334
04.07.2018,PUBLIC HEALTH,UNIVERSITY HOSPITALS BIRMINGHAM,693,SEXUAL HEALTH - STI,EXTERNAL AGENCIES AND BODIES,5902310196,1000075543
04.07.2018,RESIDENT SERVICES,HM COURTS & TRIBUNALS SERVICE,355,OPERATIONS/OFFICES ACCOMMODATION,LEGAL FEES & COURT COSTS,2102836276,1000075260
04.07.2018,RESIDENT SERVICES,HM COURTS & TRIBUNALS SERVICE,355,OPERATIONS/OFFICES ACCOMMODATION,LEGAL FEES & COURT COSTS,2102836277,1000075260
04.07.2018,RESIDENT SERVICES,HM COURTS & TRIBUNALS SERVICE,355,OPERATIONS/OFFICES ACCOMMODATION,LEGAL FEES & COURT COSTS,2102836278,1000075260
04.07.2018,RESIDENT SERVICES,HM COURTS & TRIBUNALS SERVICE,355,SPECIAL INVESTIGATIONS,LEGAL FEES & COURT COSTS,2102836253,1000075260
04.07.2018,RESIDENT SERVICES,HM COURTS & TRIBUNALS SERVICE,355,SPECIAL INVESTIGATIONS,LEGAL FEES & COURT COSTS,2102836262,1000075260
04.07.2018,SOUTHWARK BUILDING SERVICES,C A BALDWIN & CO LTD,282.25,BERMONDSEY DAY TO DAY - PLUMBER,MATERIALS,5902310151,1000699
04.07.2018,SOUTHWARK BUILDING SERVICES,C A BALDWIN & CO LTD,282.25,BERMONDSEY DAY TO DAY - PLUMBER,MATERIALS,5902310159,1000699
04.07.2018,SOUTHWARK BUILDING SERVICES,C A BALDWIN & CO LTD,401.5,BOR & BKSIDE DAY TO DAY - PLUMBER,MATERIALS,5902310157,1000699
04.07.2018,SOUTHWARK BUILDING SERVICES,GUIDELINE LIFT SERVICES LTD,"57,311.15",GUIDELINE,MANUAL CREDITORS,5902310280,1000064176
04.07.2018,SOUTHWARK BUILDING SERVICES,PRB ESTATES LTD,"79,025.96",PRBE,MANUAL CREDITORS,2102834943,3000001691
04.07.2018,SOUTHWARK BUILDING SERVICES,C A BALDWIN & CO LTD,401.5,ROTHERHITHE DAY TO DAY - PLUMBER,MATERIALS,5902310160,1000699
04.07.2018,SOUTHWARK BUILDING SERVICES,C A BALDWIN & CO LTD,302,STORES/LOGISTICS,CREDITORS -GR/IR CLEARING ACCOUNT,5902310144,1000699
04.07.2018,SOUTHWARK BUILDING SERVICES,C A BALDWIN & CO LTD,395.06,WALWORTH TM 1 DAY TO DAY - PLUMBER,MATERIALS,5902310164,1000699
04.07.2018,SOUTHWARK BUILDING SERVICES,C A BALDWIN & CO LTD,501.88,WALWORTH TM 2 DAY TO DAY - PLUMBER,MATERIALS,5902310171,1000699
04.07.2018,STRATEGIC FINANCING BUDGETS,BGC EUROPEAN HOLDINGS,"7,561.65",EXTERNAL INTEREST,DEBT MANAGEMENT EXPENSES,5902310000,1000081336
05.07.2018,ADULT SOCIAL CARE,REDACTED PERSONAL DATA,"3,682.28",LD LTS 18-64,SUPPORTED LIVING,REDACTED,REDACTED
05.07.2018,ADULT SOCIAL CARE,CARE DIRECT UK LTD,689.5,MEM LTS 65+,HOMECARE - SPOT,2102836199,1000066322
05.07.2018,ADULT SOCIAL CARE,OASIS CARE AND TRAINING AGENCY,275.8,MH LTS 18-64,SUPPORTED LIVING,2102836126,1000003687
05.07.2018,ADULT SOCIAL CARE,REDACTED PERSONAL DATA,"-1,018.40",PHY LTS 18-64,DISCRETIONARY FLEXIBLE FEES & INCOME,REDACTED,REDACTED
05.07.2018,ADULT SOCIAL CARE,CARE DIRECT UK LTD,641.24,PHY LTS 18-64,HOMECARE - C&V,2102836211,1000066322
05.07.2018,ADULT SOCIAL CARE,CARE DIRECT UK LTD,262.01,PHY LTS 18-64,HOMECARE - SPOT,2102836214,1000066322
05.07.2018,ADULT SOCIAL CARE,CARE DIRECT UK LTD,317.17,PHY LTS 18-64,HOMECARE - SPOT,2102836147,1000066322
05.07.2018,ADULT SOCIAL CARE,REDACTED PERSONAL DATA,"1,018.40",PHY LTS 18-64,PAYMENTS TO CLIENTS (DIRECT PAYMENTS),REDACTED,REDACTED
05.07.2018,ADULT SOCIAL CARE,CARE DIRECT UK LTD,262.01,PHY LTS 65+,HOMECARE - SPOT,2102836164,1000066322
05.07.2018,ADULT SOCIAL CARE,CARE DIRECT UK LTD,265.46,PHY LTS 65+,HOMECARE - SPOT,2102836139,1000066322
05.07.2018,ADULT SOCIAL CARE,CARE DIRECT UK LTD,265.46,PHY LTS 65+,HOMECARE - SPOT,2102836175,1000066322
05.07.2018,ADULT SOCIAL CARE,CARE DIRECT UK LTD,337.86,PHY LTS 65+,HOMECARE - SPOT,2102836210,1000066322
05.07.2018,ADULT SOCIAL CARE,CARE DIRECT UK LTD,399.91,PHY LTS 65+,HOMECARE - SPOT,2102836170,1000066322
05.07.2018,ADULT SOCIAL CARE,CARE DIRECT UK LTD,434.39,PHY LTS 65+,HOMECARE - SPOT,2102836144,1000066322
05.07.2018,ADULT SOCIAL CARE,CARE DIRECT UK LTD,434.39,PHY LTS 65+,HOMECARE - SPOT,2102836185,1000066322
05.07.2018,ADULT SOCIAL CARE,CARE DIRECT UK LTD,434.39,PHY LTS 65+,HOMECARE - SPOT,2102836186,1000066322
05.07.2018,ADULT SOCIAL CARE,CARE DIRECT UK LTD,675.71,PHY LTS 65+,HOMECARE - SPOT,2102836157,1000066322
05.07.2018,ADULT SOCIAL CARE,OASIS CARE AND TRAINING AGENCY,317.16,PHY LTS 65+,HOMECARE - SPOT,2102836127,1000003687
05.07.2018,ADULT SOCIAL CARE,OASIS CARE AND TRAINING AGENCY,330.96,PHY LTS 65+,HOMECARE - SPOT,2102836125,1000003687
05.07.2018,ADULT SOCIAL CARE,OASIS CARE AND TRAINING AGENCY,537.8,PHY LTS 65+,HOMECARE - SPOT,2102836129,1000003687
05.07.2018,ADULT SOCIAL CARE,MEDACS HOMECARE,"31,102.37",REABLEMENT CONTRACT,HOMECARE - IC,5902310472,11287415
05.07.2018,ADULT SOCIAL CARE,MEDACS HOMECARE,"51,999.32",REABLEMENT CONTRACT,HOMECARE - IC,5902310471,11287415
05.07.2018,ADULT SOCIAL CARE,WILLISPALMER,"2,950.00",RESPITE FOSTERCARERS,PROFESSIONAL FEES,5902310483,1000056409
05.07.2018,ADULT SOCIAL CARE,RESOURCES FOR AUTISM,"23,333.00",SHORT BREAKS,EXTERNAL AGENCIES AND BODIES,5902310289,1000062540
05.07.2018,ADULT SOCIAL CARE,FREEDOM RECOVERY CENTRE,"1,300.00",SUB LTS 18-64,PLACEMENTS - REHAB,2102836130,1000046185
05.07.2018,ASSET MANAGEMENT,AJM ADAPTIONS LTD,"1,445.00",ADAPTATIONS,BUILDING R&M,5902310021,1000080297
05.07.2018,ASSET MANAGEMENT,JENNIFER MOATE,"1,250.00",DISREPAIR,LEGAL FEES & COURT COSTS,2102836299,1000068975
05.07.2018,ASSET MANAGEMENT,T BROWN & SONS (HEATING) LTD,"3,099.40",ENG CONTRACTS (NORTH),PLANNED MAINTENANCE,5902310473,1000040191
05.07.2018,ASSET MANAGEMENT,POTTER RAPER AND PARTNERS,"1,294.32",HIP MAJOR WORKS,PLANNED MAINTENANCE,5902310489,1009369
05.07.2018,ASSET MANAGEMENT,BRIDGEWATER ROOFING CONTRACTORS LTD,275,VISIBLE DIFFERENCE (NORTH),BUILDING R&M,2102836241,3000001482
05.07.2018,ASSET MANAGEMENT,BRIDGEWATER ROOFING CONTRACTORS LTD,300,VISIBLE DIFFERENCE (NORTH),BUILDING R&M,2102836083,3000001482
05.07.2018,ASSET MANAGEMENT,BRIDGEWATER ROOFING CONTRACTORS LTD,320,VISIBLE DIFFERENCE (NORTH),BUILDING R&M,2102836242,3000001482
05.07.2018,ASSET MANAGEMENT,BRIDGEWATER ROOFING CONTRACTORS LTD,385,VISIBLE DIFFERENCE (NORTH),BUILDING R&M,2102836082,3000001482
05.07.2018,ASSET MANAGEMENT,BRIDGEWATER ROOFING CONTRACTORS LTD,480,VISIBLE DIFFERENCE (NORTH),BUILDING R&M,2102836240,3000001482
05.07.2018,ASSET MANAGEMENT,BRIDGEWATER ROOFING CONTRACTORS LTD,"1,404.00",VISIBLE DIFFERENCE (NORTH),BUILDING R&M,2102836238,3000001482
05.07.2018,ASSET MANAGEMENT,BCS (ELECTRICAL & BUILDING) LTD,"7,039.20",VOIDS (SOUTH),BUILDING R&M,2102836085,3000001471
05.07.2018,CENTRAL FUNCTIONS,BLAKENEY LEIGH LTD,"2,795.63",AYLESBURY,PROFESSIONAL FEES,5902310169,1438839
05.07.2018,CENTRAL FUNCTIONS,STEPHANIE HALL,935,COMMERCIAL PROPERTIES,LEGAL FEES & COURT COSTS,2102836333,1000073202
05.07.2018,CENTRAL FUNCTIONS,KENT COUNTY COUNCIL - LASER,"37,851.37",HEATING ACCOUNT,ELECTRICITY,5902309599,1000012926
05.07.2018,CENTRAL FUNCTIONS,KENT COUNTY COUNCIL - LASER,"58,525.12",HEATING ACCOUNT,ELECTRICITY,5902309599,1000012926
05.07.2018,CENTRAL FUNCTIONS,KENT COUNTY COUNCIL - LASER,"18,358.10",HEATING ACCOUNT,GAS,5902309609,1000012926
05.07.2018,CENTRAL FUNCTIONS,KENT COUNTY COUNCIL - LASER,"563,801.52",HEATING ACCOUNT,GAS,5902309609,1000012926
05.07.2018,CENTRAL FUNCTIONS,JACQUELINE LEAN,750,SERVICE LEVEL AGREEMENTS,LEGAL FEES & COURT COSTS,2102836298,1000068805
05.07.2018,CHIEF EXECUTIVE,LANDOLT & BROWN,"42,375.95",CAPITAL PS (REGEN),CONSTRUCTION FEES - ARCHITECT,5902310514,1000069588
05.07.2018,CHIEF EXECUTIVE'S OFFICE,HERNE HILL FORUM,"9,931.63",HERNE HILL,GRANTS,5902310456,1000046111
05.07.2018,CHIEF EXECUTIVE'S OFFICE,ADVISING LONDON,"5,748.48",YOUTH FUND EMPLOYMENT,GRANTS,2102836337,1000068190
05.07.2018,CHILDREN AND ADULT,DAVID MILES & PARTNERS,813.9,CAPITAL PS (EDUCATION),CONSTRUCTION MAIN CONTRACT -CERTIFICATED,5902310470,1000001119
05.07.2018,CHILDREN AND ADULT,DAVID MILES & PARTNERS,675.26,CAPITAL PS (EDUCATION),CONSTRUCTION MAIN CONTRACT -CERTIFICATED,5902310419,1000001119
05.07.2018,CHILDREN AND ADULT,DAVID MILES & PARTNERS,"3,143.27",CAPITAL PS (EDUCATION),CONSTRUCTION MAIN CONTRACT -CERTIFICATED,5902310417,1000001119
05.07.2018,CHILDREN AND ADULT,DAVID MILES & PARTNERS,"5,786.35",CAPITAL PS (EDUCATION),CONSTRUCTION MAIN CONTRACT -CERTIFICATED,5902310474,1000001119
05.07.2018,CHILDREN AND ADULT,AMA ALEXI MARMOT ASSOCIATES LTD,"19,250.00",CAPITAL PS (SOC SERV),CONSTRUCTION FEES - LEGAL,5902310442,1000046228
05.07.2018,CHILDREN'S SERVICES,REDACTED PERSONAL DATA,635.34,ADOPTION PLACEMENTS & INTER AGENCY,PAYMENTS TO CARERS,REDACTED,REDACTED
05.07.2018,CHILDREN'S SERVICES,REDACTED PERSONAL DATA,"1,275.19",ADOPTION PLACEMENTS & INTER AGENCY,PAYMENTS TO CARERS,REDACTED,REDACTED
05.07.2018,CHILDREN'S SERVICES,BROMLEY TRUST ACADEMY,"3,480.00",ALTERNATIVE PROVISION,EXTERNAL AGENCIES AND BODIES,5902310476,1000077097
05.07.2018,CHILDREN'S SERVICES,FLEET TUTORS,"-6,206.00",ALTERNATIVE PROVISION,EXTERNAL AGENCIES AND BODIES,5902310509,1000044820
05.07.2018,CHILDREN'S SERVICES,FLEET TUTORS,"79,136.00",ALTERNATIVE PROVISION,EXTERNAL AGENCIES AND BODIES,5902310505,1000044820
05.07.2018,CHILDREN'S SERVICES,THE COMPLETE WORKS INDEPENDENT SCHOOL,421.05,ALTERNATIVE PROVISION,EXTERNAL AGENCIES AND BODIES,5902310410,1000033256
05.07.2018,CHILDREN'S SERVICES,THE COMPLETE WORKS INDEPENDENT SCHOOL,"11,600.00",ALTERNATIVE PROVISION,EXTERNAL AGENCIES AND BODIES,5902310404,1000033256
05.07.2018,CHILDREN'S SERVICES,PULSE HEALTHCARE LTD,388.7,CASEWORK OLA  0-8,CONTRIBUTION TO PROVISIONS (TP PAYMENTS),5902310001,1000035063
05.07.2018,CHILDREN'S SERVICES,PULSE HEALTHCARE LTD,583.05,CASEWORK OLA  0-8,CONTRIBUTION TO PROVISIONS (TP PAYMENTS),5902310003,1000035063
05.07.2018,CHILDREN'S SERVICES,EARLY EDUCATION,850,CHILDRENS CENTRE,OTHER SUBSISTENCE & CONFERENCE EXPENSES,5902310534,11032986
05.07.2018,CHILDREN'S SERVICES,TRAINING (FIRST AID) LTD,750,CHILDRENS CENTRE,OTHER SUBSISTENCE & CONFERENCE EXPENSES,5902309367,1000036242
05.07.2018,CHILDREN'S SERVICES,TRAINING (FIRST AID) LTD,750,CHILDREN'S CENTRE COMMISSIONING,OTHER SUBSISTENCE & CONFERENCE EXPENSES,5902310524,1000036242
05.07.2018,CHILDREN'S SERVICES,JULIAN DATE,475,LEGAL,LEGAL FEES & COURT COSTS,2102836302,1000068743
05.07.2018,CHILDREN'S SERVICES,JULIAN DATE,475,LEGAL,LEGAL FEES & COURT COSTS,2102836303,1000068743
05.07.2018,CHILDREN'S SERVICES,KATE LAMONT,475,LEGAL,LEGAL FEES & COURT COSTS,2102836305,1000064216
05.07.2018,CHILDREN'S SERVICES,KIERAN COLEMAN,300,LEGAL,LEGAL FEES & COURT COSTS,2102836306,1000074145
05.07.2018,CHILDREN'S SERVICES,OLIVER MILLINGTON,"1,875.00",LEGAL,LEGAL FEES & COURT COSTS,2102836316,1000051055
05.07.2018,CHILDREN'S SERVICES,PAULA DIAZ,425,LEGAL,LEGAL FEES & COURT COSTS,2102836317,1000063943
05.07.2018,CHILDREN'S SERVICES,TARA VINDIS,400,LEGAL,LEGAL FEES & COURT COSTS,2102836334,1000029896
05.07.2018,CHILDREN'S SERVICES,ST MARY MAGDALENE CE SCHOOL,"102,920.00",PUPIL PREMIUM,"SCHOOLS CAPITATION, STANDARDS FUND",5902310429,5001000080
05.07.2018,CHILDREN'S SERVICES,TUKE SCHOOL,"32,560.00",PUPIL PREMIUM,"SCHOOLS CAPITATION, STANDARDS FUND",5902310430,5001000097
05.07.2018,CHILDREN'S SERVICES,REDACTED PERSONAL DATA,"1,120.00",SCH TRANS - CONTRACT COST,OTHER PAYMENTS FOR CLIENTS,REDACTED,REDACTED
05.07.2018,CHILDREN'S SERVICES,SOUTH OF THE RIVER INVESTMENTS LTD,"3,618.00",TEMPORARY ACCOMMODATION,EXTERNAL AGENCIES AND BODIES,5902310369,1000073638
05.07.2018,CHILDREN'S SERVICES,TAAKSVALE HOUSING LTD,"4,090.00",TEMPORARY ACCOMMODATION,EXTERNAL AGENCIES AND BODIES,5902310538,1000073665
05.07.2018,CHILDREN'S SERVICES,INVESTEC ASSET FINANCE PLC,334.44,THOMAS CALTON CENTRE,OP LEASE/HIRE CHARGES:PLANT/EQUIP/FURNIT,5902310387,1000046072
05.07.2018,CHILDREN'S SERVICES,LONDON BOROUGH OF BARNET,300,YOS SUPPORT,TRAINING,5902310487,1000072008
05.07.2018,COMMUNITIES,COMMUNITY SOUTHWARK,"95,932.50",CVS & VOLUNTEERING,GRANTS,5902310405,1000018147
05.07.2018,COMMUNITIES,CYBERSTYLE LETTINGS LTD,"2,010.00",NO RECOURSE TO PUBLIC FUNDS,ACCOMMODATION CHARGES,5902310525,1000079319
05.07.2018,COMMUNITIES,DINARDO SUPPORTS LTD,"1,520.00",NO RECOURSE TO PUBLIC FUNDS,ACCOMMODATION CHARGES,5902310372,1000063093
05.07.2018,COMMUNITIES,DINARDO SUPPORTS LTD,"1,520.00",NO RECOURSE TO PUBLIC FUNDS,ACCOMMODATION CHARGES,5902310373,1000063093
05.07.2018,COMMUNITIES,J & M OASIS LTD,"-1,479.00",NO RECOURSE TO PUBLIC FUNDS,ACCOMMODATION CHARGES,5902308583,1000072169
05.07.2018,COMMUNITIES,J & M OASIS LTD,"22,180.00",NO RECOURSE TO PUBLIC FUNDS,ACCOMMODATION CHARGES,5902310445,1000072169
05.07.2018,COMMUNITIES,S A PROPERTY MANAGEMENT LTD,"2,130.00",NO RECOURSE TO PUBLIC FUNDS,ACCOMMODATION CHARGES,5902310370,1000075764
05.07.2018,COMMUNITIES,ZFA LTD,"1,980.00",NO RECOURSE TO PUBLIC FUNDS,ACCOMMODATION CHARGES,5902310397,1000074420
05.07.2018,COMMUNITIES,ZFA LTD,"14,075.00",NO RECOURSE TO PUBLIC FUNDS,ACCOMMODATION CHARGES,5902310364,1000074420
05.07.2018,COMMUNITIES,CONANT & RUTLEY T&RA,"1,300.00",TENANTS FUND,GRANTS,5902309890,1000068263
05.07.2018,COMMUNITIES,LONGFIELD T&RA,"2,293.50",TENANTS FUND,GRANTS,5902310498,1000059281
05.07.2018,CUSTOMER EXPERIENCE HGF,ABLE 2 OCCUPATIONAL THERAPY SERVICE,"1,290.00",BLUE BADGES,PROFESSIONAL FEES,5902310449,1000064695
05.07.2018,CUSTOMER EXPERIENCE HGF,JONATHAN HOUGH,"2,925.00",CORONER'S,LEGAL FEES & COURT COSTS,2102836301,1000037332
05.07.2018,CUSTOMER EXPERIENCE HGF,CORONERS' COURTS SUPPORT SERVICE,462.32,CORONER'S,PROFESSIONAL FEES,5902310453,1000077579
05.07.2018,CUSTOMER EXPERIENCE HGF,SG PATH LTD,415.8,CORONER'S,PROFESSIONAL FEES,5902310492,1000077883
05.07.2018,CUSTOMER EXPERIENCE HGF,SG PATH LTD,595.9,CORONER'S,PROFESSIONAL FEES,5902310488,1000077883
05.07.2018,CUSTOMER EXPERIENCE HGF,MOUNT HOMES LTD,"5,385.00",NIGHTLY TA (NSC),EXTERNAL AGENCIES AND BODIES,5902310366,1000071819
05.07.2018,CUSTOMER EXPERIENCE HGF,OAK HOUSING LTD,"2,456.40",PSL PLACEMENTS,EXTERNAL AGENCIES AND BODIES,5902310443,1000079310
05.07.2018,ELECTORAL SVCES,THE ASSOCIATION OF ELECTORAL ADMINISTRATION,"1,192.20",BOROUGH COUNCIL ELECTIONS,LEGAL FEES & COURT COSTS,2102836286,1000045146
05.07.2018,ELECTORAL SVCES,THE ASSOCIATION OF ELECTORAL ADMINISTRATION,"1,455.84",BOROUGH COUNCIL ELECTIONS,LEGAL FEES & COURT COSTS,2102836287,1000045146
05.07.2018,ENVIRONMENT AND LEISURE,DOG KENNEL HILL ADVENTURE PLAYGROUND LTD,"1,500.00",CAPITAL PS (LEISURE),CAPITAL GRANTS,5902310362,11134529
05.07.2018,ENVIRONMENT AND LEISURE,MORECAMBE COMMUNITY GARDEN,"5,000.00",CAPITAL PS (LEISURE),CAPITAL GRANTS,5902310363,1000081339
05.07.2018,ENVIRONMENT AND LEISURE,DAVID MILES & PARTNERS,"9,713.12",CAPITAL PS (LEISURE),CONSTRUCTION FEES  - EXTERNAL,5902310478,1000001119
05.07.2018,ENVIRONMENT AND LEISURE,SPORTS AND LEISURE MANAGEMENT LTD,"2,690.00",CAPITAL PS (LEISURE),FURNITURE & FITTINGS ACQUISITION,5902310407,1000077862
05.07.2018,ENVIRONMENT DIRECTORATE,VOLKSWAGEN FINANCIAL SERVICES (UK),253.58,CAR LEASING CTRL A/C,VEHICLE LEASING CHARGES,5902310390,1000079245
05.07.2018,ENVIRONMENT DIRECTORATE,VOLKSWAGEN FINANCIAL SERVICES (UK),266.81,CAR LEASING CTRL A/C,VEHICLE LEASING CHARGES,5902310434,1000079245
05.07.2018,ENVIRONMENT DIRECTORATE,VOLKSWAGEN FINANCIAL SERVICES (UK),268.71,CAR LEASING CTRL A/C,VEHICLE LEASING CHARGES,5902310437,1000079245
05.07.2018,ENVIRONMENT DIRECTORATE,VOLKSWAGEN FINANCIAL SERVICES (UK),386.89,CAR LEASING CTRL A/C,VEHICLE LEASING CHARGES,5902310433,1000079245
05.07.2018,ENVIRONMENT DIRECTORATE,SCOT GROUP LIMITED,407.07,COMMERCIAL VEH CTRL A/C,HIRED VEHICLES,5902310512,1709512
05.07.2018,ENVIRONMENT DIRECTORATE,SHELL UK OIL PRODUCTS LTD,769.18,COMMERCIAL VEH CTRL A/C,VEHICLE FUEL,5902310523,1000081254
05.07.2018,ENVIRONMENT DIRECTORATE,ASSOCIATION OF LONDON ENVIRONMENTAL HEALTH MANAGERS,490,EH & TS MANAGER,STATIONERY,5902310451,1000081054
05.07.2018,ENVIRONMENT DIRECTORATE,RICHARD DAVIES,800,JETS SOUTH TEAM,LEGAL FEES & COURT COSTS,2102836329,1000080907
05.07.2018,ENVIRONMENT DIRECTORATE,GARY GRANT,500,LICENSING,LEGAL FEES & COURT COSTS,2102836295,1000056929
05.07.2018,ENVIRONMENT DIRECTORATE,GARY GRANT,"1,250.00",LICENSING,LEGAL FEES & COURT COSTS,2102836296,1000056929
05.07.2018,ENVIRONMENT DIRECTORATE,REMINGTON HALL,390,ROUGH SLEEPERS,LEGAL FEES & COURT COSTS,2102836322,1000061702
05.07.2018,ENVIRONMENT DIRECTORATE,REMINGTON HALL,390,ROUGH SLEEPERS,LEGAL FEES & COURT COSTS,2102836324,1000061702
05.07.2018,ENVIRONMENT DIRECTORATE,REMINGTON HALL,390,ROUGH SLEEPERS,LEGAL FEES & COURT COSTS,2102836325,1000061702
05.07.2018,ENVIRONMENT DIRECTORATE,ELLIOT ENVIRONMENTAL LTD,400,STREET CLEANING-GENERAL,OTHER CONTRACTORS,5902310166,1000047392
05.07.2018,ENVIRONMENT DIRECTORATE,NICHOLAS HAM,600,TRADING STANDARDS,LEGAL FEES & COURT COSTS,2102836315,1000068994
05.07.2018,ENVIRONMENT DIRECTORATE,OPUS INTERNATIONAL CONSULTANTS (UK),"5,869.50",TRANSPORT PROJECTS,CONSULTANTS SERVICES,5902310392,1000080000
05.07.2018,ENVIRONMENT DIRECTORATE,OPUS INTERNATIONAL CONSULTANTS (UK),"6,240.00",TRANSPORT PROJECTS,CONSULTANTS SERVICES,5902310396,1000080000
05.07.2018,ENVIRONMENT DIRECTORATE,OPUS INTERNATIONAL CONSULTANTS (UK),"6,396.80",TRANSPORT PROJECTS,CONSULTANTS SERVICES,5902310402,1000080000
05.07.2018,F & C S EXCLUDING CORPORATE BUDGETS,CBC CIARAN BEARY CONSULTING LTD,"2,634.60",ADMINISTRATIVE SUPPORT,CONSULTANTS SERVICES,5902310528,1000037406
05.07.2018,HOUSING GENERAL FUND,SAFESTORE LTD,961.67,CAPITAL PS (HOUSING GF),CONSTRUCTION,5902310455,1000057677
05.07.2018,HOUSING GENERAL FUND,DAVID MILES & PARTNERS,"11,023.75",CAPITAL PS (REGEN),CONSTRUCTION,5902310416,1000001119
05.07.2018,HOUSING HRA,MJP CONVEYANCING LTD,"30,000.00",CAPITAL PS (HRA),CAPITAL GRANTS,2102836222,1000076838
05.07.2018,HOUSING HRA,PRB ESTATES LTD,"12,610.25",CAPITAL PS (HRA),CONST'N MAIN CONTRACT - NON CERTIFICATED,2102836086,3000001691
05.07.2018,HOUSING HRA,POTTER RAPER AND PARTNERS,"2,540.65",CAPITAL PS (HRA),CONSTRUCTION FEES  - EXTERNAL,5902310502,1009369
05.07.2018,HOUSING STRATEGY AND OPTIONS,JI SOLICITORS,"11,500.00",HOMELESS & HOUSING OPTIONS MGT,LEGAL FEES & COURT COSTS,5902310530,11247788
05.07.2018,HOUSING STRATEGY AND OPTIONS,LISA CLARKE,300,HOMELESS & HOUSING OPTIONS MGT,LEGAL FEES & COURT COSTS,2102836312,1000030215
05.07.2018,HOUSING STRATEGY AND OPTIONS,BACK ON TRACK HOUSING,"1,074.78",HOMELESS PROJECTS,GRANTS,5902310378,1000071262
05.07.2018,HOUSING STRATEGY AND OPTIONS,UNIVERSITY OF GREENWICH,543.36,HOMELESS PROJECTS,GRANTS,5902308461,1000013432
05.07.2018,LEISURE DIRECTORATE,BERMONDSEY ARTIST`S GROUP,800,BERMONDSEY CARNIVAL,HIRE OF ROOMS/HALLS,5902310414,1000004746
05.07.2018,LEISURE DIRECTORATE,LONDON BUBBLE THEATRE COMPANY,"1,000.00",BERMONDSEY CARNIVAL,HIRE OF ROOMS/HALLS,5902310413,11022517
05.07.2018,LEISURE DIRECTORATE,FENLAND LEISURE PRODUCTS LTD,"3,582.56",BURGESS AREA TEAM,OTHER R&M,2102836084,3000001785
05.07.2018,LEISURE DIRECTORATE,INFINITY NETWORKS LTD,"4,457.00",CANADA WATER LIBRARY,EQUIPMENT PURCHASE & REPAIR,5902310415,1000035571
05.07.2018,LEISURE DIRECTORATE,EDWARDES (CAMBERWELL) LTD,297.71,CLIENT SERV(GRNS MAIN),OTHER CONTRACTORS,5902310371,11060365
05.07.2018,LEISURE DIRECTORATE,LASHANA CAMPBELL,650,LIBARIES DEVELOPMENT,FREELANCE SPECIALISTS,5902310510,1000023737
05.07.2018,MODERNISATION HGF,PITNEY BOWES LTD,"9,538.50",160 TOOLEY ST.,POSTAGES,5902310409,1000016780
05.07.2018,MODERNISATION HGF,ENRICO SMOG ERGONOMIC PRACTIONERS,"3,300.00",CFM OPERATIONAL BUDGET,TRAINING,5902310360,1000050201
05.07.2018,MODERNISATION HGF,HAPPY COMPUTERS LTD,"2,475.00",CORPORATE TRAINING BUDGETS,TRAINING,5902310497,11008543
05.07.2018,MODERNISATION HGF,IRON MOUNTAIN (UK) LTD,"8,825.36",REPAIR AND MAINTENANCE SERVICES,INFORMATION MANAGEMENT,5902310485,1000078591
05.07.2018,MODERNISATION HGF,COMENSURA LTD,387.8,WEEKLY PAYMENTS,AGENCY STAFF,5902310454,1000051261
05.07.2018,MODERNISATION HGF,COMENSURA LTD,"411,149.50",WEEKLY PAYMENTS,AGENCY STAFF,5902310457,1000051261
05.07.2018,PLANNING AND TRANSPORT,KYBOCORP LTD,292.5,DEVELOPMENT CONTROL ADMINSTRATION,COMPUTER MAINTENANCE,5902310384,1000074513
05.07.2018,PLANNING AND TRANSPORT,KYBOCORP LTD,"1,014.00",DEVELOPMENT CONTROL ADMINSTRATION,COMPUTER MAINTENANCE,5902310380,1000074513
05.07.2018,PLANNING AND TRANSPORT,ISABELLA TAFUR,"1,872.50",PLANNING POLICY TEAM,LEGAL FEES & COURT COSTS,2102836297,1000068894
05.07.2018,PLANNING AND TRANSPORT,SECURE-A-FIELD LTD,702,SUPPORT SERVICES,OFFICE EXPENSES,5902310375,1000072371
05.07.2018,RESIDENT SERVICES,LISA CLARKE,300,CAMBERWELL,LEGAL FEES & COURT COSTS,2102836310,1000030215
05.07.2018,RESIDENT SERVICES,SHAW KELLY,391.08,OPERATIONS/OFFICES ACCOMMODATION,LEGAL FEES & COURT COSTS,2102836332,1000006930
05.07.2018,RESIDENT SERVICES,HENRY TRUMPINGTON,450,SPECIAL INVESTIGATIONS,LEGAL FEES & COURT COSTS,2102836300,1000020175
05.07.2018,RESIDENT SERVICES,LISA CLARKE,585,SPECIAL INVESTIGATIONS,LEGAL FEES & COURT COSTS,2102836307,1000030215
05.07.2018,RESIDENT SERVICES,SHAW KELLY,450,SPECIAL INVESTIGATIONS,LEGAL FEES & COURT COSTS,2102836331,1000006930
05.07.2018,RESIDENT SERVICES,SHAW KELLY,"5,863.00",SPECIAL INVESTIGATIONS,LEGAL FEES & COURT COSTS,2102836330,1000006930
05.07.2018,REVENUES AND BENEFITS,I-CONNECT SOFTWARE LTD,"-1,058.97",PENSIONS,PROFESSIONAL FEES,5902310764,1000081357
05.07.2018,REVENUES AND BENEFITS,I-CONNECT SOFTWARE LTD,"1,058.97",PENSIONS,PROFESSIONAL FEES,5902309711,1000081357
05.07.2018,SOUTHWARK BUILDING SERVICES,KINGDOM SERVICES GROUP LTD,"1,105.95",DEPOT COSTS,SECURITY SERVICES,5902310420,1000064479
05.07.2018,SOUTHWARK BUILDING SERVICES,GUIDELINE LIFT SERVICES LTD,"37,450.17",GUIDELINE,MANUAL CREDITORS,5902310367,1000064176
05.07.2018,SOUTHWARK BUILDING SERVICES,OCO LIMITED,"457,702.28",PAYMENTS CONTROL ACCOUNT - OCO,MANUAL CREDITORS,5902310481,1006066
06.07.2018,ADULT SOCIAL CARE,AXIS ARCHITECTS (UK) LTD,"-24,034.02",APPOINTEESHIPS,OTHER PAYMENTS FOR CLIENTS,2102840639,1000081386
06.07.2018,ADULT SOCIAL CARE,AXIS ARCHITECTS (UK) LTD,"24,034.02",APPOINTEESHIPS,OTHER PAYMENTS FOR CLIENTS,2102839599,1000081386
06.07.2018,ADULT SOCIAL CARE,REDACTED PERSONAL DATA,480,APPOINTEESHIPS,OTHER PAYMENTS FOR CLIENTS,REDACTED,REDACTED
06.07.2018,ADULT SOCIAL CARE,BRANDON TRUST,390.35,CARERS SERVICES,PLACEMENTS - RESPITE,2102836637,1000042417
06.07.2018,ADULT SOCIAL CARE,CITY OF LONDON CORPORATION,"5,000.00",DIR OF ASC,SUBSCRIPTIONS,5902310395,1000052061
06.07.2018,ADULT SOCIAL CARE,ACCESS MOBILITY TRANSPORT LTD,"2,284.80",LD LTS 18-64,CLIENT TRANSPORT,2102836481,1000074637
06.07.2018,ADULT SOCIAL CARE,CHOICE SUPPORT,"-1,801.36",LD LTS 18-64,CLIENT TRANSPORT,2102837180,1104183
06.07.2018,ADULT SOCIAL CARE,ACT TOO LTD,400,LD LTS 18-64,DAYCARE,2102836622,1000053657
06.07.2018,ADULT SOCIAL CARE,AURORA OPTIONS,408,LD LTS 18-64,DAYCARE,2102837115,1000066695
06.07.2018,ADULT SOCIAL CARE,BEDE HOUSE ASSOCIATION,260,LD LTS 18-64,DAYCARE,2102837404,11265073
06.07.2018,ADULT SOCIAL CARE,THE NEW SHOOTS,300,LD LTS 18-64,DAYCARE,2102836626,1000073970
06.07.2018,ADULT SOCIAL CARE,NESTOR PRIMECARE SERVICES LTD,278.25,LD LTS 18-64,HOMECARE - SPOT,2102836485,11098703
06.07.2018,ADULT SOCIAL CARE,FRESH IDEAS & SOLUTIONS SERVICES CIC,875.6,LD LTS 18-64,PAYMENTS TO CLIENTS (DIRECT PAYMENTS),2102837809,1000070832
06.07.2018,ADULT SOCIAL CARE,FRESH IDEAS & SOLUTIONS SERVICES CIC,895.6,LD LTS 18-64,PAYMENTS TO CLIENTS (DIRECT PAYMENTS),2102837837,1000070832
06.07.2018,ADULT SOCIAL CARE,FRESH IDEAS & SOLUTIONS SERVICES CIC,"1,019.52",LD LTS 18-64,PAYMENTS TO CLIENTS (DIRECT PAYMENTS),2102837897,1000070832
06.07.2018,ADULT SOCIAL CARE,FRESH IDEAS & SOLUTIONS SERVICES CIC,"1,067.12",LD LTS 18-64,PAYMENTS TO CLIENTS (DIRECT PAYMENTS),2102837192,1000070832
06.07.2018,ADULT SOCIAL CARE,FRESH IDEAS & SOLUTIONS SERVICES CIC,"1,464.32",LD LTS 18-64,PAYMENTS TO CLIENTS (DIRECT PAYMENTS),2102837138,1000070832
06.07.2018,ADULT SOCIAL CARE,FRESH IDEAS & SOLUTIONS SERVICES CIC,"1,848.00",LD LTS 18-64,PAYMENTS TO CLIENTS (DIRECT PAYMENTS),2102837752,1000070832
06.07.2018,ADULT SOCIAL CARE,PEOPLEPLUS ILS,253.68,LD LTS 18-64,PAYMENTS TO CLIENTS (DIRECT PAYMENTS),2102837487,1000061886
06.07.2018,ADULT SOCIAL CARE,PEOPLEPLUS ILS,254.68,LD LTS 18-64,PAYMENTS TO CLIENTS (DIRECT PAYMENTS),2102837823,1000061886
06.07.2018,ADULT SOCIAL CARE,PEOPLEPLUS ILS,260,LD LTS 18-64,PAYMENTS TO CLIENTS (DIRECT PAYMENTS),2102837436,1000061886
06.07.2018,ADULT SOCIAL CARE,PEOPLEPLUS ILS,266,LD LTS 18-64,PAYMENTS TO CLIENTS (DIRECT PAYMENTS),2102837457,1000061886
06.07.2018,ADULT SOCIAL CARE,PEOPLEPLUS ILS,288.4,LD LTS 18-64,PAYMENTS TO CLIENTS (DIRECT PAYMENTS),2102837202,1000061886
06.07.2018,ADULT SOCIAL CARE,PEOPLEPLUS ILS,289.36,LD LTS 18-64,PAYMENTS TO CLIENTS (DIRECT PAYMENTS),2102837299,1000061886
06.07.2018,ADULT SOCIAL CARE,PEOPLEPLUS ILS,299.6,LD LTS 18-64,PAYMENTS TO CLIENTS (DIRECT PAYMENTS),2102837815,1000061886
06.07.2018,ADULT SOCIAL CARE,PEOPLEPLUS ILS,300,LD LTS 18-64,PAYMENTS TO CLIENTS (DIRECT PAYMENTS),2102837433,1000061886
06.07.2018,ADULT SOCIAL CARE,PEOPLEPLUS ILS,307.84,LD LTS 18-64,PAYMENTS TO CLIENTS (DIRECT PAYMENTS),2102837959,1000061886
06.07.2018,ADULT SOCIAL CARE,PEOPLEPLUS ILS,308,LD LTS 18-64,PAYMENTS TO CLIENTS (DIRECT PAYMENTS),2102837589,1000061886
06.07.2018,ADULT SOCIAL CARE,PEOPLEPLUS ILS,318,LD LTS 18-64,PAYMENTS TO CLIENTS (DIRECT PAYMENTS),2102837045,1000061886
06.07.2018,ADULT SOCIAL CARE,PEOPLEPLUS ILS,321.2,LD LTS 18-64,PAYMENTS TO CLIENTS (DIRECT PAYMENTS),2102837500,1000061886
06.07.2018,ADULT SOCIAL CARE,PEOPLEPLUS ILS,329.8,LD LTS 18-64,PAYMENTS TO CLIENTS (DIRECT PAYMENTS),2102837744,1000061886
06.07.2018,ADULT SOCIAL CARE,PEOPLEPLUS ILS,334,LD LTS 18-64,PAYMENTS TO CLIENTS (DIRECT PAYMENTS),2102837857,1000061886
06.07.2018,ADULT SOCIAL CARE,PEOPLEPLUS ILS,356.92,LD LTS 18-64,PAYMENTS TO CLIENTS (DIRECT PAYMENTS),2102837769,1000061886
06.07.2018,ADULT SOCIAL CARE,PEOPLEPLUS ILS,408.4,LD LTS 18-64,PAYMENTS TO CLIENTS (DIRECT PAYMENTS),2102837075,1000061886
06.07.2018,ADULT SOCIAL CARE,PEOPLEPLUS ILS,424,LD LTS 18-64,PAYMENTS TO CLIENTS (DIRECT PAYMENTS),2102837842,1000061886
06.07.2018,ADULT SOCIAL CARE,PEOPLEPLUS ILS,424.8,LD LTS 18-64,PAYMENTS TO CLIENTS (DIRECT PAYMENTS),2102837531,1000061886
06.07.2018,ADULT SOCIAL CARE,PEOPLEPLUS ILS,440,LD LTS 18-64,PAYMENTS TO CLIENTS (DIRECT PAYMENTS),2102837081,1000061886
06.07.2018,ADULT SOCIAL CARE,PEOPLEPLUS ILS,450,LD LTS 18-64,PAYMENTS TO CLIENTS (DIRECT PAYMENTS),2102837609,1000061886
06.07.2018,ADULT SOCIAL CARE,PEOPLEPLUS ILS,475.2,LD LTS 18-64,PAYMENTS TO CLIENTS (DIRECT PAYMENTS),2102837626,1000061886
06.07.2018,ADULT SOCIAL CARE,PEOPLEPLUS ILS,484.02,LD LTS 18-64,PAYMENTS TO CLIENTS (DIRECT PAYMENTS),2102837616,1000061886
06.07.2018,ADULT SOCIAL CARE,PEOPLEPLUS ILS,486.52,LD LTS 18-64,PAYMENTS TO CLIENTS (DIRECT PAYMENTS),2102837829,1000061886
06.07.2018,ADULT SOCIAL CARE,PEOPLEPLUS ILS,493.36,LD LTS 18-64,PAYMENTS TO CLIENTS (DIRECT PAYMENTS),2102837216,1000061886
06.07.2018,ADULT SOCIAL CARE,PEOPLEPLUS ILS,502.12,LD LTS 18-64,PAYMENTS TO CLIENTS (DIRECT PAYMENTS),2102837301,1000061886
06.07.2018,ADULT SOCIAL CARE,PEOPLEPLUS ILS,520.88,LD LTS 18-64,PAYMENTS TO CLIENTS (DIRECT PAYMENTS),2102837095,1000061886
06.07.2018,ADULT SOCIAL CARE,PEOPLEPLUS ILS,578,LD LTS 18-64,PAYMENTS TO CLIENTS (DIRECT PAYMENTS),2102837278,1000061886
06.07.2018,ADULT SOCIAL CARE,PEOPLEPLUS ILS,590.4,LD LTS 18-64,PAYMENTS TO CLIENTS (DIRECT PAYMENTS),2102837492,1000061886
06.07.2018,ADULT SOCIAL CARE,PEOPLEPLUS ILS,633.2,LD LTS 18-64,PAYMENTS TO CLIENTS (DIRECT PAYMENTS),2102837822,1000061886
06.07.2018,ADULT SOCIAL CARE,PEOPLEPLUS ILS,633.2,LD LTS 18-64,PAYMENTS TO CLIENTS (DIRECT PAYMENTS),2102837914,1000061886
06.07.2018,ADULT SOCIAL CARE,PEOPLEPLUS ILS,670,LD LTS 18-64,PAYMENTS TO CLIENTS (DIRECT PAYMENTS),2102837960,1000061886
06.07.2018,ADULT SOCIAL CARE,PEOPLEPLUS ILS,678.12,LD LTS 18-64,PAYMENTS TO CLIENTS (DIRECT PAYMENTS),2102837570,1000061886
06.07.2018,ADULT SOCIAL CARE,PEOPLEPLUS ILS,679.2,LD LTS 18-64,PAYMENTS TO CLIENTS (DIRECT PAYMENTS),2102837916,1000061886
06.07.2018,ADULT SOCIAL CARE,PEOPLEPLUS ILS,680,LD LTS 18-64,PAYMENTS TO CLIENTS (DIRECT PAYMENTS),2102837411,1000061886
06.07.2018,ADULT SOCIAL CARE,PEOPLEPLUS ILS,712.4,LD LTS 18-64,PAYMENTS TO CLIENTS (DIRECT PAYMENTS),2102837656,1000061886
06.07.2018,ADULT SOCIAL CARE,PEOPLEPLUS ILS,722.4,LD LTS 18-64,PAYMENTS TO CLIENTS (DIRECT PAYMENTS),2102837854,1000061886
06.07.2018,ADULT SOCIAL CARE,PEOPLEPLUS ILS,743.04,LD LTS 18-64,PAYMENTS TO CLIENTS (DIRECT PAYMENTS),2102837836,1000061886
06.07.2018,ADULT SOCIAL CARE,PEOPLEPLUS ILS,753.04,LD LTS 18-64,PAYMENTS TO CLIENTS (DIRECT PAYMENTS),2102837199,1000061886
06.07.2018,ADULT SOCIAL CARE,PEOPLEPLUS ILS,754,LD LTS 18-64,PAYMENTS TO CLIENTS (DIRECT PAYMENTS),2102837512,1000061886
06.07.2018,ADULT SOCIAL CARE,PEOPLEPLUS ILS,754.8,LD LTS 18-64,PAYMENTS TO CLIENTS (DIRECT PAYMENTS),2102837139,1000061886
06.07.2018,ADULT SOCIAL CARE,PEOPLEPLUS ILS,758.72,LD LTS 18-64,PAYMENTS TO CLIENTS (DIRECT PAYMENTS),2102837539,1000061886
06.07.2018,ADULT SOCIAL CARE,PEOPLEPLUS ILS,794,LD LTS 18-64,PAYMENTS TO CLIENTS (DIRECT PAYMENTS),2102837153,1000061886
06.07.2018,ADULT SOCIAL CARE,PEOPLEPLUS ILS,794,LD LTS 18-64,PAYMENTS TO CLIENTS (DIRECT PAYMENTS),2102837344,1000061886
06.07.2018,ADULT SOCIAL CARE,PEOPLEPLUS ILS,813.36,LD LTS 18-64,PAYMENTS TO CLIENTS (DIRECT PAYMENTS),2102837911,1000061886
06.07.2018,ADULT SOCIAL CARE,PEOPLEPLUS ILS,819.84,LD LTS 18-64,PAYMENTS TO CLIENTS (DIRECT PAYMENTS),2102837774,1000061886
06.07.2018,ADULT SOCIAL CARE,PEOPLEPLUS ILS,826,LD LTS 18-64,PAYMENTS TO CLIENTS (DIRECT PAYMENTS),2102837590,1000061886
06.07.2018,ADULT SOCIAL CARE,PEOPLEPLUS ILS,860,LD LTS 18-64,PAYMENTS TO CLIENTS (DIRECT PAYMENTS),2102837147,1000061886
06.07.2018,ADULT SOCIAL CARE,PEOPLEPLUS ILS,862.64,LD LTS 18-64,PAYMENTS TO CLIENTS (DIRECT PAYMENTS),2102837848,1000061886
06.07.2018,ADULT SOCIAL CARE,PEOPLEPLUS ILS,875.6,LD LTS 18-64,PAYMENTS TO CLIENTS (DIRECT PAYMENTS),2102837398,1000061886
06.07.2018,ADULT SOCIAL CARE,PEOPLEPLUS ILS,876.92,LD LTS 18-64,PAYMENTS TO CLIENTS (DIRECT PAYMENTS),2102837465,1000061886
06.07.2018,ADULT SOCIAL CARE,PEOPLEPLUS ILS,918,LD LTS 18-64,PAYMENTS TO CLIENTS (DIRECT PAYMENTS),2102837969,1000061886
06.07.2018,ADULT SOCIAL CARE,PEOPLEPLUS ILS,932.8,LD LTS 18-64,PAYMENTS TO CLIENTS (DIRECT PAYMENTS),2102837819,1000061886
06.07.2018,ADULT SOCIAL CARE,PEOPLEPLUS ILS,934,LD LTS 18-64,PAYMENTS TO CLIENTS (DIRECT PAYMENTS),2102837123,1000061886
06.07.2018,ADULT SOCIAL CARE,PEOPLEPLUS ILS,957.2,LD LTS 18-64,PAYMENTS TO CLIENTS (DIRECT PAYMENTS),2102837627,1000061886
06.07.2018,ADULT SOCIAL CARE,PEOPLEPLUS ILS,968,LD LTS 18-64,PAYMENTS TO CLIENTS (DIRECT PAYMENTS),2102837954,1000061886
06.07.2018,ADULT SOCIAL CARE,PEOPLEPLUS ILS,"1,052.00",LD LTS 18-64,PAYMENTS TO CLIENTS (DIRECT PAYMENTS),2102837029,1000061886
06.07.2018,ADULT SOCIAL CARE,PEOPLEPLUS ILS,"1,054.00",LD LTS 18-64,PAYMENTS TO CLIENTS (DIRECT PAYMENTS),2102837511,1000061886
06.07.2018,ADULT SOCIAL CARE,PEOPLEPLUS ILS,"1,056.00",LD LTS 18-64,PAYMENTS TO CLIENTS (DIRECT PAYMENTS),2102837160,1000061886
06.07.2018,ADULT SOCIAL CARE,PEOPLEPLUS ILS,"1,069.36",LD LTS 18-64,PAYMENTS TO CLIENTS (DIRECT PAYMENTS),2102837599,1000061886
06.07.2018,ADULT SOCIAL CARE,PEOPLEPLUS ILS,"1,072.80",LD LTS 18-64,PAYMENTS TO CLIENTS (DIRECT PAYMENTS),2102837907,1000061886
06.07.2018,ADULT SOCIAL CARE,PEOPLEPLUS ILS,"1,084.72",LD LTS 18-64,PAYMENTS TO CLIENTS (DIRECT PAYMENTS),2102837655,1000061886
06.07.2018,ADULT SOCIAL CARE,PEOPLEPLUS ILS,"1,111.00",LD LTS 18-64,PAYMENTS TO CLIENTS (DIRECT PAYMENTS),2102837052,1000061886
06.07.2018,ADULT SOCIAL CARE,PEOPLEPLUS ILS,"1,171.28",LD LTS 18-64,PAYMENTS TO CLIENTS (DIRECT PAYMENTS),2102837584,1000061886
06.07.2018,ADULT SOCIAL CARE,PEOPLEPLUS ILS,"1,171.28",LD LTS 18-64,PAYMENTS TO CLIENTS (DIRECT PAYMENTS),2102837999,1000061886
06.07.2018,ADULT SOCIAL CARE,PEOPLEPLUS ILS,"1,172.48",LD LTS 18-64,PAYMENTS TO CLIENTS (DIRECT PAYMENTS),2102837764,1000061886
06.07.2018,ADULT SOCIAL CARE,PEOPLEPLUS ILS,"1,192.64",LD LTS 18-64,PAYMENTS TO CLIENTS (DIRECT PAYMENTS),2102837084,1000061886
06.07.2018,ADULT SOCIAL CARE,PEOPLEPLUS ILS,"1,235.68",LD LTS 18-64,PAYMENTS TO CLIENTS (DIRECT PAYMENTS),2102837225,1000061886
06.07.2018,ADULT SOCIAL CARE,PEOPLEPLUS ILS,"1,239.04",LD LTS 18-64,PAYMENTS TO CLIENTS (DIRECT PAYMENTS),2102837340,1000061886
06.07.2018,ADULT SOCIAL CARE,PEOPLEPLUS ILS,"1,274.60",LD LTS 18-64,PAYMENTS TO CLIENTS (DIRECT PAYMENTS),2102837332,1000061886
06.07.2018,ADULT SOCIAL CARE,PEOPLEPLUS ILS,"1,319.24",LD LTS 18-64,PAYMENTS TO CLIENTS (DIRECT PAYMENTS),2102837230,1000061886
06.07.2018,ADULT SOCIAL CARE,PEOPLEPLUS ILS,"1,324.40",LD LTS 18-64,PAYMENTS TO CLIENTS (DIRECT PAYMENTS),2102837651,1000061886
06.07.2018,ADULT SOCIAL CARE,PEOPLEPLUS ILS,"1,368.51",LD LTS 18-64,PAYMENTS TO CLIENTS (DIRECT PAYMENTS),2102837633,1000061886
06.07.2018,ADULT SOCIAL CARE,PEOPLEPLUS ILS,"1,375.56",LD LTS 18-64,PAYMENTS TO CLIENTS (DIRECT PAYMENTS),2102837286,1000061886
06.07.2018,ADULT SOCIAL CARE,PEOPLEPLUS ILS,"1,430.96",LD LTS 18-64,PAYMENTS TO CLIENTS (DIRECT PAYMENTS),2102837089,1000061886
06.07.2018,ADULT SOCIAL CARE,PEOPLEPLUS ILS,"1,438.80",LD LTS 18-64,PAYMENTS TO CLIENTS (DIRECT PAYMENTS),2102837432,1000061886
06.07.2018,ADULT SOCIAL CARE,PEOPLEPLUS ILS,"1,471.60",LD LTS 18-64,PAYMENTS TO CLIENTS (DIRECT PAYMENTS),2102837118,1000061886
06.07.2018,ADULT SOCIAL CARE,PEOPLEPLUS ILS,"1,474.96",LD LTS 18-64,PAYMENTS TO CLIENTS (DIRECT PAYMENTS),2102837196,1000061886
06.07.2018,ADULT SOCIAL CARE,PEOPLEPLUS ILS,"1,475.84",LD LTS 18-64,PAYMENTS TO CLIENTS (DIRECT PAYMENTS),2102837353,1000061886
06.07.2018,ADULT SOCIAL CARE,PEOPLEPLUS ILS,"1,480.20",LD LTS 18-64,PAYMENTS TO CLIENTS (DIRECT PAYMENTS),2102837657,1000061886
06.07.2018,ADULT SOCIAL CARE,PEOPLEPLUS ILS,"1,529.52",LD LTS 18-64,PAYMENTS TO CLIENTS (DIRECT PAYMENTS),2102837405,1000061886
06.07.2018,ADULT SOCIAL CARE,PEOPLEPLUS ILS,"1,617.28",LD LTS 18-64,PAYMENTS TO CLIENTS (DIRECT PAYMENTS),2102837702,1000061886
06.07.2018,ADULT SOCIAL CARE,PEOPLEPLUS ILS,"1,659.04",LD LTS 18-64,PAYMENTS TO CLIENTS (DIRECT PAYMENTS),2102837845,1000061886
06.07.2018,ADULT SOCIAL CARE,PEOPLEPLUS ILS,"1,690.24",LD LTS 18-64,PAYMENTS TO CLIENTS (DIRECT PAYMENTS),2102837993,1000061886
06.07.2018,ADULT SOCIAL CARE,PEOPLEPLUS ILS,"1,696.32",LD LTS 18-64,PAYMENTS TO CLIENTS (DIRECT PAYMENTS),2102837694,1000061886
06.07.2018,ADULT SOCIAL CARE,PEOPLEPLUS ILS,"1,714.00",LD LTS 18-64,PAYMENTS TO CLIENTS (DIRECT PAYMENTS),2102837741,1000061886
06.07.2018,ADULT SOCIAL CARE,PEOPLEPLUS ILS,"1,756.76",LD LTS 18-64,PAYMENTS TO CLIENTS (DIRECT PAYMENTS),2102837438,1000061886
06.07.2018,ADULT SOCIAL CARE,PEOPLEPLUS ILS,"1,797.04",LD LTS 18-64,PAYMENTS TO CLIENTS (DIRECT PAYMENTS),2102837545,1000061886
06.07.2018,ADULT SOCIAL CARE,PEOPLEPLUS ILS,"1,799.48",LD LTS 18-64,PAYMENTS TO CLIENTS (DIRECT PAYMENTS),2102837846,1000061886
06.07.2018,ADULT SOCIAL CARE,PEOPLEPLUS ILS,"1,818.56",LD LTS 18-64,PAYMENTS TO CLIENTS (DIRECT PAYMENTS),2102837994,1000061886
06.07.2018,ADULT SOCIAL CARE,PEOPLEPLUS ILS,"1,862.00",LD LTS 18-64,PAYMENTS TO CLIENTS (DIRECT PAYMENTS),2102837635,1000061886
06.07.2018,ADULT SOCIAL CARE,PEOPLEPLUS ILS,"1,888.28",LD LTS 18-64,PAYMENTS TO CLIENTS (DIRECT PAYMENTS),2102837592,1000061886
06.07.2018,ADULT SOCIAL CARE,PEOPLEPLUS ILS,"1,911.52",LD LTS 18-64,PAYMENTS TO CLIENTS (DIRECT PAYMENTS),2102837738,1000061886
06.07.2018,ADULT SOCIAL CARE,PEOPLEPLUS ILS,"1,912.40",LD LTS 18-64,PAYMENTS TO CLIENTS (DIRECT PAYMENTS),2102837721,1000061886
06.07.2018,ADULT SOCIAL CARE,PEOPLEPLUS ILS,"1,950.96",LD LTS 18-64,PAYMENTS TO CLIENTS (DIRECT PAYMENTS),2102837606,1000061886
06.07.2018,ADULT SOCIAL CARE,PEOPLEPLUS ILS,"2,056.32",LD LTS 18-64,PAYMENTS TO CLIENTS (DIRECT PAYMENTS),2102837977,1000061886
06.07.2018,ADULT SOCIAL CARE,PEOPLEPLUS ILS,"2,090.00",LD LTS 18-64,PAYMENTS TO CLIENTS (DIRECT PAYMENTS),2102837047,1000061886
06.07.2018,ADULT SOCIAL CARE,PEOPLEPLUS ILS,"2,097.56",LD LTS 18-64,PAYMENTS TO CLIENTS (DIRECT PAYMENTS),2102837527,1000061886
06.07.2018,ADULT SOCIAL CARE,PEOPLEPLUS ILS,"2,119.80",LD LTS 18-64,PAYMENTS TO CLIENTS (DIRECT PAYMENTS),2102837112,1000061886
06.07.2018,ADULT SOCIAL CARE,PEOPLEPLUS ILS,"2,268.84",LD LTS 18-64,PAYMENTS TO CLIENTS (DIRECT PAYMENTS),2102837530,1000061886
06.07.2018,ADULT SOCIAL CARE,PEOPLEPLUS ILS,"2,312.40",LD LTS 18-64,PAYMENTS TO CLIENTS (DIRECT PAYMENTS),2102837553,1000061886
06.07.2018,ADULT SOCIAL CARE,PEOPLEPLUS ILS,"2,327.60",LD LTS 18-64,PAYMENTS TO CLIENTS (DIRECT PAYMENTS),2102837163,1000061886
06.07.2018,ADULT SOCIAL CARE,PEOPLEPLUS ILS,"2,332.00",LD LTS 18-64,PAYMENTS TO CLIENTS (DIRECT PAYMENTS),2102837943,1000061886
06.07.2018,ADULT SOCIAL CARE,PEOPLEPLUS ILS,"2,447.76",LD LTS 18-64,PAYMENTS TO CLIENTS (DIRECT PAYMENTS),2102837735,1000061886
06.07.2018,ADULT SOCIAL CARE,PEOPLEPLUS ILS,"2,490.00",LD LTS 18-64,PAYMENTS TO CLIENTS (DIRECT PAYMENTS),2102837562,1000061886
06.07.2018,ADULT SOCIAL CARE,PEOPLEPLUS ILS,"2,494.00",LD LTS 18-64,PAYMENTS TO CLIENTS (DIRECT PAYMENTS),2102837300,1000061886
06.07.2018,ADULT SOCIAL CARE,PEOPLEPLUS ILS,"2,600.08",LD LTS 18-64,PAYMENTS TO CLIENTS (DIRECT PAYMENTS),2102837146,1000061886
06.07.2018,ADULT SOCIAL CARE,PEOPLEPLUS ILS,"2,733.64",LD LTS 18-64,PAYMENTS TO CLIENTS (DIRECT PAYMENTS),2102837625,1000061886
06.07.2018,ADULT SOCIAL CARE,PEOPLEPLUS ILS,"2,841.80",LD LTS 18-64,PAYMENTS TO CLIENTS (DIRECT PAYMENTS),2102837597,1000061886
06.07.2018,ADULT SOCIAL CARE,PEOPLEPLUS ILS,"2,906.00",LD LTS 18-64,PAYMENTS TO CLIENTS (DIRECT PAYMENTS),2102837885,1000061886
06.07.2018,ADULT SOCIAL CARE,PEOPLEPLUS ILS,"2,918.00",LD LTS 18-64,PAYMENTS TO CLIENTS (DIRECT PAYMENTS),2102837958,1000061886
06.07.2018,ADULT SOCIAL CARE,PEOPLEPLUS ILS,"2,946.20",LD LTS 18-64,PAYMENTS TO CLIENTS (DIRECT PAYMENTS),2102837600,1000061886
06.07.2018,ADULT SOCIAL CARE,PEOPLEPLUS ILS,"3,360.88",LD LTS 18-64,PAYMENTS TO CLIENTS (DIRECT PAYMENTS),2102837475,1000061886
06.07.2018,ADULT SOCIAL CARE,PEOPLEPLUS ILS,"3,809.20",LD LTS 18-64,PAYMENTS TO CLIENTS (DIRECT PAYMENTS),2102837888,1000061886
06.07.2018,ADULT SOCIAL CARE,PEOPLEPLUS ILS,"4,160.00",LD LTS 18-64,PAYMENTS TO CLIENTS (DIRECT PAYMENTS),2102837048,1000061886
06.07.2018,ADULT SOCIAL CARE,PEOPLEPLUS ILS,"5,208.00",LD LTS 18-64,PAYMENTS TO CLIENTS (DIRECT PAYMENTS),2102837892,1000061886
06.07.2018,ADULT SOCIAL CARE,PEOPLEPLUS ILS,"6,490.00",LD LTS 18-64,PAYMENTS TO CLIENTS (DIRECT PAYMENTS),2102837834,1000061886
06.07.2018,ADULT SOCIAL CARE,PEOPLEPLUS ILS,"7,521.32",LD LTS 18-64,PAYMENTS TO CLIENTS (DIRECT PAYMENTS),2102837939,1000061886
06.07.2018,ADULT SOCIAL CARE,PEOPLEPLUS ILS,"7,908.96",LD LTS 18-64,PAYMENTS TO CLIENTS (DIRECT PAYMENTS),2102837235,1000061886
06.07.2018,ADULT SOCIAL CARE,PEOPLEPLUS ILS,"9,126.80",LD LTS 18-64,PAYMENTS TO CLIENTS (DIRECT PAYMENTS),2102837345,1000061886
06.07.2018,ADULT SOCIAL CARE,PEOPLEPLUS ILS,"12,619.20",LD LTS 18-64,PAYMENTS TO CLIENTS (DIRECT PAYMENTS),2102837284,1000061886
06.07.2018,ADULT SOCIAL CARE,PEOPLEPLUS ILS,"12,619.20",LD LTS 18-64,PAYMENTS TO CLIENTS (DIRECT PAYMENTS),2102837582,1000061886
06.07.2018,ADULT SOCIAL CARE,REDACTED PERSONAL DATA,329.12,LD LTS 18-64,PAYMENTS TO CLIENTS (DIRECT PAYMENTS),REDACTED,REDACTED
06.07.2018,ADULT SOCIAL CARE,REDACTED PERSONAL DATA,"1,200.00",LD LTS 18-64,PAYMENTS TO CLIENTS (DIRECT PAYMENTS),REDACTED,REDACTED
06.07.2018,ADULT SOCIAL CARE,REDACTED PERSONAL DATA,319.52,LD LTS 18-64,PAYMENTS TO CLIENTS (DIRECT PAYMENTS),REDACTED,REDACTED
06.07.2018,ADULT SOCIAL CARE,REDACTED PERSONAL DATA,"6,644.40",LD LTS 18-64,PAYMENTS TO CLIENTS (DIRECT PAYMENTS),REDACTED,REDACTED
06.07.2018,ADULT SOCIAL CARE,REDACTED PERSONAL DATA,"1,332.40",LD LTS 18-64,PAYMENTS TO CLIENTS (DIRECT PAYMENTS),REDACTED,REDACTED
06.07.2018,ADULT SOCIAL CARE,REDACTED PERSONAL DATA,"1,036.24",LD LTS 18-64,PAYMENTS TO CLIENTS (DIRECT PAYMENTS),REDACTED,REDACTED
06.07.2018,ADULT SOCIAL CARE,REDACTED PERSONAL DATA,302.86,LD LTS 18-64,PAYMENTS TO CLIENTS (DIRECT PAYMENTS),REDACTED,REDACTED
06.07.2018,ADULT SOCIAL CARE,REDACTED PERSONAL DATA,"2,158.60",LD LTS 18-64,PAYMENTS TO CLIENTS (DIRECT PAYMENTS),REDACTED,REDACTED
06.07.2018,ADULT SOCIAL CARE,REDACTED PERSONAL DATA,"5,362.72",LD LTS 18-64,PAYMENTS TO CLIENTS (DIRECT PAYMENTS),REDACTED,REDACTED
06.07.2018,ADULT SOCIAL CARE,REDACTED PERSONAL DATA,"2,317.60",LD LTS 18-64,PAYMENTS TO CLIENTS (DIRECT PAYMENTS),REDACTED,REDACTED
06.07.2018,ADULT SOCIAL CARE,REDACTED PERSONAL DATA,"1,400.00",LD LTS 18-64,PAYMENTS TO CLIENTS (DIRECT PAYMENTS),REDACTED,REDACTED
06.07.2018,ADULT SOCIAL CARE,REDACTED PERSONAL DATA,718,LD LTS 18-64,PAYMENTS TO CLIENTS (DIRECT PAYMENTS),REDACTED,REDACTED
06.07.2018,ADULT SOCIAL CARE,REDACTED PERSONAL DATA,"1,290.16",LD LTS 18-64,PAYMENTS TO CLIENTS (DIRECT PAYMENTS),REDACTED,REDACTED
06.07.2018,ADULT SOCIAL CARE,REDACTED PERSONAL DATA,320,LD LTS 18-64,PAYMENTS TO CLIENTS (DIRECT PAYMENTS),REDACTED,REDACTED
06.07.2018,ADULT SOCIAL CARE,REDACTED PERSONAL DATA,288.8,LD LTS 18-64,PAYMENTS TO CLIENTS (DIRECT PAYMENTS),REDACTED,REDACTED
06.07.2018,ADULT SOCIAL CARE,REDACTED PERSONAL DATA,300,LD LTS 18-64,PAYMENTS TO CLIENTS (DIRECT PAYMENTS),REDACTED,REDACTED
06.07.2018,ADULT SOCIAL CARE,REDACTED PERSONAL DATA,956.16,LD LTS 18-64,PAYMENTS TO CLIENTS (DIRECT PAYMENTS),REDACTED,REDACTED
06.07.2018,ADULT SOCIAL CARE,REDACTED PERSONAL DATA,327.2,LD LTS 18-64,PAYMENTS TO CLIENTS (DIRECT PAYMENTS),REDACTED,REDACTED
06.07.2018,ADULT SOCIAL CARE,REDACTED PERSONAL DATA,"11,376.96",LD LTS 18-64,PAYMENTS TO CLIENTS (DIRECT PAYMENTS),REDACTED,REDACTED
06.07.2018,ADULT SOCIAL CARE,REDACTED PERSONAL DATA,"3,118.08",LD LTS 18-64,PAYMENTS TO CLIENTS (DIRECT PAYMENTS),REDACTED,REDACTED
06.07.2018,ADULT SOCIAL CARE,REDACTED PERSONAL DATA,"1,672.00",LD LTS 18-64,PAYMENTS TO CLIENTS (DIRECT PAYMENTS),REDACTED,REDACTED
06.07.2018,ADULT SOCIAL CARE,REDACTED PERSONAL DATA,"1,368.32",LD LTS 18-64,PAYMENTS TO CLIENTS (DIRECT PAYMENTS),REDACTED,REDACTED
06.07.2018,ADULT SOCIAL CARE,REDACTED PERSONAL DATA,"2,660.20",LD LTS 18-64,PAYMENTS TO CLIENTS (DIRECT PAYMENTS),REDACTED,REDACTED
06.07.2018,ADULT SOCIAL CARE,REDACTED PERSONAL DATA,"1,545.48",LD LTS 18-64,PAYMENTS TO CLIENTS (DIRECT PAYMENTS),REDACTED,REDACTED
06.07.2018,ADULT SOCIAL CARE,REDACTED PERSONAL DATA,"1,025.20",LD LTS 18-64,PAYMENTS TO CLIENTS (DIRECT PAYMENTS),REDACTED,REDACTED
06.07.2018,ADULT SOCIAL CARE,REDACTED PERSONAL DATA,"2,181.12",LD LTS 18-64,PAYMENTS TO CLIENTS (DIRECT PAYMENTS),REDACTED,REDACTED
06.07.2018,ADULT SOCIAL CARE,REDACTED PERSONAL DATA,"1,338.04",LD LTS 18-64,PAYMENTS TO CLIENTS (DIRECT PAYMENTS),REDACTED,REDACTED
06.07.2018,ADULT SOCIAL CARE,REDACTED PERSONAL DATA,"2,118.00",LD LTS 18-64,PAYMENTS TO CLIENTS (DIRECT PAYMENTS),REDACTED,REDACTED
06.07.2018,ADULT SOCIAL CARE,REDACTED PERSONAL DATA,"1,197.96",LD LTS 18-64,PAYMENTS TO CLIENTS (DIRECT PAYMENTS),REDACTED,REDACTED
06.07.2018,ADULT SOCIAL CARE,REDACTED PERSONAL DATA,"3,923.12",LD LTS 18-64,PAYMENTS TO CLIENTS (DIRECT PAYMENTS),REDACTED,REDACTED
06.07.2018,ADULT SOCIAL CARE,REDACTED PERSONAL DATA,"1,019.44",LD LTS 18-64,PAYMENTS TO CLIENTS (DIRECT PAYMENTS),REDACTED,REDACTED
06.07.2018,ADULT SOCIAL CARE,REDACTED PERSONAL DATA,"1,483.00",LD LTS 18-64,PAYMENTS TO CLIENTS (DIRECT PAYMENTS),REDACTED,REDACTED
06.07.2018,ADULT SOCIAL CARE,REDACTED PERSONAL DATA,"5,280.88",LD LTS 18-64,PAYMENTS TO CLIENTS (DIRECT PAYMENTS),REDACTED,REDACTED
06.07.2018,ADULT SOCIAL CARE,REDACTED PERSONAL DATA,480,LD LTS 18-64,PAYMENTS TO CLIENTS (DIRECT PAYMENTS),REDACTED,REDACTED
06.07.2018,ADULT SOCIAL CARE,REDACTED PERSONAL DATA,"1,328.00",LD LTS 18-64,PAYMENTS TO CLIENTS (DIRECT PAYMENTS),REDACTED,REDACTED
06.07.2018,ADULT SOCIAL CARE,REDACTED PERSONAL DATA,269.6,LD LTS 18-64,PAYMENTS TO CLIENTS (DIRECT PAYMENTS),REDACTED,REDACTED
06.07.2018,ADULT SOCIAL CARE,REDACTED PERSONAL DATA,"2,412.00",LD LTS 18-64,PAYMENTS TO CLIENTS (DIRECT PAYMENTS),REDACTED,REDACTED
06.07.2018,ADULT SOCIAL CARE,REDACTED PERSONAL DATA,"1,845.16",LD LTS 18-64,PAYMENTS TO CLIENTS (DIRECT PAYMENTS),REDACTED,REDACTED
06.07.2018,ADULT SOCIAL CARE,REDACTED PERSONAL DATA,300,LD LTS 18-64,PAYMENTS TO CLIENTS (DIRECT PAYMENTS),REDACTED,REDACTED
06.07.2018,ADULT SOCIAL CARE,REDACTED PERSONAL DATA,"1,790.40",LD LTS 18-64,PAYMENTS TO CLIENTS (DIRECT PAYMENTS),REDACTED,REDACTED
06.07.2018,ADULT SOCIAL CARE,REDACTED PERSONAL DATA,"1,420.12",LD LTS 18-64,PAYMENTS TO CLIENTS (DIRECT PAYMENTS),REDACTED,REDACTED
06.07.2018,ADULT SOCIAL CARE,REDACTED PERSONAL DATA,"12,580.00",LD LTS 18-64,PAYMENTS TO CLIENTS (DIRECT PAYMENTS),REDACTED,REDACTED
06.07.2018,ADULT SOCIAL CARE,REDACTED PERSONAL DATA,"1,532.92",LD LTS 18-64,PAYMENTS TO CLIENTS (DIRECT PAYMENTS),REDACTED,REDACTED
06.07.2018,ADULT SOCIAL CARE,REDACTED PERSONAL DATA,738,LD LTS 18-64,PAYMENTS TO CLIENTS (DIRECT PAYMENTS),REDACTED,REDACTED
06.07.2018,ADULT SOCIAL CARE,REDACTED PERSONAL DATA,"1,293.44",LD LTS 18-64,PAYMENTS TO CLIENTS (DIRECT PAYMENTS),REDACTED,REDACTED
06.07.2018,ADULT SOCIAL CARE,REDACTED PERSONAL DATA,"1,743.20",LD LTS 18-64,PAYMENTS TO CLIENTS (DIRECT PAYMENTS),REDACTED,REDACTED
06.07.2018,ADULT SOCIAL CARE,REDACTED PERSONAL DATA,594.4,LD LTS 18-64,PAYMENTS TO CLIENTS (DIRECT PAYMENTS),REDACTED,REDACTED
06.07.2018,ADULT SOCIAL CARE,REDACTED PERSONAL DATA,"1,532.68",LD LTS 18-64,PAYMENTS TO CLIENTS (DIRECT PAYMENTS),REDACTED,REDACTED
06.07.2018,ADULT SOCIAL CARE,REDACTED PERSONAL DATA,"3,066.48",LD LTS 18-64,PAYMENTS TO CLIENTS (DIRECT PAYMENTS),REDACTED,REDACTED
06.07.2018,ADULT SOCIAL CARE,REDACTED PERSONAL DATA,"2,116.00",LD LTS 18-64,PAYMENTS TO CLIENTS (DIRECT PAYMENTS),REDACTED,REDACTED
06.07.2018,ADULT SOCIAL CARE,REDACTED PERSONAL DATA,"2,020.00",LD LTS 18-64,PAYMENTS TO CLIENTS (DIRECT PAYMENTS),REDACTED,REDACTED
06.07.2018,ADULT SOCIAL CARE,REDACTED PERSONAL DATA,484.32,LD LTS 18-64,PAYMENTS TO CLIENTS (DIRECT PAYMENTS),REDACTED,REDACTED
06.07.2018,ADULT SOCIAL CARE,REDACTED PERSONAL DATA,"1,443.00",LD LTS 18-64,PAYMENTS TO CLIENTS (DIRECT PAYMENTS),REDACTED,REDACTED
06.07.2018,ADULT SOCIAL CARE,REDACTED PERSONAL DATA,"2,653.92",LD LTS 18-64,PAYMENTS TO CLIENTS (DIRECT PAYMENTS),REDACTED,REDACTED
06.07.2018,ADULT SOCIAL CARE,REDACTED PERSONAL DATA,"8,484.60",LD LTS 18-64,PAYMENTS TO CLIENTS (DIRECT PAYMENTS),REDACTED,REDACTED
06.07.2018,ADULT SOCIAL CARE,REDACTED PERSONAL DATA,522.6,LD LTS 18-64,PAYMENTS TO CLIENTS (DIRECT PAYMENTS),REDACTED,REDACTED
06.07.2018,ADULT SOCIAL CARE,REDACTED PERSONAL DATA,"4,348.00",LD LTS 18-64,PAYMENTS TO CLIENTS (DIRECT PAYMENTS),REDACTED,REDACTED
06.07.2018,ADULT SOCIAL CARE,REDACTED PERSONAL DATA,"1,811.76",LD LTS 18-64,PAYMENTS TO CLIENTS (DIRECT PAYMENTS),REDACTED,REDACTED
06.07.2018,ADULT SOCIAL CARE,REDACTED PERSONAL DATA,"2,736.00",LD LTS 18-64,PAYMENTS TO CLIENTS (DIRECT PAYMENTS),REDACTED,REDACTED
06.07.2018,ADULT SOCIAL CARE,REDACTED PERSONAL DATA,"3,864.64",LD LTS 18-64,PAYMENTS TO CLIENTS (DIRECT PAYMENTS),REDACTED,REDACTED
06.07.2018,ADULT SOCIAL CARE,BRANDON TRUST,254.65,LD LTS 18-64,PLACEMENTS - RESPITE,2102836638,1000042417
06.07.2018,ADULT SOCIAL CARE,BRANDON TRUST,645,LD LTS 18-64,PLACEMENTS - RESPITE,2102836633,1000042417
06.07.2018,ADULT SOCIAL CARE,BRANDON TRUST,683.12,LD LTS 18-64,PLACEMENTS - RESPITE,2102836635,1000042417
06.07.2018,ADULT SOCIAL CARE,BRANDON TRUST,"1,075.00",LD LTS 18-64,PLACEMENTS - RESPITE,2102836630,1000042417
06.07.2018,ADULT SOCIAL CARE,BRANDON TRUST,"1,476.00",LD LTS 18-64,PLACEMENTS - RESPITE,2102836639,1000042417
06.07.2018,ADULT SOCIAL CARE,BRANDON TRUST,"1,557.00",LD LTS 18-64,PLACEMENTS - RESPITE,2102836631,1000042417
06.07.2018,ADULT SOCIAL CARE,BRANDON TRUST,"1,557.00",LD LTS 18-64,PLACEMENTS - RESPITE,2102836632,1000042417
06.07.2018,ADULT SOCIAL CARE,BRANDON TRUST,"1,557.00",LD LTS 18-64,PLACEMENTS - RESPITE,2102836634,1000042417
06.07.2018,ADULT SOCIAL CARE,AURORA OPTIONS,"2,855.16",LD LTS 18-64,SUPPORTED LIVING,2102837071,1000066695
06.07.2018,ADULT SOCIAL CARE,AURORA OPTIONS,"2,855.16",LD LTS 18-64,SUPPORTED LIVING,2102837461,1000066695
06.07.2018,ADULT SOCIAL CARE,AURORA OPTIONS,"2,855.16",LD LTS 18-64,SUPPORTED LIVING,2102837946,1000066695
06.07.2018,ADULT SOCIAL CARE,AURORA OPTIONS,"2,972.36",LD LTS 18-64,SUPPORTED LIVING,2102837355,1000066695
06.07.2018,ADULT SOCIAL CARE,AURORA OPTIONS,"3,441.16",LD LTS 18-64,SUPPORTED LIVING,2102837639,1000066695
06.07.2018,ADULT SOCIAL CARE,BRANDON TRUST,"2,639.32",LD LTS 18-64,SUPPORTED LIVING,2102837687,1000042417
06.07.2018,ADULT SOCIAL CARE,BRANDON TRUST,"2,672.88",LD LTS 18-64,SUPPORTED LIVING,2102837055,1000042417
06.07.2018,ADULT SOCIAL CARE,BRANDON TRUST,"2,773.56",LD LTS 18-64,SUPPORTED LIVING,2102837985,1000042417
06.07.2018,ADULT SOCIAL CARE,BRANDON TRUST,"3,004.08",LD LTS 18-64,SUPPORTED LIVING,2102837816,1000042417
06.07.2018,ADULT SOCIAL CARE,BRANDON TRUST,"3,125.92",LD LTS 18-64,SUPPORTED LIVING,2102837088,1000042417
06.07.2018,ADULT SOCIAL CARE,BRANDON TRUST,"3,356.08",LD LTS 18-64,SUPPORTED LIVING,2102837130,1000042417
06.07.2018,ADULT SOCIAL CARE,BRANDON TRUST,"4,015.80",LD LTS 18-64,SUPPORTED LIVING,2102837157,1000042417
06.07.2018,ADULT SOCIAL CARE,BRANDON TRUST,"4,162.12",LD LTS 18-64,SUPPORTED LIVING,2102837458,1000042417
06.07.2018,ADULT SOCIAL CARE,BRANDON TRUST,"4,194.64",LD LTS 18-64,SUPPORTED LIVING,2102837868,1000042417
06.07.2018,ADULT SOCIAL CARE,BRANDON TRUST,"4,258.84",LD LTS 18-64,SUPPORTED LIVING,2102837759,1000042417
06.07.2018,ADULT SOCIAL CARE,BRANDON TRUST,"4,308.24",LD LTS 18-64,SUPPORTED LIVING,2102837690,1000042417
06.07.2018,ADULT SOCIAL CARE,BRANDON TRUST,"6,652.52",LD LTS 18-64,SUPPORTED LIVING,2102837770,1000042417
06.07.2018,ADULT SOCIAL CARE,BRANDON TRUST,"8,669.24",LD LTS 18-64,SUPPORTED LIVING,2102837630,1000042417
06.07.2018,ADULT SOCIAL CARE,CARE MANAGEMENT GROUP,"4,360.00",LD LTS 18-64,SUPPORTED LIVING,2102837232,1000040475
06.07.2018,ADULT SOCIAL CARE,CARE MANAGEMENT GROUP,"4,908.00",LD LTS 18-64,SUPPORTED LIVING,2102837201,1000040475
06.07.2018,ADULT SOCIAL CARE,CHILDREN OF COLOUR,"4,000.00",LD LTS 18-64,SUPPORTED LIVING,2102837220,1000044955
06.07.2018,ADULT SOCIAL CARE,CHOICE SUPPORT,464.8,LD LTS 18-64,SUPPORTED LIVING,2102837781,1104183
06.07.2018,ADULT SOCIAL CARE,CHOICE SUPPORT,480,LD LTS 18-64,SUPPORTED LIVING,2102837791,1104183
06.07.2018,ADULT SOCIAL CARE,CHOICE SUPPORT,493.92,LD LTS 18-64,SUPPORTED LIVING,2102837325,1104183
06.07.2018,ADULT SOCIAL CARE,CHOICE SUPPORT,566.84,LD LTS 18-64,SUPPORTED LIVING,2102837884,1104183
06.07.2018,ADULT SOCIAL CARE,CHOICE SUPPORT,592.44,LD LTS 18-64,SUPPORTED LIVING,2102837803,1104183
06.07.2018,ADULT SOCIAL CARE,CHOICE SUPPORT,599.61,LD LTS 18-64,SUPPORTED LIVING,2102837486,1104183
06.07.2018,ADULT SOCIAL CARE,CHOICE SUPPORT,617.24,LD LTS 18-64,SUPPORTED LIVING,2102837431,1104183
06.07.2018,ADULT SOCIAL CARE,CHOICE SUPPORT,658.4,LD LTS 18-64,SUPPORTED LIVING,2102837454,1104183
06.07.2018,ADULT SOCIAL CARE,CHOICE SUPPORT,705.6,LD LTS 18-64,SUPPORTED LIVING,2102837758,1104183
06.07.2018,ADULT SOCIAL CARE,CHOICE SUPPORT,733.48,LD LTS 18-64,SUPPORTED LIVING,2102837859,1104183
06.07.2018,ADULT SOCIAL CARE,CHOICE SUPPORT,"1,341.48",LD LTS 18-64,SUPPORTED LIVING,2102837905,1104183
06.07.2018,ADULT SOCIAL CARE,CHOICE SUPPORT,"1,374.40",LD LTS 18-64,SUPPORTED LIVING,2102837790,1104183
06.07.2018,ADULT SOCIAL CARE,CHOICE SUPPORT,"1,579.84",LD LTS 18-64,SUPPORTED LIVING,2102837878,1104183
06.07.2018,ADULT SOCIAL CARE,CHOICE SUPPORT,"1,976.00",LD LTS 18-64,SUPPORTED LIVING,2102837169,1104183
06.07.2018,ADULT SOCIAL CARE,CHOICE SUPPORT,"1,976.00",LD LTS 18-64,SUPPORTED LIVING,2102837603,1104183
06.07.2018,ADULT SOCIAL CARE,CHOICE SUPPORT,"2,111.28",LD LTS 18-64,SUPPORTED LIVING,2102837894,1104183
06.07.2018,ADULT SOCIAL CARE,CHOICE SUPPORT,"2,234.48",LD LTS 18-64,SUPPORTED LIVING,2102837347,1104183
06.07.2018,ADULT SOCIAL CARE,CHOICE SUPPORT,"2,238.56",LD LTS 18-64,SUPPORTED LIVING,2102837523,1104183
06.07.2018,ADULT SOCIAL CARE,CHOICE SUPPORT,"2,496.00",LD LTS 18-64,SUPPORTED LIVING,2102837925,1104183
06.07.2018,ADULT SOCIAL CARE,CHOICE SUPPORT,"2,696.00",LD LTS 18-64,SUPPORTED LIVING,2102837181,1104183
06.07.2018,ADULT SOCIAL CARE,CHOICE SUPPORT,"2,770.28",LD LTS 18-64,SUPPORTED LIVING,2102837177,1104183
06.07.2018,ADULT SOCIAL CARE,CHOICE SUPPORT,"2,971.84",LD LTS 18-64,SUPPORTED LIVING,2102837747,1104183
06.07.2018,ADULT SOCIAL CARE,CHOICE SUPPORT,"3,074.36",LD LTS 18-64,SUPPORTED LIVING,2102837698,1104183
06.07.2018,ADULT SOCIAL CARE,CHOICE SUPPORT,"3,331.80",LD LTS 18-64,SUPPORTED LIVING,2102837385,1104183
06.07.2018,ADULT SOCIAL CARE,CHOICE SUPPORT,"3,546.24",LD LTS 18-64,SUPPORTED LIVING,2102837811,1104183
06.07.2018,ADULT SOCIAL CARE,CHOICE SUPPORT,"3,563.92",LD LTS 18-64,SUPPORTED LIVING,2102837387,1104183
06.07.2018,ADULT SOCIAL CARE,CHOICE SUPPORT,"3,690.24",LD LTS 18-64,SUPPORTED LIVING,2102837963,1104183
06.07.2018,ADULT SOCIAL CARE,CHOICE SUPPORT,"3,691.92",LD LTS 18-64,SUPPORTED LIVING,2102837799,1104183
06.07.2018,ADULT SOCIAL CARE,CHOICE SUPPORT,"3,820.82",LD LTS 18-64,SUPPORTED LIVING,2102837313,1104183
06.07.2018,ADULT SOCIAL CARE,CHOICE SUPPORT,"3,836.00",LD LTS 18-64,SUPPORTED LIVING,2102837194,1104183
06.07.2018,ADULT SOCIAL CARE,CHOICE SUPPORT,"3,864.48",LD LTS 18-64,SUPPORTED LIVING,2102837309,1104183
06.07.2018,ADULT SOCIAL CARE,CHOICE SUPPORT,"4,101.32",LD LTS 18-64,SUPPORTED LIVING,2102837771,1104183
06.07.2018,ADULT SOCIAL CARE,CHOICE SUPPORT,"4,179.84",LD LTS 18-64,SUPPORTED LIVING,2102837474,1104183
06.07.2018,ADULT SOCIAL CARE,CHOICE SUPPORT,"4,374.76",LD LTS 18-64,SUPPORTED LIVING,2102837069,1104183
06.07.2018,ADULT SOCIAL CARE,CHOICE SUPPORT,"4,418.64",LD LTS 18-64,SUPPORTED LIVING,2102837793,1104183
06.07.2018,ADULT SOCIAL CARE,CHOICE SUPPORT,"4,452.92",LD LTS 18-64,SUPPORTED LIVING,2102837712,1104183
06.07.2018,ADULT SOCIAL CARE,CHOICE SUPPORT,"4,555.80",LD LTS 18-64,SUPPORTED LIVING,2102837156,1104183
06.07.2018,ADULT SOCIAL CARE,CHOICE SUPPORT,"4,572.28",LD LTS 18-64,SUPPORTED LIVING,2102837361,1104183
06.07.2018,ADULT SOCIAL CARE,CHOICE SUPPORT,"4,746.20",LD LTS 18-64,SUPPORTED LIVING,2102837838,1104183
06.07.2018,ADULT SOCIAL CARE,CHOICE SUPPORT,"4,763.08",LD LTS 18-64,SUPPORTED LIVING,2102837583,1104183
06.07.2018,ADULT SOCIAL CARE,CHOICE SUPPORT,"4,826.76",LD LTS 18-64,SUPPORTED LIVING,2102837410,1104183
06.07.2018,ADULT SOCIAL CARE,CHOICE SUPPORT,"4,944.72",LD LTS 18-64,SUPPORTED LIVING,2102837642,1104183
06.07.2018,ADULT SOCIAL CARE,CHOICE SUPPORT,"4,979.36",LD LTS 18-64,SUPPORTED LIVING,2102837887,1104183
06.07.2018,ADULT SOCIAL CARE,CHOICE SUPPORT,"5,211.88",LD LTS 18-64,SUPPORTED LIVING,2102837537,1104183
06.07.2018,ADULT SOCIAL CARE,CHOICE SUPPORT,"5,230.68",LD LTS 18-64,SUPPORTED LIVING,2102837136,1104183
06.07.2018,ADULT SOCIAL CARE,CHOICE SUPPORT,"5,231.60",LD LTS 18-64,SUPPORTED LIVING,2102837874,1104183
06.07.2018,ADULT SOCIAL CARE,CHOICE SUPPORT,"5,289.48",LD LTS 18-64,SUPPORTED LIVING,2102837441,1104183
06.07.2018,ADULT SOCIAL CARE,CHOICE SUPPORT,"5,396.76",LD LTS 18-64,SUPPORTED LIVING,2102837021,1104183
06.07.2018,ADULT SOCIAL CARE,CHOICE SUPPORT,"5,584.08",LD LTS 18-64,SUPPORTED LIVING,2102837373,1104183
06.07.2018,ADULT SOCIAL CARE,CHOICE SUPPORT,"5,711.68",LD LTS 18-64,SUPPORTED LIVING,2102837555,1104183
06.07.2018,ADULT SOCIAL CARE,CHOICE SUPPORT,"6,119.04",LD LTS 18-64,SUPPORTED LIVING,2102837552,1104183
06.07.2018,ADULT SOCIAL CARE,CHOICE SUPPORT,"6,154.48",LD LTS 18-64,SUPPORTED LIVING,2102837149,1104183
06.07.2018,ADULT SOCIAL CARE,CHOICE SUPPORT,"7,138.28",LD LTS 18-64,SUPPORTED LIVING,2102837691,1104183
06.07.2018,ADULT SOCIAL CARE,CHOICE SUPPORT,"7,261.72",LD LTS 18-64,SUPPORTED LIVING,2102837631,1104183
06.07.2018,ADULT SOCIAL CARE,CHOICE SUPPORT,"8,080.68",LD LTS 18-64,SUPPORTED LIVING,2102837532,1104183
06.07.2018,ADULT SOCIAL CARE,FRONTIER SUPPORT SERVICES LTD,"2,998.20",LD LTS 18-64,SUPPORTED LIVING,2102837007,1000072241
06.07.2018,ADULT SOCIAL CARE,FRONTIER SUPPORT SERVICES LTD,"4,155.60",LD LTS 18-64,SUPPORTED LIVING,2102837797,1000072241
06.07.2018,ADULT SOCIAL CARE,FRONTIER SUPPORT SERVICES LTD,"4,772.00",LD LTS 18-64,SUPPORTED LIVING,2102837543,1000072241
06.07.2018,ADULT SOCIAL CARE,FRONTIER SUPPORT SERVICES LTD,"7,893.68",LD LTS 18-64,SUPPORTED LIVING,2102837706,1000072241
06.07.2018,ADULT SOCIAL CARE,GRANGE FARM COMPLEX,"1,778.36",LD LTS 18-64,SUPPORTED LIVING,2102837984,11086081
06.07.2018,ADULT SOCIAL CARE,HEALTH PERSONNEL LTD,"3,270.00",LD LTS 18-64,SUPPORTED LIVING,2102837103,1000076377
06.07.2018,ADULT SOCIAL CARE,KEYRING-LIVING SUPPORT NETWORKS LTD,317.6,LD LTS 18-64,SUPPORTED LIVING,2102836489,1486496
06.07.2018,ADULT SOCIAL CARE,KEYRING-LIVING SUPPORT NETWORKS LTD,381.12,LD LTS 18-64,SUPPORTED LIVING,2102836490,1486496
06.07.2018,ADULT SOCIAL CARE,L'ARCHE LONDON COMMUNITY,"4,206.00",LD LTS 18-64,SUPPORTED LIVING,2102837040,1000074124
06.07.2018,ADULT SOCIAL CARE,LIFEWAYS COMMUNITY CARE,"8,149.96",LD LTS 18-64,SUPPORTED LIVING,2102837549,1000073780
06.07.2018,ADULT SOCIAL CARE,PALM CARE LTD,"6,900.00",LD LTS 18-64,SUPPORTED LIVING,2102837714,1000066042
06.07.2018,ADULT SOCIAL CARE,PLUS SERVICES,"3,200.00",LD LTS 18-64,SUPPORTED LIVING,2102837975,1000021241
06.07.2018,ADULT SOCIAL CARE,PLUS SERVICES,"5,173.60",LD LTS 18-64,SUPPORTED LIVING,2102837801,1000021241
06.07.2018,ADULT SOCIAL CARE,PLUS SERVICES,"5,495.20",LD LTS 18-64,SUPPORTED LIVING,2102837229,1000021241
06.07.2018,ADULT SOCIAL CARE,RIGHT SUPPORT MANAGEMENT LTD,"-3,708.32",LD LTS 18-64,SUPPORTED LIVING,2102837619,1000070289
06.07.2018,ADULT SOCIAL CARE,RIGHT SUPPORT MANAGEMENT LTD,"8,361.00",LD LTS 18-64,SUPPORTED LIVING,2102837044,1000070289
06.07.2018,ADULT SOCIAL CARE,SAFFRONLAND HOMES,"6,986.00",LD LTS 18-64,SUPPORTED LIVING,2102837843,1000072153
06.07.2018,ADULT SOCIAL CARE,THE REGARD PARTNERSHIP,"2,920.96",LD LTS 18-64,SUPPORTED LIVING,2102837297,1823223
06.07.2018,ADULT SOCIAL CARE,THE REGARD PARTNERSHIP,"4,400.00",LD LTS 18-64,SUPPORTED LIVING,2102837915,1823223
06.07.2018,ADULT SOCIAL CARE,THE REGARD PARTNERSHIP,"7,794.64",LD LTS 18-64,SUPPORTED LIVING,2102837669,1823223
06.07.2018,ADULT SOCIAL CARE,ZETETICK HOUSING,904.4,LD LTS 18-64,SUPPORTED LIVING,2102837295,1000072236
06.07.2018,ADULT SOCIAL CARE,ZETETICK HOUSING,904.4,LD LTS 18-64,SUPPORTED LIVING,2102837416,1000072236
06.07.2018,ADULT SOCIAL CARE,ZETETICK HOUSING,904.4,LD LTS 18-64,SUPPORTED LIVING,2102837423,1000072236
06.07.2018,ADULT SOCIAL CARE,ZETETICK HOUSING,904.4,LD LTS 18-64,SUPPORTED LIVING,2102837663,1000072236
06.07.2018,ADULT SOCIAL CARE,REDACTED PERSONAL DATA,"1,640.00",LD LTS 18-64,SUPPORTED LIVING,REDACTED,REDACTED
06.07.2018,ADULT SOCIAL CARE,REDACTED PERSONAL DATA,281.28,LD LTS 18-64,SUPPORTED LIVING,REDACTED,REDACTED
06.07.2018,ADULT SOCIAL CARE,REDACTED PERSONAL DATA,"1,895.44",LD LTS 18-64,SUPPORTED LIVING,REDACTED,REDACTED
06.07.2018,ADULT SOCIAL CARE,REDACTED PERSONAL DATA,"2,314.20",LD LTS 18-64,SUPPORTED LIVING,REDACTED,REDACTED
06.07.2018,ADULT SOCIAL CARE,REDACTED PERSONAL DATA,"2,460.92",LD LTS 18-64,SUPPORTED LIVING,REDACTED,REDACTED
06.07.2018,ADULT SOCIAL CARE,REDACTED PERSONAL DATA,"1,032.16",LD LTS 18-64,SUPPORTED LIVING,REDACTED,REDACTED
06.07.2018,ADULT SOCIAL CARE,CHOICE SUPPORT,"1,448.16",LD LTS 65+,SUPPORTED LIVING,2102837424,1104183
06.07.2018,ADULT SOCIAL CARE,CHOICE SUPPORT,"2,276.40",LD LTS 65+,SUPPORTED LIVING,2102837188,1104183
06.07.2018,ADULT SOCIAL CARE,CHOICE SUPPORT,"2,665.08",LD LTS 65+,SUPPORTED LIVING,2102837418,1104183
06.07.2018,ADULT SOCIAL CARE,CHOICE SUPPORT,"2,966.48",LD LTS 65+,SUPPORTED LIVING,2102837587,1104183
06.07.2018,ADULT SOCIAL CARE,CHOICE SUPPORT,"3,074.40",LD LTS 65+,SUPPORTED LIVING,2102837695,1104183
06.07.2018,ADULT SOCIAL CARE,CHOICE SUPPORT,"3,163.96",LD LTS 65+,SUPPORTED LIVING,2102837030,1104183
06.07.2018,ADULT SOCIAL CARE,CHOICE SUPPORT,"3,513.36",LD LTS 65+,SUPPORTED LIVING,2102837446,1104183
06.07.2018,ADULT SOCIAL CARE,CHOICE SUPPORT,"4,151.36",LD LTS 65+,SUPPORTED LIVING,2102837666,1104183
06.07.2018,ADULT SOCIAL CARE,CHOICE SUPPORT,"4,151.36",LD LTS 65+,SUPPORTED LIVING,2102837917,1104183
06.07.2018,ADULT SOCIAL CARE,CHOICE SUPPORT,"4,496.00",LD LTS 65+,SUPPORTED LIVING,2102837028,1104183
06.07.2018,ADULT SOCIAL CARE,CHOICE SUPPORT,"7,920.48",LD LTS 65+,SUPPORTED LIVING,2102837653,1104183
06.07.2018,ADULT SOCIAL CARE,OUTLOOK CARE LTD,"2,212.00",LD LTS 65+,SUPPORTED LIVING,2102837141,1000074760
06.07.2018,ADULT SOCIAL CARE,PLUS SERVICES,"4,857.20",LD LTS 65+,SUPPORTED LIVING,2102837756,1000021241
06.07.2018,ADULT SOCIAL CARE,PLUS SERVICES,"6,147.92",LD LTS 65+,SUPPORTED LIVING,2102837094,1000021241
06.07.2018,ADULT SOCIAL CARE,UNITED RESPONSE,"1,599.00",LD LTS 65+,SUPPORTED LIVING,2102837849,1022934
06.07.2018,ADULT SOCIAL CARE,LIFELONG FAMILY LINIKS,"22,500.00",LOCAL COMMUNITY OFFER,EXTERNAL AGENCIES AND BODIES,5902310648,1000069342
06.07.2018,ADULT SOCIAL CARE,BLACK ELDER GROUP SWK,264,MEM LTS 18-64,DAYCARE,2102837212,1000067369
06.07.2018,ADULT SOCIAL CARE,NESTOR PRIMECARE SERVICES LTD,583,MEM LTS 18-64,HOMECARE - C&V,2102836484,11098703
06.07.2018,ADULT SOCIAL CARE,PEOPLEPLUS ILS,358,MEM LTS 18-64,PAYMENTS TO CLIENTS (DIRECT PAYMENTS),2102837577,1000061886
06.07.2018,ADULT SOCIAL CARE,PEOPLEPLUS ILS,389.32,MEM LTS 18-64,PAYMENTS TO CLIENTS (DIRECT PAYMENTS),2102837941,1000061886
06.07.2018,ADULT SOCIAL CARE,PEOPLEPLUS ILS,608.76,MEM LTS 18-64,PAYMENTS TO CLIENTS (DIRECT PAYMENTS),2102837215,1000061886
06.07.2018,ADULT SOCIAL CARE,PEOPLEPLUS ILS,619.2,MEM LTS 18-64,PAYMENTS TO CLIENTS (DIRECT PAYMENTS),2102837998,1000061886
06.07.2018,ADULT SOCIAL CARE,PEOPLEPLUS ILS,833,MEM LTS 18-64,PAYMENTS TO CLIENTS (DIRECT PAYMENTS),2102837080,1000061886
06.07.2018,ADULT SOCIAL CARE,REDACTED PERSONAL DATA,"1,096.36",MEM LTS 18-64,PAYMENTS TO CLIENTS (DIRECT PAYMENTS),REDACTED,REDACTED
06.07.2018,ADULT SOCIAL CARE,THE REGARD PARTNERSHIP,"3,102.20",MEM LTS 18-64,SUPPORTED LIVING,2102837298,1823223
06.07.2018,ADULT SOCIAL CARE,THE REGARD PARTNERSHIP,"5,825.20",MEM LTS 18-64,SUPPORTED LIVING,2102837929,1823223
06.07.2018,ADULT SOCIAL CARE,REDACTED PERSONAL DATA,256,MEM LTS 18-64,SUPPORTED LIVING,REDACTED,REDACTED
06.07.2018,ADULT SOCIAL CARE,AGE UK  LEWISHAM & SOUTHWARK,-250.71,MEM LTS 65+,DAYCARE,2102837448,1000066751
06.07.2018,ADULT SOCIAL CARE,AGE UK  LEWISHAM & SOUTHWARK,360,MEM LTS 65+,DAYCARE,2102837093,1000066751
06.07.2018,ADULT SOCIAL CARE,AGE UK  LEWISHAM & SOUTHWARK,360,MEM LTS 65+,DAYCARE,2102837336,1000066751
06.07.2018,ADULT SOCIAL CARE,AGE UK  LEWISHAM & SOUTHWARK,540,MEM LTS 65+,DAYCARE,2102837798,1000066751
06.07.2018,ADULT SOCIAL CARE,AGE UK  LEWISHAM & SOUTHWARK,900,MEM LTS 65+,DAYCARE,2102837064,1000066751
06.07.2018,ADULT SOCIAL CARE,AGE UK  LEWISHAM & SOUTHWARK,900,MEM LTS 65+,DAYCARE,2102837967,1000066751
06.07.2018,ADULT SOCIAL CARE,REDACTED PERSONAL DATA,-292.64,MEM LTS 65+,DISCRETIONARY FLEXIBLE FEES & INCOME,REDACTED,REDACTED
06.07.2018,ADULT SOCIAL CARE,PROFAD CARE AGENCY,"1,130.78",MEM LTS 65+,HOMECARE - C&V,2102836448,1000079032
06.07.2018,ADULT SOCIAL CARE,PROFAD CARE AGENCY,592.97,MEM LTS 65+,HOMECARE - SPOT,2102836454,1000079032
06.07.2018,ADULT SOCIAL CARE,PROFAD CARE AGENCY,634.34,MEM LTS 65+,HOMECARE - SPOT,2102836397,1000079032
06.07.2018,ADULT SOCIAL CARE,PROFAD CARE AGENCY,"1,351.42",MEM LTS 65+,HOMECARE - SPOT,2102836472,1000079032
06.07.2018,ADULT SOCIAL CARE,PROFAD CARE AGENCY,"2,261.56",MEM LTS 65+,HOMECARE - SPOT,2102836462,1000079032
06.07.2018,ADULT SOCIAL CARE,PEOPLEPLUS ILS,-765.52,MEM LTS 65+,PAYMENTS TO CLIENTS (DIRECT PAYMENTS),2102837786,1000061886
06.07.2018,ADULT SOCIAL CARE,PEOPLEPLUS ILS,378.84,MEM LTS 65+,PAYMENTS TO CLIENTS (DIRECT PAYMENTS),2102837456,1000061886
06.07.2018,ADULT SOCIAL CARE,PEOPLEPLUS ILS,587.84,MEM LTS 65+,PAYMENTS TO CLIENTS (DIRECT PAYMENTS),2102837182,1000061886
06.07.2018,ADULT SOCIAL CARE,PEOPLEPLUS ILS,689.72,MEM LTS 65+,PAYMENTS TO CLIENTS (DIRECT PAYMENTS),2102837923,1000061886
06.07.2018,ADULT SOCIAL CARE,PEOPLEPLUS ILS,"1,757.32",MEM LTS 65+,PAYMENTS TO CLIENTS (DIRECT PAYMENTS),2102837900,1000061886
06.07.2018,ADULT SOCIAL CARE,REDACTED PERSONAL DATA,877.8,MEM LTS 65+,PAYMENTS TO CLIENTS (DIRECT PAYMENTS),REDACTED,REDACTED
06.07.2018,ADULT SOCIAL CARE,REDACTED PERSONAL DATA,"1,118.52",MEM LTS 65+,PAYMENTS TO CLIENTS (DIRECT PAYMENTS),REDACTED,REDACTED
06.07.2018,ADULT SOCIAL CARE,BEDE HOUSE ASSOCIATION,280,MH LTS 18-64,DAYCARE,2102837792,11265073
06.07.2018,ADULT SOCIAL CARE,BLACKFRIARS SETTLEMENT,-281.71,MH LTS 18-64,DAYCARE,2102837604,1000071456
06.07.2018,ADULT SOCIAL CARE,BLACKFRIARS SETTLEMENT,304,MH LTS 18-64,DAYCARE,2102837371,1000071456
06.07.2018,ADULT SOCIAL CARE,BLACKFRIARS SETTLEMENT,320,MH LTS 18-64,DAYCARE,2102837775,1000071456
06.07.2018,ADULT SOCIAL CARE,PALM TREE RECOVERY CLUB,264,MH LTS 18-64,DAYCARE,2102837070,1000077293
06.07.2018,ADULT SOCIAL CARE,CARE DIRECT UK LTD,289.59,MH LTS 18-64,HOMECARE - SPOT,2102836568,1000066322
06.07.2018,ADULT SOCIAL CARE,D SULLY & SON LTD,"1,459.00",MH LTS 18-64,HOMECARE - SPOT,2102837784,1000079165
06.07.2018,ADULT SOCIAL CARE,D SULLY & SON LTD,"2,020.40",MH LTS 18-64,HOMECARE - SPOT,2102837337,1000079165
06.07.2018,ADULT SOCIAL CARE,PALM TREE RECOVERY CLUB,320,MH LTS 18-64,HOMECARE - SPOT,2102837950,1000077293
06.07.2018,ADULT SOCIAL CARE,PALM TREE RECOVERY CLUB,385,MH LTS 18-64,HOMECARE - SPOT,2102837320,1000077293
06.07.2018,ADULT SOCIAL CARE,PALM TREE RECOVERY CLUB,399.96,MH LTS 18-64,HOMECARE - SPOT,2102837772,1000077293
06.07.2018,ADULT SOCIAL CARE,PALM TREE RECOVERY CLUB,492,MH LTS 18-64,HOMECARE - SPOT,2102837477,1000077293
06.07.2018,ADULT SOCIAL CARE,PROFAD CARE AGENCY,386.12,MH LTS 18-64,HOMECARE - SPOT,2102836373,1000079032
06.07.2018,ADULT SOCIAL CARE,PROFAD CARE AGENCY,772.24,MH LTS 18-64,HOMECARE - SPOT,2102836428,1000079032
06.07.2018,ADULT SOCIAL CARE,PROFAD CARE AGENCY,944.62,MH LTS 18-64,HOMECARE - SPOT,2102836415,1000079032
06.07.2018,ADULT SOCIAL CARE,REDACTED PERSONAL DATA,272,MH LTS 18-64,HOMECARE - SPOT,REDACTED,REDACTED
06.07.2018,ADULT SOCIAL CARE,REDACTED PERSONAL DATA,276,MH LTS 18-64,HOMECARE - SPOT,REDACTED,REDACTED
06.07.2018,ADULT SOCIAL CARE,REDACTED PERSONAL DATA,304.2,MH LTS 18-64,HOMECARE - SPOT,REDACTED,REDACTED
06.07.2018,ADULT SOCIAL CARE,REDACTED PERSONAL DATA,327.6,MH LTS 18-64,HOMECARE - SPOT,REDACTED,REDACTED
06.07.2018,ADULT SOCIAL CARE,REDACTED PERSONAL DATA,421.2,MH LTS 18-64,HOMECARE - SPOT,REDACTED,REDACTED
06.07.2018,ADULT SOCIAL CARE,REDACTED PERSONAL DATA,450.45,MH LTS 18-64,HOMECARE - SPOT,REDACTED,REDACTED
06.07.2018,ADULT SOCIAL CARE,REDACTED PERSONAL DATA,546,MH LTS 18-64,HOMECARE - SPOT,REDACTED,REDACTED
06.07.2018,ADULT SOCIAL CARE,REDACTED PERSONAL DATA,600,MH LTS 18-64,HOMECARE - SPOT,REDACTED,REDACTED
06.07.2018,ADULT SOCIAL CARE,REDACTED PERSONAL DATA,600,MH LTS 18-64,HOMECARE - SPOT,REDACTED,REDACTED
06.07.2018,ADULT SOCIAL CARE,REDACTED PERSONAL DATA,655.2,MH LTS 18-64,HOMECARE - SPOT,REDACTED,REDACTED
06.07.2018,ADULT SOCIAL CARE,REDACTED PERSONAL DATA,896,MH LTS 18-64,HOMECARE - SPOT,REDACTED,REDACTED
06.07.2018,ADULT SOCIAL CARE,REDACTED PERSONAL DATA,928,MH LTS 18-64,HOMECARE - SPOT,REDACTED,REDACTED
06.07.2018,ADULT SOCIAL CARE,REDACTED PERSONAL DATA,"4,156.85",MH LTS 18-64,HOMECARE - SPOT,REDACTED,REDACTED
06.07.2018,ADULT SOCIAL CARE,PEOPLEPLUS ILS,"-3,255.13",MH LTS 18-64,PAYMENTS TO CLIENTS (DIRECT PAYMENTS),2102837184,1000061886
06.07.2018,ADULT SOCIAL CARE,PEOPLEPLUS ILS,268,MH LTS 18-64,PAYMENTS TO CLIENTS (DIRECT PAYMENTS),2102837106,1000061886
06.07.2018,ADULT SOCIAL CARE,PEOPLEPLUS ILS,274,MH LTS 18-64,PAYMENTS TO CLIENTS (DIRECT PAYMENTS),2102837272,1000061886
06.07.2018,ADULT SOCIAL CARE,PEOPLEPLUS ILS,284.8,MH LTS 18-64,PAYMENTS TO CLIENTS (DIRECT PAYMENTS),2102837257,1000061886
06.07.2018,ADULT SOCIAL CARE,PEOPLEPLUS ILS,287.2,MH LTS 18-64,PAYMENTS TO CLIENTS (DIRECT PAYMENTS),2102837521,1000061886
06.07.2018,ADULT SOCIAL CARE,PEOPLEPLUS ILS,293.6,MH LTS 18-64,PAYMENTS TO CLIENTS (DIRECT PAYMENTS),2102837326,1000061886
06.07.2018,ADULT SOCIAL CARE,PEOPLEPLUS ILS,304,MH LTS 18-64,PAYMENTS TO CLIENTS (DIRECT PAYMENTS),2102837391,1000061886
06.07.2018,ADULT SOCIAL CARE,PEOPLEPLUS ILS,310.48,MH LTS 18-64,PAYMENTS TO CLIENTS (DIRECT PAYMENTS),2102837558,1000061886
06.07.2018,ADULT SOCIAL CARE,PEOPLEPLUS ILS,316,MH LTS 18-64,PAYMENTS TO CLIENTS (DIRECT PAYMENTS),2102837719,1000061886
06.07.2018,ADULT SOCIAL CARE,PEOPLEPLUS ILS,328.48,MH LTS 18-64,PAYMENTS TO CLIENTS (DIRECT PAYMENTS),2102838005,1000061886
06.07.2018,ADULT SOCIAL CARE,PEOPLEPLUS ILS,334,MH LTS 18-64,PAYMENTS TO CLIENTS (DIRECT PAYMENTS),2102837379,1000061886
06.07.2018,ADULT SOCIAL CARE,PEOPLEPLUS ILS,372.69,MH LTS 18-64,PAYMENTS TO CLIENTS (DIRECT PAYMENTS),2102837369,1000061886
06.07.2018,ADULT SOCIAL CARE,PEOPLEPLUS ILS,393,MH LTS 18-64,PAYMENTS TO CLIENTS (DIRECT PAYMENTS),2102837334,1000061886
06.07.2018,ADULT SOCIAL CARE,PEOPLEPLUS ILS,394,MH LTS 18-64,PAYMENTS TO CLIENTS (DIRECT PAYMENTS),2102837258,1000061886
06.07.2018,ADULT SOCIAL CARE,PEOPLEPLUS ILS,427.92,MH LTS 18-64,PAYMENTS TO CLIENTS (DIRECT PAYMENTS),2102837265,1000061886
06.07.2018,ADULT SOCIAL CARE,PEOPLEPLUS ILS,523,MH LTS 18-64,PAYMENTS TO CLIENTS (DIRECT PAYMENTS),2102837544,1000061886
06.07.2018,ADULT SOCIAL CARE,PEOPLEPLUS ILS,537.12,MH LTS 18-64,PAYMENTS TO CLIENTS (DIRECT PAYMENTS),2102837382,1000061886
06.07.2018,ADULT SOCIAL CARE,PEOPLEPLUS ILS,560.43,MH LTS 18-64,PAYMENTS TO CLIENTS (DIRECT PAYMENTS),2102837145,1000061886
06.07.2018,ADULT SOCIAL CARE,PEOPLEPLUS ILS,642,MH LTS 18-64,PAYMENTS TO CLIENTS (DIRECT PAYMENTS),2102837621,1000061886
06.07.2018,ADULT SOCIAL CARE,PEOPLEPLUS ILS,652.3,MH LTS 18-64,PAYMENTS TO CLIENTS (DIRECT PAYMENTS),2102837170,1000061886
06.07.2018,ADULT SOCIAL CARE,PEOPLEPLUS ILS,"1,041.40",MH LTS 18-64,PAYMENTS TO CLIENTS (DIRECT PAYMENTS),2102837256,1000061886
06.07.2018,ADULT SOCIAL CARE,REDACTED PERSONAL DATA,303.04,MH LTS 18-64,PAYMENTS TO CLIENTS (DIRECT PAYMENTS),REDACTED,REDACTED
06.07.2018,ADULT SOCIAL CARE,REDACTED PERSONAL DATA,"1,158.36",MH LTS 18-64,PAYMENTS TO CLIENTS (DIRECT PAYMENTS),REDACTED,REDACTED
06.07.2018,ADULT SOCIAL CARE,REDACTED PERSONAL DATA,720,MH LTS 18-64,PAYMENTS TO CLIENTS (DIRECT PAYMENTS),REDACTED,REDACTED
06.07.2018,ADULT SOCIAL CARE,REDACTED PERSONAL DATA,"1,305.32",MH LTS 18-64,PAYMENTS TO CLIENTS (DIRECT PAYMENTS),REDACTED,REDACTED
06.07.2018,ADULT SOCIAL CARE,REDACTED PERSONAL DATA,"1,726.72",MH LTS 18-64,PAYMENTS TO CLIENTS (DIRECT PAYMENTS),REDACTED,REDACTED
06.07.2018,ADULT SOCIAL CARE,REDACTED PERSONAL DATA,328,MH LTS 18-64,PAYMENTS TO CLIENTS (DIRECT PAYMENTS),REDACTED,REDACTED
06.07.2018,ADULT SOCIAL CARE,REDACTED PERSONAL DATA,892,MH LTS 18-64,PAYMENTS TO CLIENTS (DIRECT PAYMENTS),REDACTED,REDACTED
06.07.2018,ADULT SOCIAL CARE,AGE UK  LEWISHAM & SOUTHWARK,360,MH LTS 65+,DAYCARE,2102837463,1000066751
06.07.2018,ADULT SOCIAL CARE,AGE UK  LEWISHAM & SOUTHWARK,360,MH LTS 65+,DAYCARE,2102837528,1000066751
06.07.2018,ADULT SOCIAL CARE,BLACK ELDER GROUP SWK,-655.71,MH LTS 65+,DAYCARE,2102837098,1000067369
06.07.2018,ADULT SOCIAL CARE,PROFAD CARE AGENCY,461.97,MH LTS 65+,HOMECARE - SPOT,2102836452,1000079032
06.07.2018,ADULT SOCIAL CARE,REDACTED PERSONAL DATA,494,MH LTS 65+,HOMECARE - SPOT,REDACTED,REDACTED
06.07.2018,ADULT SOCIAL CARE,REDACTED PERSONAL DATA,863.36,MH LTS 65+,HOMECARE - SPOT,REDACTED,REDACTED
06.07.2018,ADULT SOCIAL CARE,PEOPLEPLUS ILS,274,MH LTS 65+,PAYMENTS TO CLIENTS (DIRECT PAYMENTS),2102837800,1000061886
06.07.2018,ADULT SOCIAL CARE,PEOPLEPLUS ILS,283.6,MH LTS 65+,PAYMENTS TO CLIENTS (DIRECT PAYMENTS),2102837945,1000061886
06.07.2018,ADULT SOCIAL CARE,PEOPLEPLUS ILS,394,MH LTS 65+,PAYMENTS TO CLIENTS (DIRECT PAYMENTS),2102837402,1000061886
06.07.2018,ADULT SOCIAL CARE,PEOPLEPLUS ILS,908.72,MH LTS 65+,PAYMENTS TO CLIENTS (DIRECT PAYMENTS),2102837273,1000061886
06.07.2018,ADULT SOCIAL CARE,PEOPLEPLUS ILS,"1,212.20",MH LTS 65+,PAYMENTS TO CLIENTS (DIRECT PAYMENTS),2102837243,1000061886
06.07.2018,ADULT SOCIAL CARE,REDACTED PERSONAL DATA,961.4,MH LTS 65+,PAYMENTS TO CLIENTS (DIRECT PAYMENTS),REDACTED,REDACTED
06.07.2018,ADULT SOCIAL CARE,REDACTED PERSONAL DATA,900,MH LTS 65+,PAYMENTS TO CLIENTS (DIRECT PAYMENTS),REDACTED,REDACTED
06.07.2018,ADULT SOCIAL CARE,REDACTED PERSONAL DATA,897.8,MH LTS 65+,PAYMENTS TO CLIENTS (DIRECT PAYMENTS),REDACTED,REDACTED
06.07.2018,ADULT SOCIAL CARE,PEOPLEPLUS ILS,"3,613.68",PHB- SOUTHWARK CCG,RECOVERABLE COSTS INCL. HEALTH,2102837709,1000061886
06.07.2018,ADULT SOCIAL CARE,PEOPLEPLUS ILS,"4,343.84",PHB- SOUTHWARK CCG,RECOVERABLE COSTS INCL. HEALTH,2102837085,1000061886
